BIOGUIDE_ID,OFFICE,QUARTER,CATEGORY,DATE,PAYEE,START DATE,END DATE,PURPOSE,AMOUNT,YEAR,TRANSCODE,TRANSCODELONG,RECORDID,RECIP (orig.)
,COMMUNICATIONS,2010Q3,OTHER SERVICES,,07_15   P2 OSM44034                      THE KANE COMPANY,6/30/10,6/30/10,NON-TECHNOLOGY SERVICE CONTRCT,"1,766.00",FISCAL YEAR 2010,,,,07_15   P2 OSM44034                      THE KANE COMPANY
,COMMUNICATIONS,2010Q3,OTHER SERVICES,,08_26   P1 10A54000201                   CHL BUSINESS INTERIORS,8/16/10,8/16/10,NON-TECHNOLOGY SERVICE CONTRCT,350,FISCAL YEAR 2010,,,,08_26   P1 10A54000201                   CHL BUSINESS INTERIORS
,COMMUNICATIONS,2010Q3,OTHER SERVICES,,"09_28   P2 FSS44170                      WASHINGTON GROUP SALES, INC",9/28/10,9/28/10,NON-TECHNOLOGY SERVICE CONTRCT,300,FISCAL YEAR 2010,,,,"09_28   P2 FSS44170                      WASHINGTON GROUP SALES, INC"
,COMMUNICATIONS,2010Q3,SUPPLIES AND MATERIALS,,07_09   P2 OSM44033         BEST BUY GOVERNMENT,6/23/10,6/23/10,OFFICE SUPPLIES OUTSIDE,"8,880.00",FISCAL YEAR 2010,,,,07_09   P2 OSM44033         BEST BUY GOVERNMENT
,COMMUNICATIONS,2010Q3,SUPPLIES AND MATERIALS,,07_09   P2 OSM44033              DO,6/23/10,6/23/10,OFFICE SUPPLIES OUTSIDE,420,FISCAL YEAR 2010,,,,07_09   P2 OSM44033              DO
,COMMUNICATIONS,2010Q3,SUPPLIES AND MATERIALS,,07_09   P2 OSM44033              DO,6/23/10,6/23/10,OFFICE SUPPLIES OUTSIDE,510,FISCAL YEAR 2010,,,,07_09   P2 OSM44033              DO
,COMMUNICATIONS,2010Q3,EQUIPMENT,,08_06   P2    MFP2184AD2K                KIMBALL INT'L MARKETING,6/11/10,6/11/10,FURNITURE _ $25000,89.28,FISCAL YEAR 2010,,,,08_06   P2    MFP2184AD2K                KIMBALL INT'L MARKETING
,COMMUNICATIONS,2010Q3,EQUIPMENT,,08_06   P2    MFP2184AD2K                     DO,6/11/10,6/11/10,FURNITURE _ $25000,200,FISCAL YEAR 2010,,,,08_06   P2    MFP2184AD2K                     DO
,COMMUNICATIONS,2010Q3,EQUIPMENT,,08_20   P2    MFP2435ADDK                     DO,6/23/10,6/28/10,FURNITURE _ $25000,792,FISCAL YEAR 2010,,,,08_20   P2    MFP2435ADDK                     DO
,COMMUNICATIONS,2010Q3,EQUIPMENT,,08_20   P2    MFP2435ADDK                     DO,6/23/10,6/28/10,FURNITURE _ $25000,"3,214.12",FISCAL YEAR 2010,,,,08_20   P2    MFP2435ADDK                     DO
,COMMUNICATIONS,2010Q3,EQUIPMENT,,09_26   P2    OFP1000541                 AMERISYS INC,9/22/10,9/22/10,FURNITURE _ $25000,700,FISCAL YEAR 2010,,,,09_26   P2    OFP1000541                 AMERISYS INC
,COMMUNICATIONS,2010Q3,EQUIPMENT,,09_26   P2    OFP1000541                      DO,9/22/10,9/22/10,FURNITURE _ $25000,350,FISCAL YEAR 2010,,,,09_26   P2    OFP1000541                      DO
,COMMUNICATIONS,2010Q3,EQUIPMENT,,09_26   P2    OFP1000541                      DO,9/22/10,9/22/10,FURNITURE _ $25000,"1,150.00",FISCAL YEAR 2010,,,,09_26   P2    OFP1000541                      DO
,COMMUNICATIONS,2010Q3,EQUIPMENT,,09_27   P2    MFP1625ADD                 ALLSTEEL,8/21/10,8/21/10,FURNITURE _ $25000,100,FISCAL YEAR 2010,,,,09_27   P2    MFP1625ADD                 ALLSTEEL
,COMMUNICATIONS,2010Q3,EQUIPMENT,,09_27   P2    MFP1625ADD                      DO,8/21/10,8/21/10,FURNITURE _ $25000,284.58,FISCAL YEAR 2010,,,,09_27   P2    MFP1625ADD                      DO
,COMMUNICATIONS,2010Q3,EQUIPMENT,,"09_28   P2    OFP1000540                 WASHINGTON GROUP SALES, INC",9/28/10,9/28/10,FURNITURE _ $25000,"1,923.08",FISCAL YEAR 2010,,,,"09_28   P2    OFP1000540                 WASHINGTON GROUP SALES, INC"
,OFFICE OF THE SPEAKER,2010Q3,PERSONNEL COMPENSATION,,"DALY, BRENDAN",7/1/10,9/30/10,COMMUNICATIONS DIRECTOR,"43,125.00",FISCAL YEAR 2010,,,,"DALY, BRENDAN"
,OFFICE OF THE SPEAKER,2010Q3,PERSONNEL COMPENSATION,,"MELTZER,RICHARD",8/1/10,8/31/10,POLICY DIRECTOR,"1,041.67",FISCAL YEAR 2010,,,,"MELTZER,RICHARD"
,OFFICE OF THE SPEAKER,2010Q3,PERSONNEL COMPENSATION,,"ONEK,JOSEPH",7/1/10,9/30/10,SENIOR COUNSEL TO THE SPEAKER,"43,125.00",FISCAL YEAR 2010,,,,"ONEK,JOSEPH"
,OFFICE OF THE SPEAKER,2010Q3,PERSONNEL COMPENSATION,,"BARRY,MARY K",7/1/10,9/30/10,SCHEDULING ASSISTANT,"12,802.50",FISCAL YEAR 2010,,,,"BARRY,MARY K"
,OFFICE OF THE SPEAKER,2010Q3,PERSONNEL COMPENSATION,,"BERENS,KELLY E",7/1/10,9/30/10,DIRECTOR OF ADVANCE,"17,923.50",FISCAL YEAR 2010,,,,"BERENS,KELLY E"
,OFFICE OF THE SPEAKER,2010Q3,PERSONNEL COMPENSATION,,"BLOOM, MICHAEL T",9/1/10,9/30/10,POLICY ASSISTANT,"8,446.92",FISCAL YEAR 2010,,,,"BLOOM, MICHAEL T"
,OFFICE OF THE SPEAKER,2010Q3,PERSONNEL COMPENSATION,,"CASHMAN,MARY D",7/1/10,9/30/10,ASSIST TO THE CHIEF OF STAFF,"16,643.01",FISCAL YEAR 2010,,,,"CASHMAN,MARY D"
,OFFICE OF THE SPEAKER,2010Q3,PERSONNEL COMPENSATION,,"CHERRY,STEPHANIE",7/1/10,9/30/10,PRESS ADVISOR,"16,712.25",FISCAL YEAR 2010,,,,"CHERRY,STEPHANIE"
,OFFICE OF THE SPEAKER,2010Q3,PERSONNEL COMPENSATION,,"CHIU,CRYSTAL S",7/1/10,9/30/10,PRESS ASSISTANT,"12,972.99",FISCAL YEAR 2010,,,,"CHIU,CRYSTAL S"
,OFFICE OF THE SPEAKER,2010Q3,PERSONNEL COMPENSATION,,"DEWHIRST, DIANE",7/1/10,9/30/10,SENIOR ADVISOR,"28,500.00",FISCAL YEAR 2010,,,,"DEWHIRST, DIANE"
,OFFICE OF THE SPEAKER,2010Q3,PERSONNEL COMPENSATION,,"ELSHAMI,NADEEM",7/1/10,8/31/10,DEPUTY COMMUNICATIONS DIRECTOR,"27,312.00",FISCAL YEAR 2010,,,,"ELSHAMI,NADEEM"
,OFFICE OF THE SPEAKER,2010Q3,PERSONNEL COMPENSATION,,"ELSHAMI,NADEEM",9/1/10,9/30/10,STAFF ASSISTANT,"13,656.00",FISCAL YEAR 2010,,,,DO
,OFFICE OF THE SPEAKER,2010Q3,PERSONNEL COMPENSATION,,"FALLON,BRIDGET C",7/1/10,9/30/10,DIRECTOR OF PROTOCOL,"29,466.75",FISCAL YEAR 2010,,,,"FALLON,BRIDGET C"
,OFFICE OF THE SPEAKER,2010Q3,PERSONNEL COMPENSATION,,"GEORGE,EVANGELINE M",7/1/10,9/30/10,PRESS ASSISTANT,"9,217.74",FISCAL YEAR 2010,,,,"GEORGE,EVANGELINE M"
,OFFICE OF THE SPEAKER,2010Q3,PERSONNEL COMPENSATION,,"HAMMILL, ANDREW T",7/1/10,9/30/10,PRESS SECRETARY,"24,324.75",FISCAL YEAR 2010,,,,"HAMMILL, ANDREW T"
,OFFICE OF THE SPEAKER,2010Q3,PERSONNEL COMPENSATION,,"HARRILCHAK, MARISA L",7/1/10,9/30/10,FLOOR ASSISTANT,"18,620.25",FISCAL YEAR 2010,,,,"HARRILCHAK, MARISA L"
,OFFICE OF THE SPEAKER,2010Q3,PERSONNEL COMPENSATION,,"HARTZ, JERRY",9/1/10,9/30/10,CONSTITUENT LIAISON,"13,835.67",FISCAL YEAR 2010,,,,"HARTZ, JERRY"
,OFFICE OF THE SPEAKER,2010Q3,PERSONNEL COMPENSATION,,"HARTZ, JERRY",7/1/10,8/31/10,DIRECTOR OF FLOOR OPERATIONS,"27,671.34",FISCAL YEAR 2010,,,,DO
,OFFICE OF THE SPEAKER,2010Q3,PERSONNEL COMPENSATION,,"HAYNES JR, WILFRED J",7/1/10,9/30/10,IT DIRECTOR,"24,530.49",FISCAL YEAR 2010,,,,"HAYNES JR, WILFRED J"
,OFFICE OF THE SPEAKER,2010Q3,PERSONNEL COMPENSATION,,"JONES, SYDNEY",7/1/10,8/1/10,DEPUTY DIRECTOR - MEMBER SVCS,"7,937.55",FISCAL YEAR 2010,,,,"JONES, SYDNEY"
,OFFICE OF THE SPEAKER,2010Q3,PERSONNEL COMPENSATION,,"JONES, SYDNEY",8/1/10,8/1/10,DEPUTY DIRECTOR - MEMBER SVCS (OTHER COMPENSATION),"7,425.45",FISCAL YEAR 2010,,,,DO
,OFFICE OF THE SPEAKER,2010Q3,PERSONNEL COMPENSATION,,"KEITA,KAMILAH Z",9/1/10,9/30/10,DEPUTY INFOMATION TECH. DIRECT,"9,094.33",FISCAL YEAR 2010,,,,"KEITA,KAMILAH Z"
,OFFICE OF THE SPEAKER,2010Q3,PERSONNEL COMPENSATION,,"KERR, STACY R",7/1/10,9/30/10,SPECIAL ASSISTANT,"34,646.49",FISCAL YEAR 2010,,,,"KERR, STACY R"
,OFFICE OF THE SPEAKER,2010Q3,PERSONNEL COMPENSATION,,"LANE, EDGAR C",7/1/10,9/30/10,PRESS ADVISOR,"17,292.24",FISCAL YEAR 2010,,,,"LANE, EDGAR C"
,OFFICE OF THE SPEAKER,2010Q3,PERSONNEL COMPENSATION,,"LANE,GEOFFREY",8/1/10,9/30/10,STAFF ASSISTANT,"5,320.66",FISCAL YEAR 2010,,,,"LANE,GEOFFREY"
,OFFICE OF THE SPEAKER,2010Q3,PERSONNEL COMPENSATION,,"LANE,GEOFFREY",6/1/10,8/31/10,STAFF ASSISTANT (OVERTIME),"1,260.44",FISCAL YEAR 2010,,,,DO
,OFFICE OF THE SPEAKER,2010Q3,PERSONNEL COMPENSATION,,"LASSIG,MEGAN",7/1/10,9/30/10,PRESS ASSISTANT,"12,802.50",FISCAL YEAR 2010,,,,"LASSIG,MEGAN"
,OFFICE OF THE SPEAKER,2010Q3,PERSONNEL COMPENSATION,,"LONG,MICHAEL G",7/1/10,9/30/10,SPECIAL ASSISTANT,"14,082.75",FISCAL YEAR 2010,,,,"LONG,MICHAEL G"
,OFFICE OF THE SPEAKER,2010Q3,PERSONNEL COMPENSATION,,"MANGRUM, PEARL J",8/1/10,9/30/10,FINANCIAL ADMINISTRATOR,"7,916.66",FISCAL YEAR 2010,,,,"MANGRUM, PEARL J"
,OFFICE OF THE SPEAKER,2010Q3,PERSONNEL COMPENSATION,,"MCCULLOUGH, MARY T",8/1/10,9/30/10,ADVISOR TO THE SPEAKER,"11,663.92",FISCAL YEAR 2010,,,,"MCCULLOUGH, MARY T"
,OFFICE OF THE SPEAKER,2010Q3,PERSONNEL COMPENSATION,,"MEDLIN,MELINDA L",7/1/10,9/30/10,DIRECTOR OF SCHEDULING,"35,847.00",FISCAL YEAR 2010,,,,"MEDLIN,MELINDA L"
,OFFICE OF THE SPEAKER,2010Q3,PERSONNEL COMPENSATION,,"MERZ, JULIE E",7/1/10,8/22/10,SPECIAL ASSISTANT,"1,479.40",FISCAL YEAR 2010,,,,"MERZ, JULIE E"
,OFFICE OF THE SPEAKER,2010Q3,PERSONNEL COMPENSATION,,"MOORE, REBECCA G",7/1/10,9/30/10,DEPUTY SCHEDULER,"18,542.25",FISCAL YEAR 2010,,,,"MOORE, REBECCA G"
,OFFICE OF THE SPEAKER,2010Q3,PERSONNEL COMPENSATION,,"NEWTON, KARINA L",7/1/10,9/30/10,DIRECTOR OF NEW MEDIA,"30,948.17",FISCAL YEAR 2010,,,,"NEWTON, KARINA L"
,OFFICE OF THE SPEAKER,2010Q3,PERSONNEL COMPENSATION,,"O'NEILL, CATLIN W",7/1/10,9/30/10,DEPUTY DIR LEG OPERATIONS,"27,933.75",FISCAL YEAR 2010,,,,"O'NEILL, CATLIN W"
,OFFICE OF THE SPEAKER,2010Q3,PERSONNEL COMPENSATION,,"POWELL,JONATHAN M",7/1/10,9/30/10,DEPUTY SPEECHWRITER,"15,363.00",FISCAL YEAR 2010,,,,"POWELL,JONATHAN M"
,OFFICE OF THE SPEAKER,2010Q3,PERSONNEL COMPENSATION,,"QUINTO,RICARDO A",8/1/10,9/30/10,TELEPHONE STAFF ASSISTANT,"5,121.00",FISCAL YEAR 2010,,,,"QUINTO,RICARDO A"
,OFFICE OF THE SPEAKER,2010Q3,PERSONNEL COMPENSATION,,"QUINTO,RICARDO A",6/1/10,8/31/10,TELEPHONE STAFF ASSISTANT (OVERTIME),"1,218.68",FISCAL YEAR 2010,,,,DO
,OFFICE OF THE SPEAKER,2010Q3,PERSONNEL COMPENSATION,,"RAYMOND,SAMUEL H",7/1/10,9/30/10,STAFF ASSISTANT,"7,681.50",FISCAL YEAR 2010,,,,"RAYMOND,SAMUEL H"
,OFFICE OF THE SPEAKER,2010Q3,PERSONNEL COMPENSATION,,"RAYMOND,SAMUEL H",6/1/10,8/31/10,STAFF ASSISTANT (OVERTIME),"3,500.95",FISCAL YEAR 2010,,,,DO
,OFFICE OF THE SPEAKER,2010Q3,PERSONNEL COMPENSATION,,"ROSE,CHERYL P",9/1/10,9/30/10,CONSTITUENT SERVICES REPRESENT,"13,741.33",FISCAL YEAR 2010,,,,"ROSE,CHERYL P"
,OFFICE OF THE SPEAKER,2010Q3,PERSONNEL COMPENSATION,,"ROSE,CHERYL P",7/1/10,8/31/10,DIR OF INTERGOV'T AFFAIRS,"27,482.66",FISCAL YEAR 2010,,,,DO
,OFFICE OF THE SPEAKER,2010Q3,PERSONNEL COMPENSATION,,"SANCHEZ, CARLOS S",7/1/10,9/30/10,PRESS ADVISOR,"16,041.24",FISCAL YEAR 2010,,,,"SANCHEZ, CARLOS S"
,OFFICE OF THE SPEAKER,2010Q3,PERSONNEL COMPENSATION,,"SCHMIDT, AARON",7/1/10,9/30/10,LEGISLATIVE DIRECTOR,"20,484.00",FISCAL YEAR 2010,,,,"SCHMIDT, AARON"
,OFFICE OF THE SPEAKER,2010Q3,PERSONNEL COMPENSATION,,"SHYU,ELISA",7/1/10,9/30/10,ADVANCE ASSISTANT,"12,772.26",FISCAL YEAR 2010,,,,"SHYU,ELISA"
,OFFICE OF THE SPEAKER,2010Q3,PERSONNEL COMPENSATION,,"SILVERMAN,DAVID",8/1/10,9/30/10,STAFF ASSISTANT,"6,012.34",FISCAL YEAR 2010,,,,"SILVERMAN,DAVID"
,OFFICE OF THE SPEAKER,2010Q3,PERSONNEL COMPENSATION,,"SILVERMAN,DAVID",6/1/10,6/30/10,STAFF ASSISTANT (OVERTIME),117.07,FISCAL YEAR 2010,,,,DO
,OFFICE OF THE SPEAKER,2010Q3,PERSONNEL COMPENSATION,,"STALLMAN, ERIK R",7/1/10,9/30/10,COUNSEL AND POLICY ADVISOR,"28,933.74",FISCAL YEAR 2010,,,,"STALLMAN, ERIK R"
,OFFICE OF THE SPEAKER,2010Q3,PERSONNEL COMPENSATION,,"STIVERS, JONATHAN",7/1/10,9/30/10,SENIOR ADVISOR,"33,750.00",FISCAL YEAR 2010,,,,"STIVERS, JONATHAN"
,OFFICE OF THE SPEAKER,2010Q3,PERSONNEL COMPENSATION,,"SURGEON,BINA G",9/1/10,9/30/10,DEPUTY DIRECTOR OF PROTOCOL,"7,694.25",FISCAL YEAR 2010,,,,"SURGEON,BINA G"
,OFFICE OF THE SPEAKER,2010Q3,PERSONNEL COMPENSATION,,"THOMAS, AMELIA J",8/1/10,9/30/10,OFFICE ADMINISTRATOR,"4,583.34",FISCAL YEAR 2010,,,,"THOMAS, AMELIA J"
,OFFICE OF THE SPEAKER,2010Q3,PERSONNEL COMPENSATION,,"THORNELL,DOUGLASS",7/1/10,9/30/10,SHARED EMPLOYEE,"13,442.76",FISCAL YEAR 2010,,,,"THORNELL,DOUGLASS"
,OFFICE OF THE SPEAKER,2010Q3,PERSONNEL COMPENSATION,,"VEITCH, ALEXANDRA N",7/1/10,9/30/10,DIRECTOR OF SPEECHWRITING,"28,165.50",FISCAL YEAR 2010,,,,"VEITCH, ALEXANDRA N"
,OFFICE OF THE SPEAKER,2010Q3,PERSONNEL COMPENSATION,,"WIDMANN,MICHELLE C",7/1/10,9/30/10,STAFF ASSISTANT,"7,681.50",FISCAL YEAR 2010,,,,"WIDMANN,MICHELLE C"
,OFFICE OF THE SPEAKER,2010Q3,PERSONNEL COMPENSATION,,"WOLTERS, KATE",7/1/10,9/30/10,PERSONAL ASSISTANT,"24,875.01",FISCAL YEAR 2010,,,,"WOLTERS, KATE"
,OFFICE OF THE SPEAKER,2010Q3,PERSONNEL COMPENSATION,,"WOOTERS III,CHARLES R",7/1/10,9/30/10,DIRECTOR,"33,286.50",FISCAL YEAR 2010,,,,"WOOTERS III,CHARLES R"
,OFFICE OF THE SPEAKER,2010Q3,TRAVEL,,"07_26   P1 10SH0100618      CHIU,CRYSTAL S",6/26/10,6/26/10,"TAXI, PARKING, TOLLS",20,FISCAL YEAR 2010,,,,"07_26   P1 10SH0100618      CHIU,CRYSTAL S"
,OFFICE OF THE SPEAKER,2010Q3,TRAVEL,,"07_26   P1 10SH0100621      HAMMILL, ANDREW T",6/16/10,6/16/10,"TAXI, PARKING, TOLLS",30,FISCAL YEAR 2010,,,,"07_26   P1 10SH0100621      HAMMILL, ANDREW T"
,OFFICE OF THE SPEAKER,2010Q3,TRAVEL,,"07_26   P1 10SH0100617      SHYU,ELISA",6/22/10,6/26/10,"TAXI, PARKING, TOLLS",47,FISCAL YEAR 2010,,,,"07_26   P1 10SH0100617      SHYU,ELISA"
,OFFICE OF THE SPEAKER,2010Q3,TRAVEL,,"07_28   P1 10SH0100631      BERENS,KELLY E",6/24/10,7/2/10,"TAXI, PARKING, TOLLS",103,FISCAL YEAR 2010,,,,"07_28   P1 10SH0100631      BERENS,KELLY E"
,OFFICE OF THE SPEAKER,2010Q3,TRAVEL,,07_28   P1 10SH0100632      CITIBANK GOV CARD SERVICE,6/25/10,6/26/10,TRAVEL REIMBURSEMENT,"1,900.02",FISCAL YEAR 2010,,,,07_28   P1 10SH0100632      CITIBANK GOV CARD SERVICE
,OFFICE OF THE SPEAKER,2010Q3,TRAVEL,,07_28   P1 10SH0100633           DO,5/28/10,6/2/10,TRAVEL REIMBURSEMENT,"1,339.44",FISCAL YEAR 2010,,,,07_28   P1 10SH0100633           DO
,OFFICE OF THE SPEAKER,2010Q3,TRAVEL,,"07_28   P1 10SH0100642      LAWRENCE, JOHN A",7/14/10,7/14/10,"TAXI, PARKING, TOLLS",10,FISCAL YEAR 2010,,,,"07_28   P1 10SH0100642      LAWRENCE, JOHN A"
,OFFICE OF THE SPEAKER,2010Q3,TRAVEL,,"07_29   P1 10SH0100657      CHIU,CRYSTAL S",7/15/10,7/15/10,"TAXI, PARKING, TOLLS",18,FISCAL YEAR 2010,,,,"07_29   P1 10SH0100657      CHIU,CRYSTAL S"
,OFFICE OF THE SPEAKER,2010Q3,TRAVEL,,"07_30   P1 10SH0100656      WOLTERS, KATE",6/15/10,6/15/10,"TAXI, PARKING, TOLLS",20.5,FISCAL YEAR 2010,,,,"07_30   P1 10SH0100656      WOLTERS, KATE"
,OFFICE OF THE SPEAKER,2010Q3,TRAVEL,,08_05   P1 10SH0100662      CITIBANK GOV CARD SERVICE,5/27/10,6/28/10,TRAVEL REIMBURSEMENT,"5,020.81",FISCAL YEAR 2010,,,,08_05   P1 10SH0100662      CITIBANK GOV CARD SERVICE
,OFFICE OF THE SPEAKER,2010Q3,TRAVEL,,"08_10   P1 10SH0100693      SHYU,ELISA",6/30/10,7/21/10,"TAXI, PARKING, TOLLS",119,FISCAL YEAR 2010,,,,"08_10   P1 10SH0100693      SHYU,ELISA"
,OFFICE OF THE SPEAKER,2010Q3,TRAVEL,,08_10   P1 10SH0100694           DO,7/26/10,7/26/10,"TAXI, PARKING, TOLLS",15,FISCAL YEAR 2010,,,,08_10   P1 10SH0100694           DO
,OFFICE OF THE SPEAKER,2010Q3,TRAVEL,,"08_10   P1 10SH0100692      WOLTERS, KATE",7/24/10,7/24/10,TRAVEL REIMBURSEMENT,68.09,FISCAL YEAR 2010,,,,"08_10   P1 10SH0100692      WOLTERS, KATE"
,OFFICE OF THE SPEAKER,2010Q3,TRAVEL,,"08_17 P1 10SH0100697          ROSE,CHERYL P",7/24/10,7/26/10,TRAVEL REIMBURSEMENT,110.17,FISCAL YEAR 2010,,,,"08_17 P1 10SH0100697          ROSE,CHERYL P"
,OFFICE OF THE SPEAKER,2010Q3,TRAVEL,,"08_17 P1 10SH0100696          STIVERS, JONATHAN",6/23/10,7/28/10,"TAXI, PARKING, TOLLS",87,FISCAL YEAR 2010,,,,"08_17 P1 10SH0100696          STIVERS, JONATHAN"
,OFFICE OF THE SPEAKER,2010Q3,TRAVEL,,"08_26 P1 10SH0100732          BERENS,KELLY E",7/23/10,7/27/10,TRAVEL REIMBURSEMENT,73,FISCAL YEAR 2010,,,,"08_26 P1 10SH0100732          BERENS,KELLY E"
,OFFICE OF THE SPEAKER,2010Q3,TRAVEL,,08_26 P1 10SH0100733               DO,8/4/10,8/6/10,TRAVEL REIMBURSEMENT,47.96,FISCAL YEAR 2010,,,,08_26 P1 10SH0100733               DO
,OFFICE OF THE SPEAKER,2010Q3,TRAVEL,,"08_26 P1 10SH0100716          CHIU,CRYSTAL S",8/4/10,8/6/10,TRAVEL REIMBURSEMENT,42.18,FISCAL YEAR 2010,,,,"08_26 P1 10SH0100716          CHIU,CRYSTAL S"
,OFFICE OF THE SPEAKER,2010Q3,TRAVEL,,08_26 P1 10SH0100706          CITIBANK GOV CARD SERVICE,6/27/10,8/5/10,TRAVEL REIMBURSEMENT,"5,706.38",FISCAL YEAR 2010,,,,08_26 P1 10SH0100706          CITIBANK GOV CARD SERVICE
,OFFICE OF THE SPEAKER,2010Q3,TRAVEL,,08_26 P1 10SH0100707               DO,6/29/10,7/26/10,TRAVEL REIMBURSEMENT,"3,113.07",FISCAL YEAR 2010,,,,08_26 P1 10SH0100707               DO
,OFFICE OF THE SPEAKER,2010Q3,TRAVEL,,08_26 P1 10SH0100708               DO,6/30/10,7/26/10,TRAVEL REIMBURSEMENT,"5,504.60",FISCAL YEAR 2010,,,,08_26 P1 10SH0100708               DO
,OFFICE OF THE SPEAKER,2010Q3,TRAVEL,,"08_26 P1 10SH0100715          LIZARRAGA, JAIME E",8/3/10,8/5/10,TRAVEL REIMBURSEMENT,46.91,FISCAL YEAR 2010,,,,"08_26 P1 10SH0100715          LIZARRAGA, JAIME E"
,OFFICE OF THE SPEAKER,2010Q3,TRAVEL,,"08_26 P1 10SH0100718          SANCHEZ, CARLOS S",8/2/10,8/8/10,TRAVEL REIMBURSEMENT,157.36,FISCAL YEAR 2010,,,,"08_26 P1 10SH0100718          SANCHEZ, CARLOS S"
,OFFICE OF THE SPEAKER,2010Q3,TRAVEL,,"08_26 P1 10SH0100719          SHYU,ELISA",8/3/10,8/4/10,TRAVEL REIMBURSEMENT,35.32,FISCAL YEAR 2010,,,,"08_26 P1 10SH0100719          SHYU,ELISA"
,OFFICE OF THE SPEAKER,2010Q3,TRAVEL,,"08_26 P1 10SH0100717          WOLTERS, KATE",8/2/10,8/8/10,TRAVEL REIMBURSEMENT,"1,027.47",FISCAL YEAR 2010,,,,"08_26 P1 10SH0100717          WOLTERS, KATE"
,OFFICE OF THE SPEAKER,2010Q3,TRAVEL,,09_15 P1 10SH0100741          CITIBANK GOV CARD SERVICE,7/27/10,8/30/10,TRAVEL REIMBURSEMENT,"3,598.91",FISCAL YEAR 2010,,,,09_15 P1 10SH0100741          CITIBANK GOV CARD SERVICE
,OFFICE OF THE SPEAKER,2010Q3,TRAVEL,,"09_20 P1 10SH0100747          WOLTERS, KATE",8/31/10,9/2/10,TRAVEL REIMBURSEMENT,780.76,FISCAL YEAR 2010,,,,"09_20 P1 10SH0100747          WOLTERS, KATE"
,OFFICE OF THE SPEAKER,2010Q3,TRAVEL,,09_21 P1 10SH0100754          CITIBANK GOV CARD SERVICE,7/28/10,8/15/10,TRAVEL REIMBURSEMENT,"2,959.33",FISCAL YEAR 2010,,,,09_21 P1 10SH0100754          CITIBANK GOV CARD SERVICE
,OFFICE OF THE SPEAKER,2010Q3,TRAVEL,,"09_24 P1 10SH0100756          BERENS,KELLY E",8/30/10,9/1/10,"TAXI, PARKING, TOLLS",37,FISCAL YEAR 2010,,,,"09_24 P1 10SH0100756          BERENS,KELLY E"
,OFFICE OF THE SPEAKER,2010Q3,TRAVEL,,09_25 P1 10SH0100769          CITIBANK GOV CARD SERVICE,8/2/10,8/23/10,TRAVEL REIMBURSEMENT,"3,711.95",FISCAL YEAR 2010,,,,09_25 P1 10SH0100769          CITIBANK GOV CARD SERVICE
,OFFICE OF THE SPEAKER,2010Q3,TRAVEL,,"09_25 P1 10SH0100770          WAYLAND,KAREN G",8/16/10,8/19/10,TRAVEL REIMBURSEMENT,99.23,FISCAL YEAR 2010,,,,"09_25 P1 10SH0100770          WAYLAND,KAREN G"
,OFFICE OF THE SPEAKER,2010Q3,TRAVEL,,09_25 P1 10SH0100771               DO,9/14/10,9/14/10,"TAXI, PARKING, TOLLS",28,FISCAL YEAR 2010,,,,09_25 P1 10SH0100771               DO
,OFFICE OF THE SPEAKER,2010Q3,TRAVEL,,"09_28 P1 10SH0100773          WOLTERS, KATE",9/17/10,9/18/10,TRAVEL REIMBURSEMENT,199.8,FISCAL YEAR 2010,,,,"09_28 P1 10SH0100773          WOLTERS, KATE"
,OFFICE OF THE SPEAKER,2010Q3,"RENT, COMMUNICATION, UTILITIES",,07_13       P1    10SH0100606     CITIBANK GOV CARD SERVICE,4/29/10,4/29/10,RECORDING (OUTSIDE),599,FISCAL YEAR 2010,,,,07_13       P1    10SH0100606     CITIBANK GOV CARD SERVICE
,OFFICE OF THE SPEAKER,2010Q3,"RENT, COMMUNICATION, UTILITIES",,07_13       P1    10SH0100609           DO,5/11/10,5/17/10,UTILITIES,45.38,FISCAL YEAR 2010,,,,07_13       P1    10SH0100609           DO
,OFFICE OF THE SPEAKER,2010Q3,"RENT, COMMUNICATION, UTILITIES",,07_13       P1    10SH0100615           DO,6/11/10,6/17/10,UTILITIES,45.38,FISCAL YEAR 2010,,,,07_13       P1    10SH0100615           DO
,OFFICE OF THE SPEAKER,2010Q3,"RENT, COMMUNICATION, UTILITIES",,07_28       P1    10SH0100643     FEDERAL EXPRESS,6/15/10,6/15/10,POSTAGE/COURIER/BOX RENTAL,12.16,FISCAL YEAR 2010,,,,07_28       P1    10SH0100643     FEDERAL EXPRESS
,OFFICE OF THE SPEAKER,2010Q3,"RENT, COMMUNICATION, UTILITIES",,"07_29       P1    10SH0100654     EFE NEWS SERVICE, INC",7/1/10,7/31/10,NEWS WIRE SERVICE,550.15,FISCAL YEAR 2010,,,,"07_29       P1    10SH0100654     EFE NEWS SERVICE, INC"
,OFFICE OF THE SPEAKER,2010Q3,"RENT, COMMUNICATION, UTILITIES",,07_29       P1    10SH0100653     FEDERAL EXPRESS,6/24/10,6/24/10,POSTAGE/COURIER/BOX RENTAL,4.61,FISCAL YEAR 2010,,,,07_29       P1    10SH0100653     FEDERAL EXPRESS
,OFFICE OF THE SPEAKER,2010Q3,"RENT, COMMUNICATION, UTILITIES",,08_10       P1    10SH0100688           DO,7/13/10,7/13/10,POSTAGE/COURIER/BOX RENTAL,6.24,FISCAL YEAR 2010,,,,08_10       P1    10SH0100688           DO
,OFFICE OF THE SPEAKER,2010Q3,"RENT, COMMUNICATION, UTILITIES",,08_10       P1    10SH0100689           DO,7/1/10,7/1/10,POSTAGE/COURIER/BOX RENTAL,7.13,FISCAL YEAR 2010,,,,08_10       P1    10SH0100689           DO
,OFFICE OF THE SPEAKER,2010Q3,"RENT, COMMUNICATION, UTILITIES",,08_26       P1    10SH0100713     CITIBANK GOV CARD SERVICE,7/11/10,7/17/10,UTILITIES,45.38,FISCAL YEAR 2010,,,,08_26       P1    10SH0100713     CITIBANK GOV CARD SERVICE
,OFFICE OF THE SPEAKER,2010Q3,"RENT, COMMUNICATION, UTILITIES",,09_20       P1    10SH0100742     FEDERAL EXPRESS,7/30/10,8/4/10,POSTAGE/COURIER/BOX RENTAL,18.85,FISCAL YEAR 2010,,,,09_20       P1    10SH0100742     FEDERAL EXPRESS
,OFFICE OF THE SPEAKER,2010Q3,"RENT, COMMUNICATION, UTILITIES",,09_20       P1    10SH0100743           DO,7/28/10,7/28/10,POSTAGE/COURIER/BOX RENTAL,9.89,FISCAL YEAR 2010,,,,09_20       P1    10SH0100743           DO
,OFFICE OF THE SPEAKER,2010Q3,"RENT, COMMUNICATION, UTILITIES",,09_20       P1    10SH0100744           DO,7/23/10,7/26/10,POSTAGE/COURIER/BOX RENTAL,15.95,FISCAL YEAR 2010,,,,09_20       P1    10SH0100744           DO
,OFFICE OF THE SPEAKER,2010Q3,"RENT, COMMUNICATION, UTILITIES",,09_20       P1    10SH0100745           DO,8/17/10,8/17/10,POSTAGE/COURIER/BOX RENTAL,11.36,FISCAL YEAR 2010,,,,09_20       P1    10SH0100745           DO
,OFFICE OF THE SPEAKER,2010Q3,"RENT, COMMUNICATION, UTILITIES",,"09_25       P1    10SH0100763     FALLON,BRIDGET C",9/20/10,9/20/10,POSTAGE/COURIER/BOX RENTAL,15,FISCAL YEAR 2010,,,,"09_25       P1    10SH0100763     FALLON,BRIDGET C"
,OFFICE OF THE SPEAKER,2010Q3,PRINTING AND REPRODUCTION,,07_26       S3    10207000192,7/1/10,7/31/10,PHOTOGRAPHIC (TRANSFER),393,FISCAL YEAR 2010,,,,07_26       S3    10207000192
,OFFICE OF THE SPEAKER,2010Q3,PRINTING AND REPRODUCTION,,07_29       P1    10SH0100651      DOYLE PRINTING & OFFSET CO,7/15/10,7/15/10,PRINTING AND REPRODUCTION,795,FISCAL YEAR 2010,,,,07_29       P1    10SH0100651      DOYLE PRINTING & OFFSET CO
,OFFICE OF THE SPEAKER,2010Q3,PRINTING AND REPRODUCTION,,08_26       S3    10238000190,8/1/10,8/31/10,PHOTOGRAPHIC (TRANSFER),880.08,FISCAL YEAR 2010,,,,08_26       S3    10238000190
,OFFICE OF THE SPEAKER,2010Q3,PRINTING AND REPRODUCTION,,"08_26       P1    10SH0100720      DAVID L. ANDRUKITUS, INC",8/6/10,8/6/10,PRINTING AND REPRODUCTION,257.5,FISCAL YEAR 2010,,,,"08_26       P1    10SH0100720      DAVID L. ANDRUKITUS, INC"
,OFFICE OF THE SPEAKER,2010Q3,PRINTING AND REPRODUCTION,,09_03       P1    10SH0100740               DO,8/27/10,8/27/10,PRINTING AND REPRODUCTION,875,FISCAL YEAR 2010,,,,09_03       P1    10SH0100740               DO
,OFFICE OF THE SPEAKER,2010Q3,PRINTING AND REPRODUCTION,,09_03   P1 10SH0100736                  DOYLE PRINTING & OFFSET CO,8/25/10,8/25/10,PRINTING AND REPRODUCTION,"1,435.00",FISCAL YEAR 2010,,,,09_03   P1 10SH0100736                  DOYLE PRINTING & OFFSET CO
,OFFICE OF THE SPEAKER,2010Q3,PRINTING AND REPRODUCTION,,"09_24   P1 10SH0100757                  BERENS,KELLY E",9/1/10,9/1/10,PRINTING AND REPRODUCTION,60.86,FISCAL YEAR 2010,,,,"09_24   P1 10SH0100757                  BERENS,KELLY E"
,OFFICE OF THE SPEAKER,2010Q3,PRINTING AND REPRODUCTION,,09_27   S3 10273000073,9/1/10,9/30/10,PHOTOGRAPHIC (TRANSFER),528,FISCAL YEAR 2010,,,,09_27   S3 10273000073
,OFFICE OF THE SPEAKER,2010Q3,OTHER SERVICES,,08_09   P1   10SH0100663                BERNARD RAIMO,7/1/10,7/31/10,CONSULTANT CONTRACT SERVICE,"7,628.00",FISCAL YEAR 2010,,,,08_09   P1   10SH0100663                BERNARD RAIMO
,OFFICE OF THE SPEAKER,2010Q3,OTHER SERVICES,,08_26   P1   10SH0100712                CITIBANK GOV CARD SERVICE,7/5/10,7/5/10,"WEB DEV,HOSTNG,EMAIL & REL SVC",29.55,FISCAL YEAR 2010,,,,08_26   P1   10SH0100712                CITIBANK GOV CARD SERVICE
,OFFICE OF THE SPEAKER,2010Q3,OTHER SERVICES,,09_01   P1   10SH0100735                BERNARD RAIMO,8/1/10,8/31/10,CONSULTANT CONTRACT SERVICE,"7,628.00",FISCAL YEAR 2010,,,,09_01   P1   10SH0100735                BERNARD RAIMO
,OFFICE OF THE SPEAKER,2010Q3,OTHER SERVICES,,09_21   P1   10SH0100753                     DO,9/1/10,9/30/10,CONSULTANT CONTRACT SERVICE,"7,628.00",FISCAL YEAR 2010,,,,09_21   P1   10SH0100753                     DO
,OFFICE OF THE SPEAKER,2010Q3,SUPPLIES AND MATERIALS,,07_01   P1   10SH0100596      CHEMICAL WEEK REGULATORY WATCH,6/2/10,6/1/11,PUBLICATION REF MATERIAL,899,FISCAL YEAR 2010,,,,07_01   P1   10SH0100596      CHEMICAL WEEK REGULATORY WATCH
,OFFICE OF THE SPEAKER,2010Q3,SUPPLIES AND MATERIALS,,07_12   P1   10SH0100611      MILLICENT BLUFORD,6/28/10,6/28/10,HABITATION EXPENSES,225,FISCAL YEAR 2010,,,,07_12   P1   10SH0100611      MILLICENT BLUFORD
,OFFICE OF THE SPEAKER,2010Q3,SUPPLIES AND MATERIALS,,07_13   P1   10SH0100605      CITIBANK GOV CARD SERVICE,4/28/10,5/26/10,FOOD & BEVERAGE,"1,226.61",FISCAL YEAR 2010,,,,07_13   P1   10SH0100605      CITIBANK GOV CARD SERVICE
,OFFICE OF THE SPEAKER,2010Q3,SUPPLIES AND MATERIALS,,07_13   P1   10SH0100610           DO,5/12/10,5/19/10,PUBLICATION REF MATERIAL,5.22,FISCAL YEAR 2010,,,,07_13   P1   10SH0100610           DO
,OFFICE OF THE SPEAKER,2010Q3,SUPPLIES AND MATERIALS,,07_13   P1   10SH0100613           DO,6/9/10,6/23/10,FOOD & BEVERAGE,309.03,FISCAL YEAR 2010,,,,07_13   P1   10SH0100613           DO
,OFFICE OF THE SPEAKER,2010Q3,SUPPLIES AND MATERIALS,,07_13   P1   10SH0100616           DO,6/24/10,6/24/10,PUBLICATION REF MATERIAL,6.79,FISCAL YEAR 2010,,,,07_13   P1   10SH0100616           DO
,OFFICE OF THE SPEAKER,2010Q3,SUPPLIES AND MATERIALS,,"07_26   P1   10SH0100619      CHIU,CRYSTAL S",6/25/10,6/25/10,PUBLICATION REF MATERIAL,0.75,FISCAL YEAR 2010,,,,"07_26   P1   10SH0100619      CHIU,CRYSTAL S"
,OFFICE OF THE SPEAKER,2010Q3,SUPPLIES AND MATERIALS,,07_26   P1   10SH0100622      CRYSTAL SPRINGS,5/20/10,6/17/10,FOOD & BEVERAGE,"1,374.00",FISCAL YEAR 2010,,,,07_26   P1   10SH0100622      CRYSTAL SPRINGS
,OFFICE OF THE SPEAKER,2010Q3,SUPPLIES AND MATERIALS,,"07_26   P1   10SH0100620      HAMMILL, ANDREW T",3/20/10,5/2/10,PUBLICATION REF MATERIAL,135.28,FISCAL YEAR 2010,,,,"07_26   P1   10SH0100620      HAMMILL, ANDREW T"
,OFFICE OF THE SPEAKER,2010Q3,SUPPLIES AND MATERIALS,,"07_26   P1   10SH0100626      LEADERSHIP DIRECTORIES, INC",9/1/10,8/31/11,PUBLICATION REF MATERIAL,525,FISCAL YEAR 2010,,,,"07_26   P1   10SH0100626      LEADERSHIP DIRECTORIES, INC"
,OFFICE OF THE SPEAKER,2010Q3,SUPPLIES AND MATERIALS,,07_26   P1   10SH0100623      PR NEWSWIRE,6/1/10,6/30/10,PUBLICATION REF MATERIAL,"1,000.00",FISCAL YEAR 2010,,,,07_26   P1   10SH0100623      PR NEWSWIRE
,OFFICE OF THE SPEAKER,2010Q3,SUPPLIES AND MATERIALS,,07_26   P1   10SH0100624           DO,4/1/10,4/30/10,PUBLICATION REF MATERIAL,"1,000.00",FISCAL YEAR 2010,,,,07_26   P1   10SH0100624           DO
,OFFICE OF THE SPEAKER,2010Q3,SUPPLIES AND MATERIALS,,07_26   P1   10SH0100625           DO,5/1/10,5/31/10,PUBLICATION REF MATERIAL,"1,000.00",FISCAL YEAR 2010,,,,07_26   P1   10SH0100625           DO
,OFFICE OF THE SPEAKER,2010Q3,SUPPLIES AND MATERIALS,,07_28   P1   10SH0100635      CAPITOLHOST,6/23/10,6/23/10,FOOD & BEVERAGE,67.5,FISCAL YEAR 2010,,,,07_28   P1   10SH0100635      CAPITOLHOST
,OFFICE OF THE SPEAKER,2010Q3,SUPPLIES AND MATERIALS,,07_28   P1   10SH0100636           DO,6/9/10,6/9/10,FOOD & BEVERAGE,67.5,FISCAL YEAR 2010,,,,07_28   P1   10SH0100636           DO
,OFFICE OF THE SPEAKER,2010Q3,SUPPLIES AND MATERIALS,,07_28   P1   10SH0100637           DO,6/30/10,6/30/10,FOOD & BEVERAGE,67.5,FISCAL YEAR 2010,,,,07_28   P1   10SH0100637           DO
,OFFICE OF THE SPEAKER,2010Q3,SUPPLIES AND MATERIALS,,07_28   P1   10SH0100644      HAGUE QUALITY WATER,7/15/10,7/15/10,BOTTLED WATER,315,FISCAL YEAR 2010,,,,07_28   P1   10SH0100644      HAGUE QUALITY WATER
,OFFICE OF THE SPEAKER,2010Q3,SUPPLIES AND MATERIALS,,07_28   P1   10SH0100640      MILLICENT BLUFORD,7/13/10,7/13/10,HABITATION EXPENSES,225,FISCAL YEAR 2010,,,,07_28   P1   10SH0100640      MILLICENT BLUFORD
,OFFICE OF THE SPEAKER,2010Q3,SUPPLIES AND MATERIALS,,07_28   P1   10SH0100641           DO,3/22/10,3/22/10,HABITATION EXPENSES,225,FISCAL YEAR 2010,,,,07_28   P1   10SH0100641           DO
,OFFICE OF THE SPEAKER,2010Q3,SUPPLIES AND MATERIALS,,07_29   P1   10SH0100652      LEXIS-NEXIS,6/1/10,6/30/10,PUBLICATION REF MATERIAL,"1,543.00",FISCAL YEAR 2010,,,,07_29   P1   10SH0100652      LEXIS-NEXIS
,OFFICE OF THE SPEAKER,2010Q3,SUPPLIES AND MATERIALS,,07_29   P1   10SH0100655      MILLICENT BLUFORD,7/19/10,7/19/10,HABITATION EXPENSES,225,FISCAL YEAR 2010,,,,07_29   P1   10SH0100655      MILLICENT BLUFORD
,OFFICE OF THE SPEAKER,2010Q3,SUPPLIES AND MATERIALS,,"07_29   P1   10SH0100659      ULTRAVOILET FLOWERS, LLC",1/5/09,2/9/09,HABITATION EXPENSES,"1,479.97",FISCAL YEAR 2010,,,,"07_29   P1   10SH0100659      ULTRAVOILET FLOWERS, LLC"
,OFFICE OF THE SPEAKER,2010Q3,SUPPLIES AND MATERIALS,,08_05   C1   NW201021504      DEER PARK,6/30/10,6/30/10,BOTTLED WATER,8,FISCAL YEAR 2010,,,,08_05   C1   NW201021504      DEER PARK
,OFFICE OF THE SPEAKER,2010Q3,SUPPLIES AND MATERIALS,,08_09   P1   10SH0100666      MILLICENT BLUFORD,7/26/10,7/26/10,HABITATION EXPENSES,895,FISCAL YEAR 2010,,,,08_09   P1   10SH0100666      MILLICENT BLUFORD
,OFFICE OF THE SPEAKER,2010Q3,SUPPLIES AND MATERIALS,,08_09   P1   10SH0100667           DO,7/26/10,7/26/10,HABITATION EXPENSES,450,FISCAL YEAR 2010,,,,08_09   P1   10SH0100667           DO
,OFFICE OF THE SPEAKER,2010Q3,SUPPLIES AND MATERIALS,,08_10   P1   10SH0100690      CAPITOLHOST,7/14/10,7/14/10,FOOD & BEVERAGE,67.5,FISCAL YEAR 2010,,,,08_10   P1   10SH0100690      CAPITOLHOST
,OFFICE OF THE SPEAKER,2010Q3,SUPPLIES AND MATERIALS,,08_10   P1   10SH0100687      PR NEWSWIRE,7/1/10,7/31/10,PUBLICATION REF MATERIAL,"1,000.00",FISCAL YEAR 2010,,,,08_10   P1   10SH0100687      PR NEWSWIRE
,OFFICE OF THE SPEAKER,2010Q3,SUPPLIES AND MATERIALS,,"08_10   P1   10SH0100695      SHYU,ELISA",7/24/10,7/24/10,PUBLICATION REF MATERIAL,5.83,FISCAL YEAR 2010,,,,"08_10   P1   10SH0100695      SHYU,ELISA"
,OFFICE OF THE SPEAKER,2010Q3,SUPPLIES AND MATERIALS,,08_17   P1   10SH0100701      BURRELLE`S INFORMATION,5/1/10,5/31/10,PUBLICATION REF MATERIAL,605.26,FISCAL YEAR 2010,,,,08_17   P1   10SH0100701      BURRELLE`S INFORMATION
,OFFICE OF THE SPEAKER,2010Q3,SUPPLIES AND MATERIALS,,08_17   P1   10SH0100702           DO,6/1/10,6/30/10,PUBLICATION REF MATERIAL,513.46,FISCAL YEAR 2010,,,,08_17   P1   10SH0100702           DO
,OFFICE OF THE SPEAKER,2010Q3,SUPPLIES AND MATERIALS,,08_17   P1   10SH0100703           DO,7/1/10,7/31/10,PUBLICATION REF MATERIAL,516.56,FISCAL YEAR 2010,,,,08_17   P1   10SH0100703           DO
,OFFICE OF THE SPEAKER,2010Q3,SUPPLIES AND MATERIALS,,08_23   C1   NW201023104      DEER PARK,7/31/10,7/31/10,BOTTLED WATER,8,FISCAL YEAR 2010,,,,08_23   C1   NW201023104      DEER PARK
,OFFICE OF THE SPEAKER,2010Q3,SUPPLIES AND MATERIALS,,"08_26   P1   10SH0100723      CISION US, INC",4/30/10,4/30/11,PUBLICATION REF MATERIAL,"8,374.00",FISCAL YEAR 2010,,,,"08_26   P1   10SH0100723      CISION US, INC"
,OFFICE OF THE SPEAKER,2010Q3,SUPPLIES AND MATERIALS,,08_26   P1   10SH0100709      CITIBANK GOV CARD SERVICE,6/30/10,7/27/10,FOOD & BEVERAGE,280.21,FISCAL YEAR 2010,,,,08_26   P1   10SH0100709      CITIBANK GOV CARD SERVICE
,OFFICE OF THE SPEAKER,2010Q3,SUPPLIES AND MATERIALS,,08_26   P1   10SH0100710           DO,6/30/10,6/30/10,HABITATION EXPENSES,370,FISCAL YEAR 2010,,,,08_26   P1   10SH0100710           DO
,OFFICE OF THE SPEAKER,2010Q3,SUPPLIES AND MATERIALS,,08_26   P1   10SH0100711           DO,7/1/10,7/19/10,OFFICE SUPPLIES OUTSIDE,"1,027.03",FISCAL YEAR 2010,,,,08_26   P1   10SH0100711           DO
,OFFICE OF THE SPEAKER,2010Q3,SUPPLIES AND MATERIALS,,08_26   P1   10SH0100714           DO,7/14/10,7/19/10,PUBLICATION REF MATERIAL,3.27,FISCAL YEAR 2010,,,,08_26   P1   10SH0100714           DO
,OFFICE OF THE SPEAKER,2010Q3,SUPPLIES AND MATERIALS,,08_26 P1 10SH0100730          CRYSTAL SPRINGS,6/25/10,7/15/10,FOOD & BEVERAGE,"1,195.23",FISCAL YEAR 2010,,,,08_26 P1 10SH0100730          CRYSTAL SPRINGS
,OFFICE OF THE SPEAKER,2010Q3,SUPPLIES AND MATERIALS,,08_26 P1 10SH0100729          HAGUE QUALITY WATER,8/1/10,8/31/10,BOTTLED WATER,441,FISCAL YEAR 2010,,,,08_26 P1 10SH0100729          HAGUE QUALITY WATER
,OFFICE OF THE SPEAKER,2010Q3,SUPPLIES AND MATERIALS,,08_26 P1 10SH0100728          OCCASIONS CATERERS,7/26/10,7/26/10,FOOD & BEVERAGE,"13,526.00",FISCAL YEAR 2010,,,,08_26 P1 10SH0100728          OCCASIONS CATERERS
,OFFICE OF THE SPEAKER,2010Q3,SUPPLIES AND MATERIALS,,09_20 P1 10SH0100752          BURRELLES LUCE,8/1/10,8/31/10,PUBLICATION REF MATERIAL,648.86,FISCAL YEAR 2010,,,,09_20 P1 10SH0100752          BURRELLES LUCE
,OFFICE OF THE SPEAKER,2010Q3,SUPPLIES AND MATERIALS,,09_20 P1 10SH0100750          CRYSTAL SPRINGS,7/29/10,8/12/10,FOOD & BEVERAGE,963.78,FISCAL YEAR 2010,,,,09_20 P1 10SH0100750          CRYSTAL SPRINGS
,OFFICE OF THE SPEAKER,2010Q3,SUPPLIES AND MATERIALS,,09_20 C1 NW201025904          DEER PARK,8/31/10,8/31/10,BOTTLED WATER,8,FISCAL YEAR 2010,,,,09_20 C1 NW201025904          DEER PARK
,OFFICE OF THE SPEAKER,2010Q3,SUPPLIES AND MATERIALS,,"09_20 P1 10SH0100746          LEADERSHIP DIRECTORIES, INC",9/1/10,9/1/11,PUBLICATION REF MATERIAL,525,FISCAL YEAR 2010,,,,"09_20 P1 10SH0100746          LEADERSHIP DIRECTORIES, INC"
,OFFICE OF THE SPEAKER,2010Q3,SUPPLIES AND MATERIALS,,09_20 P1 10SH0100751          PR NEWSWIRE,8/1/10,8/31/10,PUBLICATION REF MATERIAL,"1,000.00",FISCAL YEAR 2010,,,,09_20 P1 10SH0100751          PR NEWSWIRE
,OFFICE OF THE SPEAKER,2010Q3,SUPPLIES AND MATERIALS,,"09_24 P1 10SH0100759          EFE NEWS SERVICE, INC",9/1/10,9/30/10,PUBLICATION REF MATERIAL,550.15,FISCAL YEAR 2010,,,,"09_24 P1 10SH0100759          EFE NEWS SERVICE, INC"
,OFFICE OF THE SPEAKER,2010Q3,SUPPLIES AND MATERIALS,,09_24 P1 10SH0100758          OCCASIONS CATERERS,6/16/10,6/16/10,FOOD & BEVERAGE,"4,330.00",FISCAL YEAR 2010,,,,09_24 P1 10SH0100758          OCCASIONS CATERERS
,OFFICE OF THE SPEAKER,2010Q3,SUPPLIES AND MATERIALS,,09_25 P1 10SH0100760          HAGUE QUALITY WATER,9/1/10,9/30/10,BOTTLED WATER,441,FISCAL YEAR 2010,,,,09_25 P1 10SH0100760          HAGUE QUALITY WATER
,OFFICE OF THE SPEAKER,2010Q3,SUPPLIES AND MATERIALS,,09_25 P1 10SH0100761          MILLICENT BLUFORD,9/14/10,9/14/10,HABITATION EXPENSES,225,FISCAL YEAR 2010,,,,09_25 P1 10SH0100761          MILLICENT BLUFORD
,OFFICE OF THE SPEAKER,2010Q3,SUPPLIES AND MATERIALS,,09_25 P1 10SH0100762               DO,9/20/10,9/20/10,HABITATION EXPENSES,225,FISCAL YEAR 2010,,,,09_25 P1 10SH0100762               DO
,OFFICE OF THE SPEAKER,2010Q3,EQUIPMENT,,08_26       P1 10SH0100731                   AUTOMATED SIGNATURE TECH,4/26/10,4/25/11,WARRANTIES,499,FISCAL YEAR 2010,,,,08_26       P1 10SH0100731                   AUTOMATED SIGNATURE TECH
,OFFICE OF THE SPEAKER,2010Q3,"RENT, COMMUNICATION, UTILITIES",,09_25       P1 10SH0100768        CITIBANK GOV CARD SERVICE,8/11/10,8/17/10,RECORDING (OUTSIDE),45.38,FISCAL YEAR 2010,,,,09_25       P1 10SH0100768        CITIBANK GOV CARD SERVICE
,OFFICE OF THE SPEAKER,2010Q3,OTHER SERVICES,,09_25       P1 10SH0100767                   CITIBANK GOV CARD SERVICE,8/6/10,8/6/10,"WEB DEV,HOSTNG,EMAIL & REL SVC",30.17,FISCAL YEAR 2010,,,,09_25       P1 10SH0100767                   CITIBANK GOV CARD SERVICE
,OFFICE OF THE SPEAKER,2010Q3,SUPPLIES AND MATERIALS,,07_26       P1    10SH0100627      CAPITOLHOST,6/16/10,6/16/10,FOOD & BEVERAGE,97.5,FISCAL YEAR 2010,,,,07_26       P1    10SH0100627      CAPITOLHOST
,OFFICE OF THE SPEAKER,2010Q3,SUPPLIES AND MATERIALS,,07_26       P1    10SH0100628           DO,6/16/10,6/16/10,FOOD & BEVERAGE,67.5,FISCAL YEAR 2010,,,,07_26       P1    10SH0100628           DO
,OFFICE OF THE SPEAKER,2010Q3,SUPPLIES AND MATERIALS,,08_17       P1    10SH0100698           DO,7/27/10,7/27/10,FOOD & BEVERAGE,67.5,FISCAL YEAR 2010,,,,08_17       P1    10SH0100698           DO
,OFFICE OF THE SPEAKER,2010Q3,SUPPLIES AND MATERIALS,,08_17       P1    10SH0100699           DO,7/28/10,7/28/10,FOOD & BEVERAGE,67.5,FISCAL YEAR 2010,,,,08_17       P1    10SH0100699           DO
,OFFICE OF THE SPEAKER,2010Q3,SUPPLIES AND MATERIALS,,08_17       P1    10SH0100700           DO,10/14/09,10/14/09,FOOD & BEVERAGE,67.5,FISCAL YEAR 2010,,,,08_17       P1    10SH0100700           DO
,OFFICE OF THE SPEAKER,2010Q3,SUPPLIES AND MATERIALS,,08_17       P1    10SH0100704           DO,7/21/10,7/21/10,FOOD & BEVERAGE,67.5,FISCAL YEAR 2010,,,,08_17       P1    10SH0100704           DO
,OFFICE OF THE SPEAKER,2010Q3,SUPPLIES AND MATERIALS,,08_17       P1    10SH0100705           DO,7/20/10,7/20/10,FOOD & BEVERAGE,97.5,FISCAL YEAR 2010,,,,08_17       P1    10SH0100705           DO
,OFFICE OF THE SPEAKER,2010Q3,SUPPLIES AND MATERIALS,,08_26       P1    10SH0100726           DO,7/27/10,7/27/10,FOOD & BEVERAGE,67.5,FISCAL YEAR 2010,,,,08_26       P1    10SH0100726           DO
,OFFICE OF THE SPEAKER,2010Q3,SUPPLIES AND MATERIALS,,08_26       P1    10SH0100727           DO,7/27/10,7/27/10,FOOD & BEVERAGE,67.5,FISCAL YEAR 2010,,,,08_26       P1    10SH0100727           DO
,OFFICE OF THE SPEAKER,2010Q3,SUPPLIES AND MATERIALS,,09_25       P1    10SH0100766      CITIBANK GOV CARD SERVICE,7/28/10,7/28/10,FOOD & BEVERAGE,28.97,FISCAL YEAR 2010,,,,09_25       P1    10SH0100766      CITIBANK GOV CARD SERVICE
,OFFICE OF THE SPEAKER,2010Q3,"RENT, COMMUNICATION, UTILITIES",,08_26 P1 10SH0100724          CAPITOLHOST,1/7/09,1/7/09,EQUIPMENT RENTAL,500,FISCAL YEAR 2009,,,,08_26 P1 10SH0100724          CAPITOLHOST
,OFFICE OF THE SPEAKER,2010Q3,SUPPLIES AND MATERIALS,,"07_29      P1 10SH0100658      ULTRAVOILET FLOWERS, LLC",12/1/08,12/8/08,HABITATION EXPENSES,493.32,FISCAL YEAR 2009,,,,"07_29      P1 10SH0100658      ULTRAVOILET FLOWERS, LLC"
,OFFICE OF THE SPEAKER,2010Q3,SUPPLIES AND MATERIALS,,08_26 P1 10SH0100734          CAPITOLHOST,7/9/08,7/9/08,FOOD & BEVERAGE,352.2,FISCAL YEAR 2008,,,,08_26 P1 10SH0100734          CAPITOLHOST
,OFFICE OF THE MAJORITY LEADER,2010Q3,PERSONNEL COMPENSATION,,"BERNARDS, STACEY F",7/1/10,9/30/10,DEPUTY CHIEF OF STAFF,"41,750.01",FISCAL YEAR 2010,,,,"BERNARDS, STACEY F"
,OFFICE OF THE MAJORITY LEADER,2010Q3,PERSONNEL COMPENSATION,,"LIERMAN,TERRY L",7/1/10,9/30/10,CHIEF OF STAFF,"43,125.00",FISCAL YEAR 2010,,,,"LIERMAN,TERRY L"
,OFFICE OF THE MAJORITY LEADER,2010Q3,PERSONNEL COMPENSATION,,"ABOUCHAR, KEITH S",7/1/10,9/30/10,SENIOR POLICY ADVISOR,"35,000.01",FISCAL YEAR 2010,,,,"ABOUCHAR, KEITH S"
,OFFICE OF THE MAJORITY LEADER,2010Q3,PERSONNEL COMPENSATION,,"AVILES,DANIELLE R",7/19/10,9/30/10,STAFF ASSISTANT,"4,999.99",FISCAL YEAR 2010,,,,"AVILES,DANIELLE R"
,OFFICE OF THE MAJORITY LEADER,2010Q3,PERSONNEL COMPENSATION,,"AVILES,DANIELLE R",7/19/10,7/30/10,STAFF ASSISTANT (OVERTIME),739.17,FISCAL YEAR 2010,,,,DO
,OFFICE OF THE MAJORITY LEADER,2010Q3,PERSONNEL COMPENSATION,,"BEACH,MAUREEN M",7/1/10,9/30/10,MD PRESS SEC/DEP PRESS SEC,"12,236.13",FISCAL YEAR 2010,,,,"BEACH,MAUREEN M"
,OFFICE OF THE MAJORITY LEADER,2010Q3,PERSONNEL COMPENSATION,,"BOHANAN JR, JOHN L",7/1/10,9/30/10,CONSTITUENT LIAISON,"1,500.00",FISCAL YEAR 2010,,,,"BOHANAN JR, JOHN L"
,OFFICE OF THE MAJORITY LEADER,2010Q3,PERSONNEL COMPENSATION,,"BURNES, AUSTIN W",7/1/10,9/30/10,DEPUTY FLOOR DIRECTOR,"21,000.00",FISCAL YEAR 2010,,,,"BURNES, AUSTIN W"
,OFFICE OF THE MAJORITY LEADER,2010Q3,PERSONNEL COMPENSATION,,"COVEY-BRANDT, ALEXIS",7/1/10,9/30/10,FLOOR DIRECTOR,"37,000.01",FISCAL YEAR 2010,,,,"COVEY-BRANDT, ALEXIS"
,OFFICE OF THE MAJORITY LEADER,2010Q3,PERSONNEL COMPENSATION,,"DAVID, MARTA M",7/1/10,9/30/10,DIRECTOR OF EXTERNAL RELATIONS,"41,250.00",FISCAL YEAR 2010,,,,"DAVID, MARTA M"
,OFFICE OF THE MAJORITY LEADER,2010Q3,PERSONNEL COMPENSATION,,"DWYER, STEPHEN",7/1/10,7/31/10,SHARED EMPLOYEE,"3,000.00",FISCAL YEAR 2010,,,,"DWYER, STEPHEN"
,OFFICE OF THE MAJORITY LEADER,2010Q3,PERSONNEL COMPENSATION,,"EISENBERG,MICHAEL",7/1/10,9/30/10,FLOOR ASSISTANT,"15,125.00",FISCAL YEAR 2010,,,,"EISENBERG,MICHAEL"
,OFFICE OF THE MAJORITY LEADER,2010Q3,PERSONNEL COMPENSATION,,"FRY,COURTNEY",7/1/10,9/30/10,EXECUTIVE ASSISTANT/OFFICE MAN,"16,500.34",FISCAL YEAR 2010,,,,"FRY,COURTNEY"
,OFFICE OF THE MAJORITY LEADER,2010Q3,PERSONNEL COMPENSATION,,"GHOSH,APRATIM",7/19/10,9/30/10,STAFF ASSISTANT,"4,999.99",FISCAL YEAR 2010,,,,"GHOSH,APRATIM"
,OFFICE OF THE MAJORITY LEADER,2010Q3,PERSONNEL COMPENSATION,,"GHOSH,APRATIM",7/19/10,7/30/10,STAFF ASSISTANT (OVERTIME),865.38,FISCAL YEAR 2010,,,,DO
,OFFICE OF THE MAJORITY LEADER,2010Q3,PERSONNEL COMPENSATION,,"GOFF,SHUWANZA R",7/12/10,9/30/10,FLOOR AIDE,"8,777.77",FISCAL YEAR 2010,,,,"GOFF,SHUWANZA R"
,OFFICE OF THE MAJORITY LEADER,2010Q3,PERSONNEL COMPENSATION,,"GOFF,SHUWANZA R",7/1/10,7/11/10,STAFF ASSISTANT,"3,916.67",FISCAL YEAR 2010,,,,DO
,OFFICE OF THE MAJORITY LEADER,2010Q3,PERSONNEL COMPENSATION,,"GOFF,SHUWANZA R",6/1/10,6/30/10,STAFF ASSISTANT (OVERTIME),800.47,FISCAL YEAR 2010,,,,DO
,OFFICE OF THE MAJORITY LEADER,2010Q3,PERSONNEL COMPENSATION,,"GOODMAN,ROBERT",7/1/10,9/30/10,SPEECHWRITER,"18,000.00",FISCAL YEAR 2010,,,,"GOODMAN,ROBERT"
,OFFICE OF THE MAJORITY LEADER,2010Q3,PERSONNEL COMPENSATION,,"GRANT,KATHRYN L",7/1/10,9/30/10,COMMUNICATIONS DIRECTOR,"20,499.99",FISCAL YEAR 2010,,,,"GRANT,KATHRYN L"
,OFFICE OF THE MAJORITY LEADER,2010Q3,PERSONNEL COMPENSATION,,"HUGHES,JOHN C",7/1/10,9/30/10,SENIOR POLICY ADVISOR,"35,000.91",FISCAL YEAR 2010,,,,"HUGHES,JOHN C"
,OFFICE OF THE MAJORITY LEADER,2010Q3,PERSONNEL COMPENSATION,,"JACOBY,DREW",7/1/10,9/30/10,SPECIAL ASSISTANT,"12,999.99",FISCAL YEAR 2010,,,,"JACOBY,DREW"
,OFFICE OF THE MAJORITY LEADER,2010Q3,PERSONNEL COMPENSATION,,"KRUEGER,MARY R",6/1/10,7/18/10,STAFF ASSISTANT,"5,500.00",FISCAL YEAR 2010,,,,"KRUEGER,MARY R"
,OFFICE OF THE MAJORITY LEADER,2010Q3,PERSONNEL COMPENSATION,,"KRUEGER,MARY R",6/1/10,7/18/10,STAFF ASSISTANT (OVERTIME),"1,579.31",FISCAL YEAR 2010,,,,DO
,OFFICE OF THE MAJORITY LEADER,2010Q3,PERSONNEL COMPENSATION,,"LEMOS, JESSICA A",7/1/10,9/30/10,LEGISLATIVE COORDINATOR,"19,250.01",FISCAL YEAR 2010,,,,"LEMOS, JESSICA A"
,OFFICE OF THE MAJORITY LEADER,2010Q3,PERSONNEL COMPENSATION,,"LEUSCHEN, JAMES P",7/1/10,9/30/10,SENIOR POLICY ADVISOR,"23,041.67",FISCAL YEAR 2010,,,,"LEUSCHEN, JAMES P"
,OFFICE OF THE MAJORITY LEADER,2010Q3,PERSONNEL COMPENSATION,,"LI TRENTA, VIRGINIA SIMONE",7/1/10,9/30/10,SCHED AND DIR OF SPECIAL EVENT,"27,500.00",FISCAL YEAR 2010,,,,"LI TRENTA, VIRGINIA SIMONE"
,OFFICE OF THE MAJORITY LEADER,2010Q3,PERSONNEL COMPENSATION,,"MUNOZ, DENIS",7/1/10,9/30/10,SYSTEM ADMINISTRATOR,"13,500.34",FISCAL YEAR 2010,,,,"MUNOZ, DENIS"
,OFFICE OF THE MAJORITY LEADER,2010Q3,PERSONNEL COMPENSATION,,"MURRAY, ELIZABETH M",7/1/10,9/30/10,SENIOR POLICY ADVISOR,"35,999.99",FISCAL YEAR 2010,,,,"MURRAY, ELIZABETH M"
,OFFICE OF THE MAJORITY LEADER,2010Q3,PERSONNEL COMPENSATION,,"PALACIO,RICHARD A",7/1/10,9/30/10,DEPUTY DIRECTOR OF MEMBER SVCS,"22,200.00",FISCAL YEAR 2010,,,,"PALACIO,RICHARD A"
,OFFICE OF THE MAJORITY LEADER,2010Q3,PERSONNEL COMPENSATION,,"REPKO,MARY F",7/1/10,9/30/10,SENIOR POLICY ADVISOR,"35,000.01",FISCAL YEAR 2010,,,,"REPKO,MARY F"
,OFFICE OF THE MAJORITY LEADER,2010Q3,PERSONNEL COMPENSATION,,"ROMICK, BRIAN",7/1/10,9/30/10,MEMBER SERVICES DIRECTOR,"38,001.00",FISCAL YEAR 2010,,,,"ROMICK, BRIAN"
,OFFICE OF THE MAJORITY LEADER,2010Q3,PERSONNEL COMPENSATION,,"SAEZ,MARIEL S",8/2/10,9/30/10,PRESS AND RESEARCH ASSISTANT,"5,244.45",FISCAL YEAR 2010,,,,"SAEZ,MARIEL S"
,OFFICE OF THE MAJORITY LEADER,2010Q3,PERSONNEL COMPENSATION,,"SHOTT,DANIEL",6/1/10,9/30/10,STAFF ASSISTANT,"9,249.99",FISCAL YEAR 2010,,,,"SHOTT,DANIEL"
,OFFICE OF THE MAJORITY LEADER,2010Q3,PERSONNEL COMPENSATION,,"SHOTT,DANIEL",6/1/10,7/30/10,STAFF ASSISTANT (OVERTIME),"2,587.11",FISCAL YEAR 2010,,,,DO
,OFFICE OF THE MAJORITY LEADER,2010Q3,PERSONNEL COMPENSATION,,"SIXKILLER, MARIAH S",7/1/10,9/30/10,SENIOR POLICY ADVISOR,"15,822.23",FISCAL YEAR 2010,,,,"SIXKILLER, MARIAH S"
,OFFICE OF THE MAJORITY LEADER,2010Q3,PERSONNEL COMPENSATION,,"STOCKWELL,MICHELE M",7/1/10,9/8/10,POLICY DIRECTOR,"30,079.12",FISCAL YEAR 2010,,,,"STOCKWELL,MICHELE M"
,OFFICE OF THE MAJORITY LEADER,2010Q3,TRAVEL,,"08_02       P1 10ML0100321      DWYER, STEPHEN",6/22/10,6/22/10,"TAXI, PARKING, TOLLS",5.75,FISCAL YEAR 2010,,,,"08_02       P1 10ML0100321      DWYER, STEPHEN"
,OFFICE OF THE MAJORITY LEADER,2010Q3,TRAVEL,,"08_02       P1 10ML0100310      FRY,COURTNEY",7/9/10,7/9/10,"TAXI, PARKING, TOLLS",15,FISCAL YEAR 2010,,,,"08_02       P1 10ML0100310      FRY,COURTNEY"
,OFFICE OF THE MAJORITY LEADER,2010Q3,TRAVEL,,08_02       P1 10ML0100311            DO,7/9/10,7/9/10,"TAXI, PARKING, TOLLS",15,FISCAL YEAR 2010,,,,08_02       P1 10ML0100311            DO
,OFFICE OF THE MAJORITY LEADER,2010Q3,TRAVEL,,"08_02       P1 10ML0100309      LI TRENTA, VIRGINIA SIMONE",7/21/10,7/21/10,"TAXI, PARKING, TOLLS",15.75,FISCAL YEAR 2010,,,,"08_02       P1 10ML0100309      LI TRENTA, VIRGINIA SIMONE"
,OFFICE OF THE MAJORITY LEADER,2010Q3,TRAVEL,,"09_20       P1 10ML0100347      AVILES,DANIELLE R",9/17/10,9/17/10,"TAXI, PARKING, TOLLS",17,FISCAL YEAR 2010,,,,"09_20       P1 10ML0100347      AVILES,DANIELLE R"
,OFFICE OF THE MAJORITY LEADER,2010Q3,TRAVEL,,"09_27   P1 10ML0100374                    GHOSH,APRATIM",9/16/10,9/16/10,CAR RENTAL,25.44,FISCAL YEAR 2010,,,,"09_27   P1 10ML0100374                    GHOSH,APRATIM"
,OFFICE OF THE MAJORITY LEADER,2010Q3,PRINTING AND REPRODUCTION,,07_26   S3 10207000118,7/1/10,7/31/10,PHOTOGRAPHIC (TRANSFER),18.5,FISCAL YEAR 2010,,,,07_26   S3 10207000118
,OFFICE OF THE MAJORITY LEADER,2010Q3,PRINTING AND REPRODUCTION,,"09_22   P1 10ML0100363      DAVID L. ANDRUKITUS, INC",8/26/10,8/26/10,PRINTING AND REPRODUCTION,117.5,FISCAL YEAR 2010,,,,"09_22   P1 10ML0100363      DAVID L. ANDRUKITUS, INC"
,OFFICE OF THE MAJORITY LEADER,2010Q3,PRINTING AND REPRODUCTION,,09_25   P1 10ML0100373               DO,8/11/10,8/11/10,PRINTING AND REPRODUCTION,97.5,FISCAL YEAR 2010,,,,09_25   P1 10ML0100373               DO
,OFFICE OF THE MAJORITY LEADER,2010Q3,OTHER SERVICES,,09_20   P1 10ML0100333                    CITIBANK GOV CARD SERVICE,6/2/10,6/24/10,LAUNDRY SERVICE,127.32,FISCAL YEAR 2010,,,,09_20   P1 10ML0100333                    CITIBANK GOV CARD SERVICE
,OFFICE OF THE MAJORITY LEADER,2010Q3,OTHER SERVICES,,09_20   P1 10ML0100336                         DO,7/26/10,7/26/10,LAUNDRY SERVICE,53.06,FISCAL YEAR 2010,,,,09_20   P1 10ML0100336                         DO
,OFFICE OF THE MAJORITY LEADER,2010Q3,SUPPLIES AND MATERIALS,,08_02   P1    10ML0100285      CAPITOLHOST,6/9/10,6/9/10,FOOD & BEVERAGE,89.99,FISCAL YEAR 2010,,,,08_02   P1    10ML0100285      CAPITOLHOST
,OFFICE OF THE MAJORITY LEADER,2010Q3,SUPPLIES AND MATERIALS,,08_02   P1    10ML0100286           DO,5/5/10,5/5/10,FOOD & BEVERAGE,89.99,FISCAL YEAR 2010,,,,08_02   P1    10ML0100286           DO
,OFFICE OF THE MAJORITY LEADER,2010Q3,SUPPLIES AND MATERIALS,,08_02   P1    10ML0100287           DO,6/11/10,6/11/10,FOOD & BEVERAGE,56.44,FISCAL YEAR 2010,,,,08_02   P1    10ML0100287           DO
,OFFICE OF THE MAJORITY LEADER,2010Q3,SUPPLIES AND MATERIALS,,08_02   P1    10ML0100288           DO,6/16/10,6/16/10,FOOD & BEVERAGE,90,FISCAL YEAR 2010,,,,08_02   P1    10ML0100288           DO
,OFFICE OF THE MAJORITY LEADER,2010Q3,SUPPLIES AND MATERIALS,,08_02   P1    10ML0100289           DO,6/18/10,6/18/10,FOOD & BEVERAGE,42.41,FISCAL YEAR 2010,,,,08_02   P1    10ML0100289           DO
,OFFICE OF THE MAJORITY LEADER,2010Q3,SUPPLIES AND MATERIALS,,08_02   P1    10ML0100290           DO,6/30/10,6/30/10,FOOD & BEVERAGE,89.99,FISCAL YEAR 2010,,,,08_02   P1    10ML0100290           DO
,OFFICE OF THE MAJORITY LEADER,2010Q3,SUPPLIES AND MATERIALS,,08_02   P1    10ML0100291           DO,6/24/10,6/24/10,FOOD & BEVERAGE,137.69,FISCAL YEAR 2010,,,,08_02   P1    10ML0100291           DO
,OFFICE OF THE MAJORITY LEADER,2010Q3,SUPPLIES AND MATERIALS,,08_02   P1    10ML0100292           DO,6/25/10,6/25/10,FOOD & BEVERAGE,42.41,FISCAL YEAR 2010,,,,08_02   P1    10ML0100292           DO
,OFFICE OF THE MAJORITY LEADER,2010Q3,SUPPLIES AND MATERIALS,,08_02   P1    10ML0100293           DO,6/23/10,6/23/10,FOOD & BEVERAGE,90,FISCAL YEAR 2010,,,,08_02   P1    10ML0100293           DO
,OFFICE OF THE MAJORITY LEADER,2010Q3,SUPPLIES AND MATERIALS,,08_02   P1    10ML0100294           DO,7/1/10,7/1/10,FOOD & BEVERAGE,44.99,FISCAL YEAR 2010,,,,08_02   P1    10ML0100294           DO
,OFFICE OF THE MAJORITY LEADER,2010Q3,SUPPLIES AND MATERIALS,,08_02   P1    10ML0100295      CORNER BAKERY,6/16/10,6/16/10,FOOD & BEVERAGE,221.2,FISCAL YEAR 2010,,,,08_02   P1    10ML0100295      CORNER BAKERY
,OFFICE OF THE MAJORITY LEADER,2010Q3,SUPPLIES AND MATERIALS,,08_02   P1    10ML0100296           DO,6/16/10,6/16/10,FOOD & BEVERAGE,155.2,FISCAL YEAR 2010,,,,08_02   P1    10ML0100296           DO
,OFFICE OF THE MAJORITY LEADER,2010Q3,SUPPLIES AND MATERIALS,,08_02   P1    10ML0100297           DO,6/16/10,6/16/10,FOOD & BEVERAGE,297.1,FISCAL YEAR 2010,,,,08_02   P1    10ML0100297           DO
,OFFICE OF THE MAJORITY LEADER,2010Q3,SUPPLIES AND MATERIALS,,08_02   P1    10ML0100298           DO,6/25/10,6/25/10,FOOD & BEVERAGE,123.3,FISCAL YEAR 2010,,,,08_02   P1    10ML0100298           DO
,OFFICE OF THE MAJORITY LEADER,2010Q3,SUPPLIES AND MATERIALS,,08_02   P1    10ML0100299           DO,6/9/10,6/9/10,FOOD & BEVERAGE,221.2,FISCAL YEAR 2010,,,,08_02   P1    10ML0100299           DO
,OFFICE OF THE MAJORITY LEADER,2010Q3,SUPPLIES AND MATERIALS,,08_02   P1    10ML0100300           DO,6/25/10,6/25/10,FOOD & BEVERAGE,314.7,FISCAL YEAR 2010,,,,08_02   P1    10ML0100300           DO
,OFFICE OF THE MAJORITY LEADER,2010Q3,SUPPLIES AND MATERIALS,,08_02   P1    10ML0100301           DO,6/9/10,6/9/10,FOOD & BEVERAGE,138.7,FISCAL YEAR 2010,,,,08_02   P1    10ML0100301           DO
,OFFICE OF THE MAJORITY LEADER,2010Q3,SUPPLIES AND MATERIALS,,08_02   P1    10ML0100302           DO,6/30/10,6/30/10,FOOD & BEVERAGE,221,FISCAL YEAR 2010,,,,08_02   P1    10ML0100302           DO
,OFFICE OF THE MAJORITY LEADER,2010Q3,SUPPLIES AND MATERIALS,,08_02   P1    10ML0100303           DO,6/30/10,6/30/10,FOOD & BEVERAGE,138.7,FISCAL YEAR 2010,,,,08_02   P1    10ML0100303           DO
,OFFICE OF THE MAJORITY LEADER,2010Q3,SUPPLIES AND MATERIALS,,08_02   P1    10ML0100304           DO,6/23/10,6/23/10,FOOD & BEVERAGE,375,FISCAL YEAR 2010,,,,08_02   P1    10ML0100304           DO
,OFFICE OF THE MAJORITY LEADER,2010Q3,SUPPLIES AND MATERIALS,,08_02   P1    10ML0100305           DO,6/23/10,6/23/10,FOOD & BEVERAGE,138.7,FISCAL YEAR 2010,,,,08_02   P1    10ML0100305           DO
,OFFICE OF THE MAJORITY LEADER,2010Q3,SUPPLIES AND MATERIALS,,08_02   P1    10ML0100306           DO,6/23/10,6/23/10,FOOD & BEVERAGE,159.5,FISCAL YEAR 2010,,,,08_02   P1    10ML0100306           DO
,OFFICE OF THE MAJORITY LEADER,2010Q3,SUPPLIES AND MATERIALS,,08_02   P1    10ML0100307           DO,6/18/10,6/18/10,FOOD & BEVERAGE,113.3,FISCAL YEAR 2010,,,,08_02   P1    10ML0100307           DO
,OFFICE OF THE MAJORITY LEADER,2010Q3,SUPPLIES AND MATERIALS,,08_02   P1    10ML0100308           DO,6/18/10,6/18/10,FOOD & BEVERAGE,287,FISCAL YEAR 2010,,,,08_02   P1    10ML0100308           DO
,OFFICE OF THE MAJORITY LEADER,2010Q3,SUPPLIES AND MATERIALS,,08_02   P1    10ML0100314           DO,6/15/10,6/15/10,FOOD & BEVERAGE,72.7,FISCAL YEAR 2010,,,,08_02   P1    10ML0100314           DO
,OFFICE OF THE MAJORITY LEADER,2010Q3,SUPPLIES AND MATERIALS,,08_02   P1    10ML0100315           DO,6/11/10,6/11/10,FOOD & BEVERAGE,145.3,FISCAL YEAR 2010,,,,08_02   P1    10ML0100315           DO
,OFFICE OF THE MAJORITY LEADER,2010Q3,SUPPLIES AND MATERIALS,,08_02   P1    10ML0100316           DO,6/10/10,6/10/10,FOOD & BEVERAGE,155.2,FISCAL YEAR 2010,,,,08_02   P1    10ML0100316           DO
,OFFICE OF THE MAJORITY LEADER,2010Q3,SUPPLIES AND MATERIALS,,08_02   P1    10ML0100317           DO,6/29/10,6/29/10,FOOD & BEVERAGE,128.7,FISCAL YEAR 2010,,,,08_02   P1    10ML0100317           DO
,OFFICE OF THE MAJORITY LEADER,2010Q3,SUPPLIES AND MATERIALS,,08_05   C1    NW201021503      DEER PARK,6/30/10,6/30/10,BOTTLED WATER,8,FISCAL YEAR 2010,,,,08_05   C1    NW201021503      DEER PARK
,OFFICE OF THE MAJORITY LEADER,2010Q3,SUPPLIES AND MATERIALS,,08_05   C1    NW201021503           DO,6/2/10,6/2/10,BOTTLED WATER,33.97,FISCAL YEAR 2010,,,,08_05   C1    NW201021503           DO
,OFFICE OF THE MAJORITY LEADER,2010Q3,SUPPLIES AND MATERIALS,,08_05   C1    NW201021503           DO,6/16/10,6/16/10,BOTTLED WATER,80.47,FISCAL YEAR 2010,,,,08_05   C1    NW201021503           DO
,OFFICE OF THE MAJORITY LEADER,2010Q3,SUPPLIES AND MATERIALS,,08_05   C1    NW201021503           DO,6/24/10,6/24/10,BOTTLED WATER,35,FISCAL YEAR 2010,,,,08_05   C1    NW201021503           DO
,OFFICE OF THE MAJORITY LEADER,2010Q3,SUPPLIES AND MATERIALS,,08_05   C1    NW201021503           DO,6/30/10,6/30/10,BOTTLED WATER,2,FISCAL YEAR 2010,,,,08_05   C1    NW201021503           DO
,OFFICE OF THE MAJORITY LEADER,2010Q3,SUPPLIES AND MATERIALS,,08_23   C1    NW201023103           DO,7/31/10,7/31/10,BOTTLED WATER,8,FISCAL YEAR 2010,,,,08_23   C1    NW201023103           DO
,OFFICE OF THE MAJORITY LEADER,2010Q3,SUPPLIES AND MATERIALS,,08_23   C1    NW201023103           DO,7/1/10,7/1/10,BOTTLED WATER,45,FISCAL YEAR 2010,,,,08_23   C1    NW201023103           DO
,OFFICE OF THE MAJORITY LEADER,2010Q3,SUPPLIES AND MATERIALS,,08_23   C1    NW201023103           DO,7/9/10,7/9/10,BOTTLED WATER,20,FISCAL YEAR 2010,,,,08_23   C1    NW201023103           DO
,OFFICE OF THE MAJORITY LEADER,2010Q3,SUPPLIES AND MATERIALS,,08_23   C1    NW201023103           DO,7/16/10,7/16/10,BOTTLED WATER,76.88,FISCAL YEAR 2010,,,,08_23   C1    NW201023103           DO
,OFFICE OF THE MAJORITY LEADER,2010Q3,SUPPLIES AND MATERIALS,,08_23 C1 NW201023103               DO,7/26/10,7/26/10,BOTTLED WATER,48.96,FISCAL YEAR 2010,,,,08_23 C1 NW201023103               DO
,OFFICE OF THE MAJORITY LEADER,2010Q3,SUPPLIES AND MATERIALS,,08_23 C1 NW201023103               DO,7/31/10,7/31/10,BOTTLED WATER,2,FISCAL YEAR 2010,,,,08_23 C1 NW201023103               DO
,OFFICE OF THE MAJORITY LEADER,2010Q3,SUPPLIES AND MATERIALS,,09_16 P1 10ML0100332          TV EYES INC,7/1/10,7/1/11,PUBLICATION REF MATERIAL,"1,200.00",FISCAL YEAR 2010,,,,09_16 P1 10ML0100332          TV EYES INC
,OFFICE OF THE MAJORITY LEADER,2010Q3,SUPPLIES AND MATERIALS,,09_20 P1 10ML0100334          CITIBANK GOV CARD SERVICE,6/8/10,6/8/10,HABITATION EXPENSES,423.11,FISCAL YEAR 2010,,,,09_20 P1 10ML0100334          CITIBANK GOV CARD SERVICE
,OFFICE OF THE MAJORITY LEADER,2010Q3,SUPPLIES AND MATERIALS,,09_20 P1 10ML0100335               DO,6/30/10,7/26/10,FOOD & BEVERAGE,"1,812.95",FISCAL YEAR 2010,,,,09_20 P1 10ML0100335               DO
,OFFICE OF THE MAJORITY LEADER,2010Q3,SUPPLIES AND MATERIALS,,09_20 P1 10ML0100337               DO,7/28/10,8/2/10,FOOD & BEVERAGE,640.68,FISCAL YEAR 2010,,,,09_20 P1 10ML0100337               DO
,OFFICE OF THE MAJORITY LEADER,2010Q3,SUPPLIES AND MATERIALS,,09_20 P1 10ML0100338               DO,8/12/10,8/31/10,PUBLICATION REF MATERIAL,"1,022.32",FISCAL YEAR 2010,,,,09_20 P1 10ML0100338               DO
,OFFICE OF THE MAJORITY LEADER,2010Q3,SUPPLIES AND MATERIALS,,09_20 P1 10ML0100339               DO,5/31/10,6/28/10,FOOD & BEVERAGE,"1,583.85",FISCAL YEAR 2010,,,,09_20 P1 10ML0100339               DO
,OFFICE OF THE MAJORITY LEADER,2010Q3,SUPPLIES AND MATERIALS,,09_20 P1 10ML0100340          CORNER BAKERY,7/16/10,7/16/10,FOOD & BEVERAGE,72.7,FISCAL YEAR 2010,,,,09_20 P1 10ML0100340          CORNER BAKERY
,OFFICE OF THE MAJORITY LEADER,2010Q3,SUPPLIES AND MATERIALS,,09_20 P1 10ML0100341               DO,7/28/10,7/28/10,FOOD & BEVERAGE,221.2,FISCAL YEAR 2010,,,,09_20 P1 10ML0100341               DO
,OFFICE OF THE MAJORITY LEADER,2010Q3,SUPPLIES AND MATERIALS,,09_20 P1 10ML0100342               DO,7/15/10,7/15/10,FOOD & BEVERAGE,341.1,FISCAL YEAR 2010,,,,09_20 P1 10ML0100342               DO
,OFFICE OF THE MAJORITY LEADER,2010Q3,SUPPLIES AND MATERIALS,,09_20 C1 NW201025903          DEER PARK,8/31/10,8/31/10,BOTTLED WATER,8,FISCAL YEAR 2010,,,,09_20 C1 NW201025903          DEER PARK
,OFFICE OF THE MAJORITY LEADER,2010Q3,SUPPLIES AND MATERIALS,,09_20 C1 NW201025903               DO,8/3/10,8/3/10,BOTTLED WATER,73.96,FISCAL YEAR 2010,,,,09_20 C1 NW201025903               DO
,OFFICE OF THE MAJORITY LEADER,2010Q3,SUPPLIES AND MATERIALS,,09_20 C1 NW201025903               DO,8/16/10,8/16/10,BOTTLED WATER,45,FISCAL YEAR 2010,,,,09_20 C1 NW201025903               DO
,OFFICE OF THE MAJORITY LEADER,2010Q3,SUPPLIES AND MATERIALS,,09_20 C1 NW201025903               DO,8/24/10,8/24/10,BOTTLED WATER,25,FISCAL YEAR 2010,,,,09_20 C1 NW201025903               DO
,OFFICE OF THE MAJORITY LEADER,2010Q3,SUPPLIES AND MATERIALS,,09_20 C1 NW201025903               DO,8/31/10,8/31/10,BOTTLED WATER,20.47,FISCAL YEAR 2010,,,,09_20 C1 NW201025903               DO
,OFFICE OF THE MAJORITY LEADER,2010Q3,SUPPLIES AND MATERIALS,,09_20 C1 NW201025903               DO,8/31/10,8/31/10,BOTTLED WATER,2,FISCAL YEAR 2010,,,,09_20 C1 NW201025903               DO
,OFFICE OF THE MAJORITY LEADER,2010Q3,SUPPLIES AND MATERIALS,,"09_20 P1 10ML0100344          FRY,COURTNEY",9/17/10,9/17/10,FOOD & BEVERAGE,59.99,FISCAL YEAR 2010,,,,"09_20 P1 10ML0100344          FRY,COURTNEY"
,OFFICE OF THE MAJORITY LEADER,2010Q3,SUPPLIES AND MATERIALS,,09_20 P1 10ML0100345               DO,9/17/10,9/17/10,FOOD & BEVERAGE,25.05,FISCAL YEAR 2010,,,,09_20 P1 10ML0100345               DO
,OFFICE OF THE MAJORITY LEADER,2010Q3,SUPPLIES AND MATERIALS,,"09_20 P1 10ML0100346          LIERMAN,TERRY L",9/17/10,9/17/10,FOOD & BEVERAGE,140.3,FISCAL YEAR 2010,,,,"09_20 P1 10ML0100346          LIERMAN,TERRY L"
,OFFICE OF THE MAJORITY LEADER,2010Q3,SUPPLIES AND MATERIALS,,"09_20 P1 10ML0100348          SHOTT,DANIEL",7/29/10,7/29/10,FOOD & BEVERAGE,13.98,FISCAL YEAR 2010,,,,"09_20 P1 10ML0100348          SHOTT,DANIEL"
,OFFICE OF THE MAJORITY LEADER,2010Q3,SUPPLIES AND MATERIALS,,09_22 P1 10ML0100353          CAPITOLHOST,7/23/10,7/23/10,FOOD & BEVERAGE,42.41,FISCAL YEAR 2010,,,,09_22 P1 10ML0100353          CAPITOLHOST
,OFFICE OF THE MAJORITY LEADER,2010Q3,SUPPLIES AND MATERIALS,,09_22 P1 10ML0100354               DO,7/22/10,7/22/10,FOOD & BEVERAGE,137.69,FISCAL YEAR 2010,,,,09_22 P1 10ML0100354               DO
,OFFICE OF THE MAJORITY LEADER,2010Q3,SUPPLIES AND MATERIALS,,09_22 P1 10ML0100355               DO,7/28/10,7/28/10,FOOD & BEVERAGE,89.99,FISCAL YEAR 2010,,,,09_22 P1 10ML0100355               DO
,OFFICE OF THE MAJORITY LEADER,2010Q3,SUPPLIES AND MATERIALS,,09_22 P1 10ML0100356               DO,7/29/10,7/29/10,FOOD & BEVERAGE,42.41,FISCAL YEAR 2010,,,,09_22 P1 10ML0100356               DO
,OFFICE OF THE MAJORITY LEADER,2010Q3,SUPPLIES AND MATERIALS,,09_22 P1 10ML0100357               DO,7/14/10,7/14/10,FOOD & BEVERAGE,89.99,FISCAL YEAR 2010,,,,09_22 P1 10ML0100357               DO
,OFFICE OF THE MAJORITY LEADER,2010Q3,SUPPLIES AND MATERIALS,,09_22 P1 10ML0100358               DO,7/20/10,7/20/10,FOOD & BEVERAGE,89.99,FISCAL YEAR 2010,,,,09_22 P1 10ML0100358               DO
,OFFICE OF THE MAJORITY LEADER,2010Q3,SUPPLIES AND MATERIALS,,09_22 P1 10ML0100349          CORNER BAKERY,7/16/10,7/16/10,FOOD & BEVERAGE,105.7,FISCAL YEAR 2010,,,,09_22 P1 10ML0100349          CORNER BAKERY
,OFFICE OF THE MAJORITY LEADER,2010Q3,SUPPLIES AND MATERIALS,,09_22 P1 10ML0100350               DO,7/20/10,7/20/10,FOOD & BEVERAGE,221.2,FISCAL YEAR 2010,,,,09_22 P1 10ML0100350               DO
,OFFICE OF THE MAJORITY LEADER,2010Q3,SUPPLIES AND MATERIALS,,09_22 P1 10ML0100351               DO,7/21/10,7/21/10,FOOD & BEVERAGE,221.2,FISCAL YEAR 2010,,,,09_22 P1 10ML0100351               DO
,OFFICE OF THE MAJORITY LEADER,2010Q3,SUPPLIES AND MATERIALS,,09_22 P1 10ML0100352               DO,7/23/10,7/23/10,FOOD & BEVERAGE,85.98,FISCAL YEAR 2010,,,,09_22 P1 10ML0100352               DO
,OFFICE OF THE MAJORITY LEADER,2010Q3,SUPPLIES AND MATERIALS,,09_22 P1 10ML0100359               DO,7/29/10,7/29/10,FOOD & BEVERAGE,123.3,FISCAL YEAR 2010,,,,09_22 P1 10ML0100359               DO
,OFFICE OF THE MAJORITY LEADER,2010Q3,SUPPLIES AND MATERIALS,,09_22 P1 10ML0100360               DO,7/29/10,7/29/10,FOOD & BEVERAGE,138.7,FISCAL YEAR 2010,,,,09_22 P1 10ML0100360               DO
,OFFICE OF THE MAJORITY LEADER,2010Q3,SUPPLIES AND MATERIALS,,09_22 P1 10ML0100361               DO,7/30/10,7/30/10,FOOD & BEVERAGE,138.7,FISCAL YEAR 2010,,,,09_22 P1 10ML0100361               DO
,OFFICE OF THE MAJORITY LEADER,2010Q3,SUPPLIES AND MATERIALS,,09_22 P1 10ML0100362               DO,7/13/10,7/13/10,FOOD & BEVERAGE,222.35,FISCAL YEAR 2010,,,,09_22 P1 10ML0100362               DO
,OFFICE OF THE MAJORITY LEADER,2010Q3,SUPPLIES AND MATERIALS,,09_22 P1 10ML0100368               DO,7/22/10,7/22/10,FOOD & BEVERAGE,181.25,FISCAL YEAR 2010,,,,09_22 P1 10ML0100368               DO
,OFFICE OF THE MAJORITY LEADER,2010Q3,SUPPLIES AND MATERIALS,,"09_25 P1 10ML0100372          AVILES,DANIELLE R",9/9/10,9/9/10,FOOD & BEVERAGE,12.86,FISCAL YEAR 2010,,,,"09_25 P1 10ML0100372          AVILES,DANIELLE R"
,OFFICE OF THE MAJORITY LEADER,2010Q3,SUPPLIES AND MATERIALS,,09_25 P1 10ML0100369          CORNER BAKERY,7/28/10,7/28/10,FOOD & BEVERAGE,139.4,FISCAL YEAR 2010,,,,09_25 P1 10ML0100369          CORNER BAKERY
,OFFICE OF THE MAJORITY LEADER,2010Q3,SUPPLIES AND MATERIALS,,"09_25 P1 10ML0100370          GHOSH,APRATIM",9/16/10,9/16/10,FOOD & BEVERAGE,235.37,FISCAL YEAR 2010,,,,"09_25 P1 10ML0100370          GHOSH,APRATIM"
,OFFICE OF THE MAJORITY LEADER,2010Q3,SUPPLIES AND MATERIALS,,"09_25 P1 10ML0100371          LIERMAN,TERRY L",9/9/10,9/9/10,FOOD & BEVERAGE,"1,000.00",FISCAL YEAR 2010,,,,"09_25 P1 10ML0100371          LIERMAN,TERRY L"
,OFFICE OF THE MAJORITY LEADER,2010Q3,PERSONNEL BENEFITS,,07_20   P9 ML011000007        HON. STENY HOYER,7/1/10,7/31/10,OFFICIAL EXPENSES FOR LEADER,833.33,FISCAL YEAR 2010,,,,07_20   P9 ML011000007        HON. STENY HOYER
,OFFICE OF THE MAJORITY LEADER,2010Q3,PERSONNEL BENEFITS,,08_20   P9 ML011000008             DO,8/1/10,8/31/10,OFFICIAL EXPENSES FOR LEADER,833.33,FISCAL YEAR 2010,,,,08_20   P9 ML011000008             DO
,OFFICE OF THE MAJORITY LEADER,2010Q3,PERSONNEL BENEFITS,,09_20   P9 ML011000009             DO,9/1/10,9/30/10,OFFICIAL EXPENSES FOR LEADER,833.33,FISCAL YEAR 2010,,,,09_20   P9 ML011000009             DO
,OFFICE OF THE MINORITY LEADER,2010Q3,PERSONNEL COMPENSATION,,"BUCK, BRENDAN K",7/1/10,9/30/10,DIR OF COMM FOR LEG OPERATIONS,"22,500.00",FISCAL YEAR 2010,,,,"BUCK, BRENDAN K"
,OFFICE OF THE MINORITY LEADER,2010Q3,PERSONNEL COMPENSATION,,"CASSIDY, ED",7/1/10,9/30/10,SR ADVISOR/FLOOR ASSIST (STAT),"42,000.00",FISCAL YEAR 2010,,,,"CASSIDY, ED"
,OFFICE OF THE MINORITY LEADER,2010Q3,PERSONNEL COMPENSATION,,"GREEN, JO-MARIE S",7/1/10,9/30/10,GEN. COUNSEL/DIR. OF FLOOR OPS,"42,999.99",FISCAL YEAR 2010,,,,"GREEN, JO-MARIE S"
,OFFICE OF THE MINORITY LEADER,2010Q3,PERSONNEL COMPENSATION,,"JACKSON,BARRY S",7/1/10,9/30/10,CHIEF OF STAFF,"43,125.00",FISCAL YEAR 2010,,,,"JACKSON,BARRY S"
,OFFICE OF THE MINORITY LEADER,2010Q3,PERSONNEL COMPENSATION,,"PIERSON, JAY",7/1/10,9/30/10,FLOOR ASSISTANT (STAT),"42,099.99",FISCAL YEAR 2010,,,,"PIERSON, JAY"
,OFFICE OF THE MINORITY LEADER,2010Q3,PERSONNEL COMPENSATION,,"SCHNITTGER, DAVID M",7/1/10,9/30/10,DEPUTY CHIEF OF STAFF,"43,125.00",FISCAL YEAR 2010,,,,"SCHNITTGER, DAVID M"
,OFFICE OF THE MINORITY LEADER,2010Q3,PERSONNEL COMPENSATION,,"SMITH, KEVIN",7/1/10,9/30/10,COMMUNICATIONS DIR (STATUTORY),"38,874.99",FISCAL YEAR 2010,,,,"SMITH, KEVIN"
,OFFICE OF THE MINORITY LEADER,2010Q3,PERSONNEL COMPENSATION,,"SOMMERS, MICHAEL J",7/1/10,9/30/10,POLICY DIRECTOR,"43,125.00",FISCAL YEAR 2010,,,,"SOMMERS, MICHAEL J"
,OFFICE OF THE MINORITY LEADER,2010Q3,PERSONNEL COMPENSATION,,"ANDRES, ELIZABETH G",7/1/10,9/30/10,DEPUTY PRESS SECRETARY,"17,499.99",FISCAL YEAR 2010,,,,"ANDRES, ELIZABETH G"
,OFFICE OF THE MINORITY LEADER,2010Q3,PERSONNEL COMPENSATION,,"BENJAMIN, WILLIAM C",7/1/10,9/30/10,DIR OF INFORMATION TECHNOLOGY,"23,250.00",FISCAL YEAR 2010,,,,"BENJAMIN, WILLIAM C"
,OFFICE OF THE MINORITY LEADER,2010Q3,PERSONNEL COMPENSATION,,"CHAPLIN, KRISTEN F",7/1/10,9/30/10,DIR OF SCHEDLNG & SPEC EVENTS,"24,375.00",FISCAL YEAR 2010,,,,"CHAPLIN, KRISTEN F"
,OFFICE OF THE MINORITY LEADER,2010Q3,PERSONNEL COMPENSATION,,"CRANFORD III, JAY N",7/1/10,9/30/10,POLICY ADVISOR,"39,075.00",FISCAL YEAR 2010,,,,"CRANFORD III, JAY N"
,OFFICE OF THE MINORITY LEADER,2010Q3,PERSONNEL COMPENSATION,,"GREENE,WILLIAM P",7/1/10,9/30/10,OUTREACH DIRECTOR,"33,825.00",FISCAL YEAR 2010,,,,"GREENE,WILLIAM P"
,OFFICE OF THE MINORITY LEADER,2010Q3,PERSONNEL COMPENSATION,,"HALEY, KATHERINE C",7/1/10,9/30/10,POLICY ADVISOR,"22,125.00",FISCAL YEAR 2010,,,,"HALEY, KATHERINE C"
,OFFICE OF THE MINORITY LEADER,2010Q3,PERSONNEL COMPENSATION,,"HERRLE, CYNTHIA A",7/1/10,9/30/10,POLICY ADVISOR,"35,550.00",FISCAL YEAR 2010,,,,"HERRLE, CYNTHIA A"
,OFFICE OF THE MINORITY LEADER,2010Q3,PERSONNEL COMPENSATION,,"KINZEL,WILL C",7/1/10,9/30/10,POLICY ADVISOR/COUNSEL,"28,599.99",FISCAL YEAR 2010,,,,"KINZEL,WILL C"
,OFFICE OF THE MINORITY LEADER,2010Q3,PERSONNEL COMPENSATION,,"LAMPERT,JUSTIN",7/1/10,9/30/10,STAFF ASSISTANT,"9,950.00",FISCAL YEAR 2010,,,,"LAMPERT,JUSTIN"
,OFFICE OF THE MINORITY LEADER,2010Q3,PERSONNEL COMPENSATION,,"LAMPERT,JUSTIN",6/1/10,7/30/10,STAFF ASSISTANT (OVERTIME),"1,512.90",FISCAL YEAR 2010,,,,DO
,OFFICE OF THE MINORITY LEADER,2010Q3,PERSONNEL COMPENSATION,,"LOZUPONE, AMY S",7/1/10,9/30/10,DEP. CHIEF OF STAFF FOR ADMIN,"35,750.01",FISCAL YEAR 2010,,,,"LOZUPONE, AMY S"
,OFFICE OF THE MINORITY LEADER,2010Q3,PERSONNEL COMPENSATION,,"PAULSON, JUDY K",7/1/10,9/30/10,FINANCIAL ADMINISTRATOR,"8,124.99",FISCAL YEAR 2010,,,,"PAULSON, JUDY K"
,OFFICE OF THE MINORITY LEADER,2010Q3,PERSONNEL COMPENSATION,,"PORTER, EMILY S",7/1/10,9/30/10,POLICY ADVISOR,"27,500.01",FISCAL YEAR 2010,,,,"PORTER, EMILY S"
,OFFICE OF THE MINORITY LEADER,2010Q3,PERSONNEL COMPENSATION,,"RICCI,MICHAEL",7/1/10,9/30/10,DEPUTY COMMUNICATIONS DIRECTOR,"30,000.00",FISCAL YEAR 2010,,,,"RICCI,MICHAEL"
,OFFICE OF THE MINORITY LEADER,2010Q3,PERSONNEL COMPENSATION,,"SAUNDERS,GRANT H",7/1/10,9/30/10,STAFF ASSISTANT,"8,750.01",FISCAL YEAR 2010,,,,"SAUNDERS,GRANT H"
,OFFICE OF THE MINORITY LEADER,2010Q3,PERSONNEL COMPENSATION,,"SAUNDERS,GRANT H",6/1/10,7/30/10,STAFF ASSISTANT (OVERTIME),"1,008.59",FISCAL YEAR 2010,,,,DO
,OFFICE OF THE MINORITY LEADER,2010Q3,PERSONNEL COMPENSATION,,"STEWART, DAVID B",7/1/10,9/30/10,POLICY ADVISOR,"31,500.00",FISCAL YEAR 2010,,,,"STEWART, DAVID B"
,OFFICE OF THE MINORITY LEADER,2010Q3,PERSONNEL COMPENSATION,,"STEWART, JENNIFER M",7/1/10,9/30/10,POLICY ADVISOR,"27,500.01",FISCAL YEAR 2010,,,,"STEWART, JENNIFER M"
,OFFICE OF THE MINORITY LEADER,2010Q3,PERSONNEL COMPENSATION,,"STRUNK, JEFFREY A",7/1/10,9/30/10,FLOOR ASSISTANT,"12,624.99",FISCAL YEAR 2010,,,,"STRUNK, JEFFREY A"
,OFFICE OF THE MINORITY LEADER,2010Q3,PERSONNEL COMPENSATION,,"THORSEN, ANNE B",7/1/10,9/30/10,DEPUTY DIR LEG OPERATIONS,"27,375.00",FISCAL YEAR 2010,,,,"THORSEN, ANNE B"
,OFFICE OF THE MINORITY LEADER,2010Q3,PERSONNEL COMPENSATION,,"WOLF,ADAM J",7/1/10,9/30/10,FLOOR ASSISTANT,"11,675.01",FISCAL YEAR 2010,,,,"WOLF,ADAM J"
,OFFICE OF THE MINORITY LEADER,2010Q3,TRAVEL,,"07_06       P1 10NL0100200      SCHAPER, NICHOLAS",6/2/10,6/4/10,COMMERCIAL TRANSPORTATION,315,FISCAL YEAR 2010,,,,"07_06       P1 10NL0100200      SCHAPER, NICHOLAS"
,OFFICE OF THE MINORITY LEADER,2010Q3,TRAVEL,,07_06       P1 10NL0100201           DO,6/2/10,6/4/10,LODGING,600.62,FISCAL YEAR 2010,,,,07_06       P1 10NL0100201           DO
,OFFICE OF THE MINORITY LEADER,2010Q3,TRAVEL,,07_06       P1 10NL0100202           DO,6/3/10,6/4/10,MEALS,107.78,FISCAL YEAR 2010,,,,07_06       P1 10NL0100202           DO
,OFFICE OF THE MINORITY LEADER,2010Q3,TRAVEL,,07_06       P1 10NL0100203           DO,6/2/10,6/4/10,"TAXI, PARKING, TOLLS",64.6,FISCAL YEAR 2010,,,,07_06       P1 10NL0100203           DO
,OFFICE OF THE MINORITY LEADER,2010Q3,TRAVEL,,"07_14       P1 10NL0100207      HALEY, KATHERINE C",4/30/10,7/2/10,"TAXI, PARKING, TOLLS",65,FISCAL YEAR 2010,,,,"07_14       P1 10NL0100207      HALEY, KATHERINE C"
,OFFICE OF THE MINORITY LEADER,2010Q3,TRAVEL,,"07_14       P1 10NL0100206      JACKSON,BARRY S",6/28/10,6/28/10,"TAXI, PARKING, TOLLS",20,FISCAL YEAR 2010,,,,"07_14       P1 10NL0100206      JACKSON,BARRY S"
,OFFICE OF THE MINORITY LEADER,2010Q3,TRAVEL,,"07_14       P1 10NL0100205      KINZEL,WILL C",6/24/10,6/25/10,"TAXI, PARKING, TOLLS",75,FISCAL YEAR 2010,,,,"07_14       P1 10NL0100205      KINZEL,WILL C"
,OFFICE OF THE MINORITY LEADER,2010Q3,TRAVEL,,08_11       P1 10NL0100229           DO,7/9/10,7/12/10,"TAXI, PARKING, TOLLS",104.65,FISCAL YEAR 2010,,,,08_11       P1 10NL0100229           DO
,OFFICE OF THE MINORITY LEADER,2010Q3,TRAVEL,,08_11       P1 10NL0100230           DO,7/9/10,7/12/10,COMMERCIAL TRANSPORTATION,429.4,FISCAL YEAR 2010,,,,08_11       P1 10NL0100230           DO
,OFFICE OF THE MINORITY LEADER,2010Q3,TRAVEL,,08_11       P1 10NL0100231           DO,7/9/10,7/12/10,LODGING,909.9,FISCAL YEAR 2010,,,,08_11       P1 10NL0100231           DO
,OFFICE OF THE MINORITY LEADER,2010Q3,TRAVEL,,08_11       P1 10NL0100232           DO,7/9/10,7/10/10,MEALS,102.57,FISCAL YEAR 2010,,,,08_11       P1 10NL0100232           DO
,OFFICE OF THE MINORITY LEADER,2010Q3,TRAVEL,,"08_24       P1 10NL0100254      SMITH, KEVIN",4/16/10,6/1/10,"TAXI, PARKING, TOLLS",27,FISCAL YEAR 2010,,,,"08_24       P1 10NL0100254      SMITH, KEVIN"
,OFFICE OF THE MINORITY LEADER,2010Q3,TRAVEL,,"09_02       HV 10A90301045      BOLAND,KEVIN P",5/25/10,5/25/10,"TAXI, PARKING, TOLLS",15,FISCAL YEAR 2010,,,,"09_02       HV 10A90301045      BOLAND,KEVIN P"
,OFFICE OF THE MINORITY LEADER,2010Q3,TRAVEL,,"09_08       P1 10NL0100256      SMITH, KEVIN",8/23/10,8/24/10,COMMERCIAL TRANSPORTATION,537.4,FISCAL YEAR 2010,,,,"09_08       P1 10NL0100256      SMITH, KEVIN"
,OFFICE OF THE MINORITY LEADER,2010Q3,TRAVEL,,09_08       P1 10NL0100257           DO,8/23/10,8/24/10,LODGING,112.95,FISCAL YEAR 2010,,,,09_08       P1 10NL0100257           DO
,OFFICE OF THE MINORITY LEADER,2010Q3,TRAVEL,,09_08       P1 10NL0100258           DO,8/24/10,8/24/10,MEALS,10.13,FISCAL YEAR 2010,,,,09_08       P1 10NL0100258           DO
,OFFICE OF THE MINORITY LEADER,2010Q3,TRAVEL,,09_08       P1 10NL0100259           DO,8/23/10,8/24/10,"TAXI, PARKING, TOLLS",114,FISCAL YEAR 2010,,,,09_08       P1 10NL0100259           DO
,OFFICE OF THE MINORITY LEADER,2010Q3,TRAVEL,,"09_10       P1 10NL0100260      STEEL, MICHAEL",8/31/10,8/31/10,COMMERCIAL TRANSPORTATION,265.9,FISCAL YEAR 2010,,,,"09_10       P1 10NL0100260      STEEL, MICHAEL"
,OFFICE OF THE MINORITY LEADER,2010Q3,TRAVEL,,09_10       P1 10NL0100261           DO,8/31/10,8/31/10,"TAXI, PARKING, TOLLS",82,FISCAL YEAR 2010,,,,09_10       P1 10NL0100261           DO
,OFFICE OF THE MINORITY LEADER,2010Q3,"RENT, COMMUNICATION, UTILITIES",,07_01       CB    FXF100630a      FEDERAL EXPRESS CORP,6/18/10,6/18/10,POSTAGE/COURIER/BOX RENTAL,11.73,FISCAL YEAR 2010,,,,07_01       CB    FXF100630a      FEDERAL EXPRESS CORP
,OFFICE OF THE MINORITY LEADER,2010Q3,"RENT, COMMUNICATION, UTILITIES",,07_16       CB    FXF100715a            DO,6/30/10,6/30/10,POSTAGE/COURIER/BOX RENTAL,16.96,FISCAL YEAR 2010,,,,07_16       CB    FXF100715a            DO
,OFFICE OF THE MINORITY LEADER,2010Q3,"RENT, COMMUNICATION, UTILITIES",,07_23       CB    FXf100722a            DO,7/7/10,7/7/10,POSTAGE/COURIER/BOX RENTAL,17.4,FISCAL YEAR 2010,,,,07_23       CB    FXf100722a            DO
,OFFICE OF THE MINORITY LEADER,2010Q3,"RENT, COMMUNICATION, UTILITIES",,07_28       P1    10NL0100226     CITIBANK GOV CARD SERVICE,6/25/10,6/25/10,UTILITIES,29.99,FISCAL YEAR 2010,,,,07_28       P1    10NL0100226     CITIBANK GOV CARD SERVICE
,OFFICE OF THE MINORITY LEADER,2010Q3,"RENT, COMMUNICATION, UTILITIES",,08_06   CB    FXF100805a                  FEDERAL EXPRESS CORP,7/14/10,7/14/10,POSTAGE/COURIER/BOX RENTAL,6.75,FISCAL YEAR 2010,,,,08_06   CB    FXF100805a                  FEDERAL EXPRESS CORP
,OFFICE OF THE MINORITY LEADER,2010Q3,"RENT, COMMUNICATION, UTILITIES",,08_06   CB    FXF100805a                       DO,7/23/10,7/23/10,POSTAGE/COURIER/BOX RENTAL,11.57,FISCAL YEAR 2010,,,,08_06   CB    FXF100805a                       DO
,OFFICE OF THE MINORITY LEADER,2010Q3,"RENT, COMMUNICATION, UTILITIES",,08_24   P1    10NL0100252                 CITIBANK GOV CARD SERVICE,7/25/10,7/25/10,UTILITIES,29.99,FISCAL YEAR 2010,,,,08_24   P1    10NL0100252                 CITIBANK GOV CARD SERVICE
,OFFICE OF THE MINORITY LEADER,2010Q3,"RENT, COMMUNICATION, UTILITIES",,08_26   CB    FXF100825a                  FEDERAL EXPRESS CORP,8/4/10,8/4/10,POSTAGE/COURIER/BOX RENTAL,120.73,FISCAL YEAR 2010,,,,08_26   CB    FXF100825a                  FEDERAL EXPRESS CORP
,OFFICE OF THE MINORITY LEADER,2010Q3,"RENT, COMMUNICATION, UTILITIES",,08_26   CB    FXF100825a                       DO,8/13/10,8/13/10,POSTAGE/COURIER/BOX RENTAL,9.89,FISCAL YEAR 2010,,,,08_26   CB    FXF100825a                       DO
,OFFICE OF THE MINORITY LEADER,2010Q3,"RENT, COMMUNICATION, UTILITIES",,09_03   CB    FXF100902a                       DO,8/20/10,8/20/10,POSTAGE/COURIER/BOX RENTAL,22.83,FISCAL YEAR 2010,,,,09_03   CB    FXF100902a                       DO
,OFFICE OF THE MINORITY LEADER,2010Q3,"RENT, COMMUNICATION, UTILITIES",,09_10   CB    FXF100909a                       DO,8/27/10,8/27/10,POSTAGE/COURIER/BOX RENTAL,24.15,FISCAL YEAR 2010,,,,09_10   CB    FXF100909a                       DO
,OFFICE OF THE MINORITY LEADER,2010Q3,"RENT, COMMUNICATION, UTILITIES",,09_17   CB    FXF100916a                  FEDERAL EXPRESS CORP,9/3/10,9/3/10,POSTAGE/COURIER/BOX RENTAL,23.14,FISCAL YEAR 2010,,,,09_17   CB    FXF100916a                  FEDERAL EXPRESS CORP
,OFFICE OF THE MINORITY LEADER,2010Q3,"RENT, COMMUNICATION, UTILITIES",,09_25   CB    FXf100923a                       DO,9/10/10,9/10/10,POSTAGE/COURIER/BOX RENTAL,16.29,FISCAL YEAR 2010,,,,09_25   CB    FXf100923a                       DO
,OFFICE OF THE MINORITY LEADER,2010Q3,PRINTING AND REPRODUCTION,,07_26   S3 10207000151,7/1/10,7/31/10,PHOTOGRAPHIC (TRANSFER),12.8,FISCAL YEAR 2010,,,,07_26   S3 10207000151
,OFFICE OF THE MINORITY LEADER,2010Q3,PRINTING AND REPRODUCTION,,08_26   S3 10238000152,8/1/10,8/31/10,PHOTOGRAPHIC (TRANSFER),6.4,FISCAL YEAR 2010,,,,08_26   S3 10238000152
,OFFICE OF THE MINORITY LEADER,2010Q3,SUPPLIES AND MATERIALS,,07_06   P1    10NL0100198      CAPITOLHOST,6/7/10,6/7/10,FOOD & BEVERAGE,62.99,FISCAL YEAR 2010,,,,07_06   P1    10NL0100198      CAPITOLHOST
,OFFICE OF THE MINORITY LEADER,2010Q3,SUPPLIES AND MATERIALS,,07_06   P1    10NL0100199      COCA-COLA ENTERPRISES,6/22/10,6/22/10,FOOD & BEVERAGE,255.96,FISCAL YEAR 2010,,,,07_06   P1    10NL0100199      COCA-COLA ENTERPRISES
,OFFICE OF THE MINORITY LEADER,2010Q3,SUPPLIES AND MATERIALS,,07_12   P1    10NL0100204      EGOVMALL TECHNOLOGIES LLC,6/17/10,6/17/11,PUBLICATION REF MATERIAL,"5,000.00",FISCAL YEAR 2010,,,,07_12   P1    10NL0100204      EGOVMALL TECHNOLOGIES LLC
,OFFICE OF THE MINORITY LEADER,2010Q3,SUPPLIES AND MATERIALS,,07_14   P1    10NL0100208      CAPITOLHOST,6/14/10,6/14/10,FOOD & BEVERAGE,62.99,FISCAL YEAR 2010,,,,07_14   P1    10NL0100208      CAPITOLHOST
,OFFICE OF THE MINORITY LEADER,2010Q3,SUPPLIES AND MATERIALS,,07_14   P1    10NL0100209           DO,6/17/10,6/17/10,FOOD & BEVERAGE,75,FISCAL YEAR 2010,,,,07_14   P1    10NL0100209           DO
,OFFICE OF THE MINORITY LEADER,2010Q3,SUPPLIES AND MATERIALS,,07_22   P1    10NL0100211      JOE RAGAN'S COFFEE LTD,6/9/10,6/9/10,FOOD & BEVERAGE,22.11,FISCAL YEAR 2010,,,,07_22   P1    10NL0100211      JOE RAGAN'S COFFEE LTD
,OFFICE OF THE MINORITY LEADER,2010Q3,SUPPLIES AND MATERIALS,,07_22   P1    10NL0100212           DO,6/18/10,6/18/10,FOOD & BEVERAGE,768.94,FISCAL YEAR 2010,,,,07_22   P1    10NL0100212           DO
,OFFICE OF THE MINORITY LEADER,2010Q3,SUPPLIES AND MATERIALS,,07_22   P1    10NL0100213           DO,6/29/10,6/29/10,FOOD & BEVERAGE,215.22,FISCAL YEAR 2010,,,,07_22   P1    10NL0100213           DO
,OFFICE OF THE MINORITY LEADER,2010Q3,SUPPLIES AND MATERIALS,,07_22   P1    10NL0100214           DO,6/9/10,6/9/10,BOTTLED WATER,17.85,FISCAL YEAR 2010,,,,07_22   P1    10NL0100214           DO
,OFFICE OF THE MINORITY LEADER,2010Q3,SUPPLIES AND MATERIALS,,07_22   P1    10NL0100215           DO,6/18/10,6/18/10,BOTTLED WATER,23.8,FISCAL YEAR 2010,,,,07_22   P1    10NL0100215           DO
,OFFICE OF THE MINORITY LEADER,2010Q3,SUPPLIES AND MATERIALS,,07_22   P1    10NL0100216           DO,6/22/10,6/22/10,BOTTLED WATER,24,FISCAL YEAR 2010,,,,07_22   P1    10NL0100216           DO
,OFFICE OF THE MINORITY LEADER,2010Q3,SUPPLIES AND MATERIALS,,07_28   P1    10NL0100221      CAPITOLHOST,6/24/10,6/24/10,FOOD & BEVERAGE,28.8,FISCAL YEAR 2010,,,,07_28   P1    10NL0100221      CAPITOLHOST
,OFFICE OF THE MINORITY LEADER,2010Q3,SUPPLIES AND MATERIALS,,07_28   P1    10NL0100222           DO,6/28/10,6/28/10,FOOD & BEVERAGE,62.99,FISCAL YEAR 2010,,,,07_28   P1    10NL0100222           DO
,OFFICE OF THE MINORITY LEADER,2010Q3,SUPPLIES AND MATERIALS,,07_28   P1    10NL0100218      CITIBANK GOV CARD SERVICE,5/27/10,6/24/10,FOOD & BEVERAGE,"6,758.11",FISCAL YEAR 2010,,,,07_28   P1    10NL0100218      CITIBANK GOV CARD SERVICE
,OFFICE OF THE MINORITY LEADER,2010Q3,SUPPLIES AND MATERIALS,,07_28   P1    10NL0100219           DO,6/22/10,6/22/10,PUBLICATION REF MATERIAL,29.88,FISCAL YEAR 2010,,,,07_28   P1    10NL0100219           DO
,OFFICE OF THE MINORITY LEADER,2010Q3,SUPPLIES AND MATERIALS,,07_28   P1    10NL0100220      COCA-COLA ENTERPRISES,7/13/10,7/13/10,FOOD & BEVERAGE,389.1,FISCAL YEAR 2010,,,,07_28   P1    10NL0100220      COCA-COLA ENTERPRISES
,OFFICE OF THE MINORITY LEADER,2010Q3,SUPPLIES AND MATERIALS,,07_28   P1    10NL0100223      JOE RAGAN'S COFFEE LTD,6/9/10,6/9/10,FOOD & BEVERAGE,446.15,FISCAL YEAR 2010,,,,07_28   P1    10NL0100223      JOE RAGAN'S COFFEE LTD
,OFFICE OF THE MINORITY LEADER,2010Q3,SUPPLIES AND MATERIALS,,"07_28   P1    10NL0100224      LEADERSHIP DIRECTORIES, INC",6/1/10,12/1/10,PUBLICATION REF MATERIAL,385,FISCAL YEAR 2010,,,,"07_28   P1    10NL0100224      LEADERSHIP DIRECTORIES, INC"
,OFFICE OF THE MINORITY LEADER,2010Q3,SUPPLIES AND MATERIALS,,08_10   P1    10NL0100234      CAPITOLHOST,7/12/10,7/12/10,FOOD & BEVERAGE,62.99,FISCAL YEAR 2010,,,,08_10   P1    10NL0100234      CAPITOLHOST
,OFFICE OF THE MINORITY LEADER,2010Q3,SUPPLIES AND MATERIALS,,08_10   P1    10NL0100235           DO,7/15/10,7/15/10,FOOD & BEVERAGE,75,FISCAL YEAR 2010,,,,08_10   P1    10NL0100235           DO
,OFFICE OF THE MINORITY LEADER,2010Q3,SUPPLIES AND MATERIALS,,08_10   P1    10NL0100236           DO,7/16/10,7/16/10,FOOD & BEVERAGE,105,FISCAL YEAR 2010,,,,08_10   P1    10NL0100236           DO
,OFFICE OF THE MINORITY LEADER,2010Q3,SUPPLIES AND MATERIALS,,08_10   P1    10NL0100237           DO,7/19/10,7/19/10,FOOD & BEVERAGE,62.99,FISCAL YEAR 2010,,,,08_10   P1    10NL0100237           DO
,OFFICE OF THE MINORITY LEADER,2010Q3,SUPPLIES AND MATERIALS,,08_10   P1    10NL0100241      JOE RAGAN'S COFFEE LTD,7/13/10,7/13/10,FOOD & BEVERAGE,562.19,FISCAL YEAR 2010,,,,08_10   P1    10NL0100241      JOE RAGAN'S COFFEE LTD
,OFFICE OF THE MINORITY LEADER,2010Q3,SUPPLIES AND MATERIALS,,08_10   P1    10NL0100242           DO,7/22/10,7/22/10,FOOD & BEVERAGE,258.61,FISCAL YEAR 2010,,,,08_10   P1    10NL0100242           DO
,OFFICE OF THE MINORITY LEADER,2010Q3,SUPPLIES AND MATERIALS,,08_10   P1    10NL0100243           DO,7/13/10,7/13/10,BOTTLED WATER,35.8,FISCAL YEAR 2010,,,,08_10   P1    10NL0100243           DO
,OFFICE OF THE MINORITY LEADER,2010Q3,SUPPLIES AND MATERIALS,,08_10   P1    10NL0100244           DO,7/22/10,7/22/10,BOTTLED WATER,41.8,FISCAL YEAR 2010,,,,08_10   P1    10NL0100244           DO
,OFFICE OF THE MINORITY LEADER,2010Q3,SUPPLIES AND MATERIALS,,08_10   P1    10NL0100245           DO,7/27/10,7/27/10,BOTTLED WATER,24,FISCAL YEAR 2010,,,,08_10   P1    10NL0100245           DO
,OFFICE OF THE MINORITY LEADER,2010Q3,SUPPLIES AND MATERIALS,,08_11   P1    10NL0100233      COCA-COLA ENTERPRISES,7/20/10,7/20/10,FOOD & BEVERAGE,279.36,FISCAL YEAR 2010,,,,08_11   P1    10NL0100233      COCA-COLA ENTERPRISES
,OFFICE OF THE MINORITY LEADER,2010Q3,SUPPLIES AND MATERIALS,,08_24   P1    10NL0100255      CAPITOLHOST,7/26/10,7/26/10,FOOD & BEVERAGE,62.99,FISCAL YEAR 2010,,,,08_24   P1    10NL0100255      CAPITOLHOST
,OFFICE OF THE MINORITY LEADER,2010Q3,SUPPLIES AND MATERIALS,,08_24   P1    10NL0100251      CITIBANK GOV CARD SERVICE,6/30/10,7/26/10,FOOD & BEVERAGE,"2,568.84",FISCAL YEAR 2010,,,,08_24   P1    10NL0100251      CITIBANK GOV CARD SERVICE
,OFFICE OF THE MINORITY LEADER,2010Q3,SUPPLIES AND MATERIALS,,08_24   P1    10NL0100253           DO,7/1/10,7/2/11,PUBLICATION REF MATERIAL,390,FISCAL YEAR 2010,,,,08_24   P1    10NL0100253           DO
,OFFICE OF THE MINORITY LEADER,2010Q3,SUPPLIES AND MATERIALS,,08_24   P1    10NL0100250      COCA-COLA ENTERPRISES,8/10/10,8/10/10,FOOD & BEVERAGE,485.83,FISCAL YEAR 2010,,,,08_24   P1    10NL0100250      COCA-COLA ENTERPRISES
,OFFICE OF THE MINORITY LEADER,2010Q3,SUPPLIES AND MATERIALS,,09_10 P1 10NL0100262               DO,8/31/10,8/31/10,FOOD & BEVERAGE,269.06,FISCAL YEAR 2010,,,,09_10 P1 10NL0100262               DO
,OFFICE OF THE MINORITY LEADER,2010Q3,SUPPLIES AND MATERIALS,,09_15 P1 10NL0100263          JOE RAGAN'S COFFEE LTD,8/3/10,8/3/10,FOOD & BEVERAGE,476.57,FISCAL YEAR 2010,,,,09_15 P1 10NL0100263          JOE RAGAN'S COFFEE LTD
,OFFICE OF THE MINORITY LEADER,2010Q3,SUPPLIES AND MATERIALS,,09_15 P1 10NL0100264               DO,8/3/10,8/3/10,BOTTLED WATER,23.8,FISCAL YEAR 2010,,,,09_15 P1 10NL0100264               DO
,OFFICE OF THE MINORITY LEADER,2010Q3,SUPPLIES AND MATERIALS,,09_15 P1 10NL0100265               DO,8/25/10,8/25/10,BOTTLED WATER,24,FISCAL YEAR 2010,,,,09_15 P1 10NL0100265               DO
,OFFICE OF THE MINORITY LEADER,2010Q3,SUPPLIES AND MATERIALS,,09_16 P1 10NL0100272          CITIBANK GOV CARD SERVICE,7/28/10,8/6/10,FOOD & BEVERAGE,460.15,FISCAL YEAR 2010,,,,09_16 P1 10NL0100272          CITIBANK GOV CARD SERVICE
,OFFICE OF THE MINORITY LEADER,2010Q3,SUPPLIES AND MATERIALS,,09_16 P1 10NL0100274               DO,8/9/10,8/9/10,PUBLICATION REF MATERIAL,116.15,FISCAL YEAR 2010,,,,09_16 P1 10NL0100274               DO
,OFFICE OF THE MINORITY LEADER,2010Q3,PERSONNEL BENEFITS,,07_20       P9 NL011000007        HON. JOHN A. BOEHNER,7/1/10,7/31/10,OFFICIAL EXPENSES FOR LEADER,833.33,FISCAL YEAR 2010,,,,07_20       P9 NL011000007        HON. JOHN A. BOEHNER
,OFFICE OF THE MINORITY LEADER,2010Q3,PERSONNEL BENEFITS,,08_20       P9 NL011000008             DO,8/1/10,8/31/10,OFFICIAL EXPENSES FOR LEADER,833.33,FISCAL YEAR 2010,,,,08_20       P9 NL011000008             DO
,OFFICE OF THE MINORITY LEADER,2010Q3,PERSONNEL BENEFITS,,09_20       P9 NL011000009             DO,9/1/10,9/30/10,OFFICIAL EXPENSES FOR LEADER,833.33,FISCAL YEAR 2010,,,,09_20       P9 NL011000009             DO
,OFFICE OF THE MAJORITY WHIP,2010Q3,PERSONNEL COMPENSATION,,"WATKINS, YELBERTON R",7/1/10,9/30/10,CHIEF OF STAFF,"41,250.00",FISCAL YEAR 2010,,,,"WATKINS, YELBERTON R"
,OFFICE OF THE MAJORITY WHIP,2010Q3,PERSONNEL COMPENSATION,,"ARGUELLES, ADAM",7/1/10,8/27/10,ASSISTANT FLOOR DIRECTOR,"11,083.33",FISCAL YEAR 2010,,,,"ARGUELLES, ADAM"
,OFFICE OF THE MAJORITY WHIP,2010Q3,PERSONNEL COMPENSATION,,"BIRCH, SARAH L",7/1/10,9/30/10,DIR SPECIAL PROJ./MEMBER SERV,"20,000.01",FISCAL YEAR 2010,,,,"BIRCH, SARAH L"
,OFFICE OF THE MAJORITY WHIP,2010Q3,PERSONNEL COMPENSATION,,"CANTRELL,MARGARET",7/1/10,9/30/10,POLICY ADVISOR,"22,500.00",FISCAL YEAR 2010,,,,"CANTRELL,MARGARET"
,OFFICE OF THE MAJORITY WHIP,2010Q3,PERSONNEL COMPENSATION,,"COLLINS, MICHAEL E",7/1/10,9/30/10,CHIEF DEPUTY WHIP,"10,625.01",FISCAL YEAR 2010,,,,"COLLINS, MICHAEL E"
,OFFICE OF THE MAJORITY WHIP,2010Q3,PERSONNEL COMPENSATION,,"DANIELS,RYAN",7/1/10,7/31/10,PRESS ASSISTANT,"3,500.00",FISCAL YEAR 2010,,,,"DANIELS,RYAN"
,OFFICE OF THE MAJORITY WHIP,2010Q3,PERSONNEL COMPENSATION,,"DAY,TAMIKA K",7/1/10,9/30/10,SYSTEMS ADMINISTRATOR,"12,500.01",FISCAL YEAR 2010,,,,"DAY,TAMIKA K"
,OFFICE OF THE MAJORITY WHIP,2010Q3,PERSONNEL COMPENSATION,,"ELLISON,MATTHEW B",7/6/10,9/30/10,STAFF ASSISTANT,"7,083.33",FISCAL YEAR 2010,,,,"ELLISON,MATTHEW B"
,OFFICE OF THE MAJORITY WHIP,2010Q3,PERSONNEL COMPENSATION,,"GRECO, KRISTINE M",7/1/10,9/30/10,COMMUNICATIONS DIRECTOR,"32,499.99",FISCAL YEAR 2010,,,,"GRECO, KRISTINE M"
,OFFICE OF THE MAJORITY WHIP,2010Q3,PERSONNEL COMPENSATION,,"GRIMALDI, DAVID F",7/1/10,9/30/10,SENIOR COUNSEL,"30,000.00",FISCAL YEAR 2010,,,,"GRIMALDI, DAVID F"
,OFFICE OF THE MAJORITY WHIP,2010Q3,PERSONNEL COMPENSATION,,"GRINNEY,MATTHEW J",7/1/10,7/31/10,STAFF ASSISTANT,725,FISCAL YEAR 2010,,,,"GRINNEY,MATTHEW J"
,OFFICE OF THE MAJORITY WHIP,2010Q3,PERSONNEL COMPENSATION,,"HACKER,MICHAEL E",7/1/10,9/30/10,DEP FLOOR DIR FOR COALITIONS,"30,000.00",FISCAL YEAR 2010,,,,"HACKER,MICHAEL E"
,OFFICE OF THE MAJORITY WHIP,2010Q3,PERSONNEL COMPENSATION,,"HARRISON, ANTONIO L",7/1/10,9/30/10,DIRECTOR OF OUTREACH,"24,999.99",FISCAL YEAR 2010,,,,"HARRISON, ANTONIO L"
,OFFICE OF THE MAJORITY WHIP,2010Q3,PERSONNEL COMPENSATION,,"HARTMAN, WENDY A",7/1/10,9/30/10,SHARED EMPLOYEE,"20,000.01",FISCAL YEAR 2010,,,,"HARTMAN, WENDY A"
,OFFICE OF THE MAJORITY WHIP,2010Q3,PERSONNEL COMPENSATION,,"HODGE,ADAM",8/1/10,9/30/10,PRESS SECRETARY,"6,286.11",FISCAL YEAR 2010,,,,"HODGE,ADAM"
,OFFICE OF THE MAJORITY WHIP,2010Q3,PERSONNEL COMPENSATION,,"MARTIN,MORGAN O",7/19/10,9/30/10,LEGISLATIVE CORRESPONDENT,"5,779.99",FISCAL YEAR 2010,,,,"MARTIN,MORGAN O"
,OFFICE OF THE MAJORITY WHIP,2010Q3,PERSONNEL COMPENSATION,,"METCALF, JOHN T",7/1/10,9/30/10,FLOOR DIRECTOR AND COUNSEL,"36,249.99",FISCAL YEAR 2010,,,,"METCALF, JOHN T"
,OFFICE OF THE MAJORITY WHIP,2010Q3,PERSONNEL COMPENSATION,,"MOORE, MIKAEL",7/1/10,9/30/10,FLOOR ASSISTANT,"9,999.99",FISCAL YEAR 2010,,,,"MOORE, MIKAEL"
,OFFICE OF THE MAJORITY WHIP,2010Q3,PERSONNEL COMPENSATION,,"NEILL, ALLIE",7/1/10,9/30/10,DEP FLOOR DIR AND SENIOR ADVIS,"31,250.01",FISCAL YEAR 2010,,,,"NEILL, ALLIE"
,OFFICE OF THE MAJORITY WHIP,2010Q3,PERSONNEL COMPENSATION,,"SHERIDAN,KELLY A",7/1/10,9/30/10,STAFF ASSISTANT,"7,500.00",FISCAL YEAR 2010,,,,"SHERIDAN,KELLY A"
,OFFICE OF THE MAJORITY WHIP,2010Q3,PERSONNEL COMPENSATION,,"SINGLETARY, BARVETTA",7/1/10,9/30/10,SHARED EMPLOYEE,"15,000.00",FISCAL YEAR 2010,,,,"SINGLETARY, BARVETTA"
,OFFICE OF THE MAJORITY WHIP,2010Q3,PERSONNEL COMPENSATION,,"WILLOUGHBY, JEANNE P",8/1/10,8/31/10,SHARED EMPLOYEE,"8,000.00",FISCAL YEAR 2010,,,,"WILLOUGHBY, JEANNE P"
,OFFICE OF THE MAJORITY WHIP,2010Q3,TRAVEL,,"07_12   P1 10MW0100221      HARRISON, ANTONIO L",6/23/10,7/5/10,"TAXI, PARKING, TOLLS",53,FISCAL YEAR 2010,,,,"07_12   P1 10MW0100221      HARRISON, ANTONIO L"
,OFFICE OF THE MAJORITY WHIP,2010Q3,TRAVEL,,07_28   OP 10MW0100005      ARCHITECT OF THE CAPITOL,4/1/10,6/30/10,GASOLINE,604.84,FISCAL YEAR 2010,,,,07_28   OP 10MW0100005      ARCHITECT OF THE CAPITOL
,OFFICE OF THE MAJORITY WHIP,2010Q3,TRAVEL,,"07_28   P1 10MW0100229      HARRISON, ANTONIO L",6/28/10,6/28/10,"TAXI, PARKING, TOLLS",16,FISCAL YEAR 2010,,,,"07_28   P1 10MW0100229      HARRISON, ANTONIO L"
,OFFICE OF THE MAJORITY WHIP,2010Q3,TRAVEL,,"08_02   P1 10MW0100238      BIRCH, SARAH L",7/19/10,7/20/10,"TAXI, PARKING, TOLLS",35,FISCAL YEAR 2010,,,,"08_02   P1 10MW0100238      BIRCH, SARAH L"
,OFFICE OF THE MAJORITY WHIP,2010Q3,TRAVEL,,08_02   P1 10MW0100240           DO,7/21/10,7/21/10,"TAXI, PARKING, TOLLS",13,FISCAL YEAR 2010,,,,08_02   P1 10MW0100240           DO
,OFFICE OF THE MAJORITY WHIP,2010Q3,TRAVEL,,"08_05   P1 10MW0100245      HARRISON, ANTONIO L",7/19/10,7/27/10,"TAXI, PARKING, TOLLS",38,FISCAL YEAR 2010,,,,"08_05   P1 10MW0100245      HARRISON, ANTONIO L"
,OFFICE OF THE MAJORITY WHIP,2010Q3,TRAVEL,,"08_09   P1 10MW0100252      HACKER,MICHAEL E",6/1/10,7/31/10,"TAXI, PARKING, TOLLS",121,FISCAL YEAR 2010,,,,"08_09   P1 10MW0100252      HACKER,MICHAEL E"
,OFFICE OF THE MAJORITY WHIP,2010Q3,TRAVEL,,"09_20   P1 10MW0100257      HARRISON, ANTONIO L",8/18/10,9/3/10,"TAXI, PARKING, TOLLS",79,FISCAL YEAR 2010,,,,"09_20   P1 10MW0100257      HARRISON, ANTONIO L"
,OFFICE OF THE MAJORITY WHIP,2010Q3,"RENT, COMMUNICATION, UTILITIES",,07_13   CB    FXP100712A      FEDERAL EXPRESS CORP,6/23/10,6/23/10,POSTAGE/COURIER/BOX RENTAL,5.52,FISCAL YEAR 2010,,,,07_13   CB    FXP100712A      FEDERAL EXPRESS CORP
,OFFICE OF THE MAJORITY WHIP,2010Q3,"RENT, COMMUNICATION, UTILITIES",,08_24   CB    FXF100823a            DO,7/29/10,7/29/10,POSTAGE/COURIER/BOX RENTAL,22.63,FISCAL YEAR 2010,,,,08_24   CB    FXF100823a            DO
,OFFICE OF THE MAJORITY WHIP,2010Q3,"RENT, COMMUNICATION, UTILITIES",,08_26   CB    FXF100825a            DO,8/13/10,8/13/10,POSTAGE/COURIER/BOX RENTAL,8.65,FISCAL YEAR 2010,,,,08_26   CB    FXF100825a            DO
,OFFICE OF THE MAJORITY WHIP,2010Q3,"RENT, COMMUNICATION, UTILITIES",,09_03   CB    FXF100902a            DO,8/20/10,8/20/10,POSTAGE/COURIER/BOX RENTAL,9.18,FISCAL YEAR 2010,,,,09_03   CB    FXF100902a            DO
,OFFICE OF THE MAJORITY WHIP,2010Q3,PRINTING AND REPRODUCTION,,07_26   S3    10207000132,7/1/10,7/31/10,PHOTOGRAPHIC (TRANSFER),6.5,FISCAL YEAR 2010,,,,07_26   S3    10207000132
,OFFICE OF THE MAJORITY WHIP,2010Q3,PRINTING AND REPRODUCTION,,08_26   S3    10238000131,8/1/10,8/31/10,PHOTOGRAPHIC (TRANSFER),53.5,FISCAL YEAR 2010,,,,08_26   S3    10238000131
,OFFICE OF THE MAJORITY WHIP,2010Q3,PRINTING AND REPRODUCTION,,"09_20   P1    10MW0100256      DAVID L. ANDRUKITUS, INC",8/6/10,8/6/10,PRINTING AND REPRODUCTION,137.5,FISCAL YEAR 2010,,,,"09_20   P1    10MW0100256      DAVID L. ANDRUKITUS, INC"
,OFFICE OF THE MAJORITY WHIP,2010Q3,PRINTING AND REPRODUCTION,,09_27   S3    10273000051,9/1/10,9/30/10,PHOTOGRAPHIC (TRANSFER),21.5,FISCAL YEAR 2010,,,,09_27   S3    10273000051
,OFFICE OF THE MAJORITY WHIP,2010Q3,OTHER SERVICES,,07_12   P1    10MW0100214                  CAPITOL VALET,6/25/10,6/25/10,LAUNDRY SERVICE,47.7,FISCAL YEAR 2010,,,,07_12   P1    10MW0100214                  CAPITOL VALET
,OFFICE OF THE MAJORITY WHIP,2010Q3,OTHER SERVICES,,07_12   P1    10MW0100215                       DO,6/11/10,6/11/10,LAUNDRY SERVICE,47.7,FISCAL YEAR 2010,,,,07_12   P1    10MW0100215                       DO
,OFFICE OF THE MAJORITY WHIP,2010Q3,OTHER SERVICES,,07_12   P1    10MW0100216                       DO,6/17/10,6/17/10,LAUNDRY SERVICE,47.7,FISCAL YEAR 2010,,,,07_12   P1    10MW0100216                       DO
,OFFICE OF THE MAJORITY WHIP,2010Q3,OTHER SERVICES,,07_12   P1    10MW0100217                  GSL SOLUTIONS,5/1/10,5/31/10,"WEB DEV,HOSTNG,EMAIL & REL SVC",75,FISCAL YEAR 2010,,,,07_12   P1    10MW0100217                  GSL SOLUTIONS
,OFFICE OF THE MAJORITY WHIP,2010Q3,OTHER SERVICES,,07_14   P7    20100714                     FIRESIDE21,6/1/10,6/30/10,"WEB DEV,HOSTNG,EMAIL & REL SVC",585,FISCAL YEAR 2010,,,,07_14   P7    20100714                     FIRESIDE21
,OFFICE OF THE MAJORITY WHIP,2010Q3,OTHER SERVICES,,07_28 P1 10MW0100228          CAPITOL VALET,7/8/10,7/8/10,LAUNDRY SERVICE,29.68,FISCAL YEAR 2010,,,,07_28 P1 10MW0100228          CAPITOL VALET
,OFFICE OF THE MAJORITY WHIP,2010Q3,OTHER SERVICES,,08_02 P1 10MW0100239               DO,7/16/10,7/16/10,LAUNDRY SERVICE,47.7,FISCAL YEAR 2010,,,,08_02 P1 10MW0100239               DO
,OFFICE OF THE MAJORITY WHIP,2010Q3,OTHER SERVICES,,08_05 P1 10MW0100247               DO,7/23/10,7/23/10,LAUNDRY SERVICE,47.7,FISCAL YEAR 2010,,,,08_05 P1 10MW0100247               DO
,OFFICE OF THE MAJORITY WHIP,2010Q3,OTHER SERVICES,,08_09 P1 10MW0100251               DO,7/30/10,7/30/10,LAUNDRY SERVICE,91.16,FISCAL YEAR 2010,,,,08_09 P1 10MW0100251               DO
,OFFICE OF THE MAJORITY WHIP,2010Q3,OTHER SERVICES,,08_13 P7 20100813             FIRESIDE21,7/1/10,7/31/10,"WEB DEV,HOSTNG,EMAIL & REL SVC",585,FISCAL YEAR 2010,,,,08_13 P7 20100813             FIRESIDE21
,OFFICE OF THE MAJORITY WHIP,2010Q3,OTHER SERVICES,,09_16 P7 20100916                  DO,8/1/10,8/31/10,"WEB DEV,HOSTNG,EMAIL & REL SVC",585,FISCAL YEAR 2010,,,,09_16 P7 20100916                  DO
,OFFICE OF THE MAJORITY WHIP,2010Q3,SUPPLIES AND MATERIALS,,"07_12       P1    10MW0100208      BETTY CRUDUP, CATERER",6/10/10,6/10/10,FOOD & BEVERAGE,900,FISCAL YEAR 2010,,,,"07_12       P1    10MW0100208      BETTY CRUDUP, CATERER"
,OFFICE OF THE MAJORITY WHIP,2010Q3,SUPPLIES AND MATERIALS,,07_12       P1    10MW0100209           DO,6/17/10,6/17/10,FOOD & BEVERAGE,900,FISCAL YEAR 2010,,,,07_12       P1    10MW0100209           DO
,OFFICE OF THE MAJORITY WHIP,2010Q3,SUPPLIES AND MATERIALS,,07_12       P1    10MW0100210           DO,6/24/10,6/24/10,FOOD & BEVERAGE,900,FISCAL YEAR 2010,,,,07_12       P1    10MW0100210           DO
,OFFICE OF THE MAJORITY WHIP,2010Q3,SUPPLIES AND MATERIALS,,07_12       P1    10MW0100211           DO,7/1/10,7/1/10,FOOD & BEVERAGE,900,FISCAL YEAR 2010,,,,07_12       P1    10MW0100211           DO
,OFFICE OF THE MAJORITY WHIP,2010Q3,SUPPLIES AND MATERIALS,,"07_12       P1    10MW0100224      BIRCH, SARAH L",6/25/10,7/1/10,FOOD & BEVERAGE,281.91,FISCAL YEAR 2010,,,,"07_12       P1    10MW0100224      BIRCH, SARAH L"
,OFFICE OF THE MAJORITY WHIP,2010Q3,SUPPLIES AND MATERIALS,,07_12       P1    10MW0100225           DO,7/1/10,7/2/10,FOOD & BEVERAGE,"1,553.67",FISCAL YEAR 2010,,,,07_12       P1    10MW0100225           DO
,OFFICE OF THE MAJORITY WHIP,2010Q3,SUPPLIES AND MATERIALS,,07_12       P1    10MW0100212      CHANTILLY DONUTS,6/10/10,6/10/10,FOOD & BEVERAGE,37,FISCAL YEAR 2010,,,,07_12       P1    10MW0100212      CHANTILLY DONUTS
,OFFICE OF THE MAJORITY WHIP,2010Q3,SUPPLIES AND MATERIALS,,07_12       P1    10MW0100218           DO,6/17/10,6/17/10,FOOD & BEVERAGE,37,FISCAL YEAR 2010,,,,07_12       P1    10MW0100218           DO
,OFFICE OF THE MAJORITY WHIP,2010Q3,SUPPLIES AND MATERIALS,,07_12       P1    10MW0100219           DO,6/24/10,6/24/10,FOOD & BEVERAGE,37,FISCAL YEAR 2010,,,,07_12       P1    10MW0100219           DO
,OFFICE OF THE MAJORITY WHIP,2010Q3,SUPPLIES AND MATERIALS,,07_12       P1    10MW0100220           DO,7/1/10,7/1/10,FOOD & BEVERAGE,37,FISCAL YEAR 2010,,,,07_12       P1    10MW0100220           DO
,OFFICE OF THE MAJORITY WHIP,2010Q3,SUPPLIES AND MATERIALS,,"07_12       P1    10MW0100222      CORPORATE VIDEO, INC",4/23/10,4/23/10,PUBLICATION REF MATERIAL,595,FISCAL YEAR 2010,,,,"07_12       P1    10MW0100222      CORPORATE VIDEO, INC"
,OFFICE OF THE MAJORITY WHIP,2010Q3,SUPPLIES AND MATERIALS,,"07_12       P1    10MW0100213      HARTMAN, WENDY A",6/7/10,6/29/10,FOOD & BEVERAGE,715.77,FISCAL YEAR 2010,,,,"07_12       P1    10MW0100213      HARTMAN, WENDY A"
,OFFICE OF THE MAJORITY WHIP,2010Q3,SUPPLIES AND MATERIALS,,"07_28       P1    10MW0100232      BETTY CRUDUP, CATERER",7/15/10,7/15/10,FOOD & BEVERAGE,900,FISCAL YEAR 2010,,,,"07_28       P1    10MW0100232      BETTY CRUDUP, CATERER"
,OFFICE OF THE MAJORITY WHIP,2010Q3,SUPPLIES AND MATERIALS,,07_28       P1    10MW0100234      CHANTILLY DONUTS,7/15/10,7/15/10,FOOD & BEVERAGE,37,FISCAL YEAR 2010,,,,07_28       P1    10MW0100234      CHANTILLY DONUTS
,OFFICE OF THE MAJORITY WHIP,2010Q3,SUPPLIES AND MATERIALS,,07_28       P1    10MW0100226      COCA-COLA ENTERPRISES,6/29/10,6/29/10,FOOD & BEVERAGE,260.79,FISCAL YEAR 2010,,,,07_28       P1    10MW0100226      COCA-COLA ENTERPRISES
,OFFICE OF THE MAJORITY WHIP,2010Q3,SUPPLIES AND MATERIALS,,07_28       P1    10MW0100227           DO,6/8/10,6/8/10,FOOD & BEVERAGE,356.95,FISCAL YEAR 2010,,,,07_28       P1    10MW0100227           DO
,OFFICE OF THE MAJORITY WHIP,2010Q3,SUPPLIES AND MATERIALS,,"07_28       P1    10MW0100233      HARTMAN, WENDY A",7/12/10,7/12/10,FOOD & BEVERAGE,327.93,FISCAL YEAR 2010,,,,"07_28       P1    10MW0100233      HARTMAN, WENDY A"
,OFFICE OF THE MAJORITY WHIP,2010Q3,SUPPLIES AND MATERIALS,,07_28       P1    10MW0100231      NEWS POWER ONLINE,7/18/10,7/18/10,PUBLICATION REF MATERIAL,120,FISCAL YEAR 2010,,,,07_28       P1    10MW0100231      NEWS POWER ONLINE
,OFFICE OF THE MAJORITY WHIP,2010Q3,SUPPLIES AND MATERIALS,,"08_02       P1    10MW0100241      BIRCH, SARAH L",7/19/10,7/22/10,FOOD & BEVERAGE,33.43,FISCAL YEAR 2010,,,,"08_02       P1    10MW0100241      BIRCH, SARAH L"
,OFFICE OF THE MAJORITY WHIP,2010Q3,SUPPLIES AND MATERIALS,,08_03       P1    10MW0100242      CHANTILLY DONUTS,7/22/10,7/22/10,FOOD & BEVERAGE,37,FISCAL YEAR 2010,,,,08_03       P1    10MW0100242      CHANTILLY DONUTS
,OFFICE OF THE MAJORITY WHIP,2010Q3,SUPPLIES AND MATERIALS,,"08_05       P1    10MW0100243      BETTY CRUDUP, CATERER",7/29/10,7/29/10,FOOD & BEVERAGE,900,FISCAL YEAR 2010,,,,"08_05       P1    10MW0100243      BETTY CRUDUP, CATERER"
,OFFICE OF THE MAJORITY WHIP,2010Q3,SUPPLIES AND MATERIALS,,"08_05       P1    10MW0100244      BIRCH, SARAH L",7/26/10,7/26/10,FOOD & BEVERAGE,"1,995.00",FISCAL YEAR 2010,,,,"08_05       P1    10MW0100244      BIRCH, SARAH L"
,OFFICE OF THE MAJORITY WHIP,2010Q3,SUPPLIES AND MATERIALS,,"08_05       P1    10MW0100246      HARTMAN, WENDY A",7/19/10,7/19/10,FOOD & BEVERAGE,151.92,FISCAL YEAR 2010,,,,"08_05       P1    10MW0100246      HARTMAN, WENDY A"
,OFFICE OF THE MAJORITY WHIP,2010Q3,SUPPLIES AND MATERIALS,,08_09       P1    10MW0100248      COCA-COLA ENTERPRISES,7/13/10,7/13/10,FOOD & BEVERAGE,335.31,FISCAL YEAR 2010,,,,08_09       P1    10MW0100248      COCA-COLA ENTERPRISES
,OFFICE OF THE MAJORITY WHIP,2010Q3,SUPPLIES AND MATERIALS,,"08_09       P1    10MW0100250      HARTMAN, WENDY A",8/2/10,8/2/10,FOOD & BEVERAGE,124.95,FISCAL YEAR 2010,,,,"08_09       P1    10MW0100250      HARTMAN, WENDY A"
,OFFICE OF THE MAJORITY WHIP,2010Q3,SUPPLIES AND MATERIALS,,08_09       P1    10MW0100249      MEIWAH RESTAURANT,7/29/10,7/29/10,FOOD & BEVERAGE,"2,112.85",FISCAL YEAR 2010,,,,08_09       P1    10MW0100249      MEIWAH RESTAURANT
,OFFICE OF THE MAJORITY WHIP,2010Q3,SUPPLIES AND MATERIALS,,"08_26       P1    10MW0100254      BETTY CRUDUP, CATERER",7/22/10,7/22/10,FOOD & BEVERAGE,900,FISCAL YEAR 2010,,,,"08_26       P1    10MW0100254      BETTY CRUDUP, CATERER"
,OFFICE OF THE MAJORITY WHIP,2010Q3,SUPPLIES AND MATERIALS,,"09_20       P1    10MW0100255      CORPORATE VIDEO, INC",9/6/10,9/6/10,PUBLICATION REF MATERIAL,230,FISCAL YEAR 2010,,,,"09_20       P1    10MW0100255      CORPORATE VIDEO, INC"
,OFFICE OF THE MAJORITY WHIP,2010Q3,SUPPLIES AND MATERIALS,,"09_20       P1    10MW0100258      HARTMAN, WENDY A",9/9/10,9/9/10,FOOD & BEVERAGE,291.94,FISCAL YEAR 2010,,,,"09_20       P1    10MW0100258      HARTMAN, WENDY A"
,OFFICE OF THE MINORITY WHIP,2010Q3,PERSONNEL COMPENSATION,,"MURRAY,JOHN A",7/1/10,9/30/10,COMMUNICATIONS DIRECTOR,"42,974.67",FISCAL YEAR 2010,,,,"MURRAY,JOHN A"
,OFFICE OF THE MINORITY WHIP,2010Q3,PERSONNEL COMPENSATION,,"STOMBRES, STEVEN C",7/1/10,9/30/10,CHIEF OF STAFF,"42,824.34",FISCAL YEAR 2010,,,,"STOMBRES, STEVEN C"
,OFFICE OF THE MINORITY WHIP,2010Q3,PERSONNEL COMPENSATION,,"ANDRES,DOUGLAS R",7/1/10,9/30/10,DEPUTY COALITIONS DIRECTOR,"10,500.01",FISCAL YEAR 2010,,,,"ANDRES,DOUGLAS R"
,OFFICE OF THE MINORITY WHIP,2010Q3,PERSONNEL COMPENSATION,,"BARNES,FREDERIC W",7/1/10,9/30/10,SPECIAL ASSISTANT,"9,750.00",FISCAL YEAR 2010,,,,"BARNES,FREDERIC W"
,OFFICE OF THE MINORITY WHIP,2010Q3,PERSONNEL COMPENSATION,,"BRAVO, MATTHEW",7/1/10,9/30/10,FLOOR ASSISTANT/SPECIAL ASSIST,"12,000.00",FISCAL YEAR 2010,,,,"BRAVO, MATTHEW"
,OFFICE OF THE MINORITY WHIP,2010Q3,PERSONNEL COMPENSATION,,"CULLEN,RICHARD T",7/1/10,9/30/10,STAFF ASSISTANT,"7,222.22",FISCAL YEAR 2010,,,,"CULLEN,RICHARD T"
,OFFICE OF THE MINORITY WHIP,2010Q3,PERSONNEL COMPENSATION,,"DAYSPRING, BRADFORD",7/1/10,9/30/10,PRESS SECRETARY,"13,749.99",FISCAL YEAR 2010,,,,"DAYSPRING, BRADFORD"
,OFFICE OF THE MINORITY WHIP,2010Q3,PERSONNEL COMPENSATION,,"ELLIOTT,ERICA L",7/10/10,9/30/10,COMMUNICATIONS DIRECTOR,"15,749.99",FISCAL YEAR 2010,,,,"ELLIOTT,ERICA L"
,OFFICE OF THE MINORITY WHIP,2010Q3,PERSONNEL COMPENSATION,,"FERENCE, MICHAEL J",7/1/10,9/30/10,POLICY ADVISOR,"9,000.00",FISCAL YEAR 2010,,,,"FERENCE, MICHAEL J"
,OFFICE OF THE MINORITY WHIP,2010Q3,PERSONNEL COMPENSATION,,"FREDERICKS, AUTUMN",7/1/10,9/30/10,SHARED EMPLOYEE,"3,000.00",FISCAL YEAR 2010,,,,"FREDERICKS, AUTUMN"
,OFFICE OF THE MINORITY WHIP,2010Q3,PERSONNEL COMPENSATION,,"GUSTAFSON,NICOLE M",7/1/10,9/30/10,POLICY ADVISOR & LEGIS. COUNS,"8,750.01",FISCAL YEAR 2010,,,,"GUSTAFSON,NICOLE M"
,OFFICE OF THE MINORITY WHIP,2010Q3,PERSONNEL COMPENSATION,,"HELM,KATHERINE D",7/1/10,9/30/10,STAFF ASSISTANT,"7,500.00",FISCAL YEAR 2010,,,,"HELM,KATHERINE D"
,OFFICE OF THE MINORITY WHIP,2010Q3,PERSONNEL COMPENSATION,,"JAEGER, CHERYL L",7/1/10,9/30/10,SR POLICY ADVISOR FOR DEFENSE,"9,000.00",FISCAL YEAR 2010,,,,"JAEGER, CHERYL L"
,OFFICE OF THE MINORITY WHIP,2010Q3,PERSONNEL COMPENSATION,,"JOHNSTON,STEVEN",7/1/10,9/30/10,ASSOCIATE DIR OF NEW MEDIA,"11,499.99",FISCAL YEAR 2010,,,,"JOHNSTON,STEVEN"
,OFFICE OF THE MINORITY WHIP,2010Q3,PERSONNEL COMPENSATION,,"LIRA,MATHEW L",7/1/10,9/30/10,DIRECTOR OF NEW MEDIA,"22,500.00",FISCAL YEAR 2010,,,,"LIRA,MATHEW L"
,OFFICE OF THE MINORITY WHIP,2010Q3,PERSONNEL COMPENSATION,,"LONG,MICHAEL P",7/1/10,7/31/10,INTERN,"1,500.00",FISCAL YEAR 2010,,,,"LONG,MICHAEL P"
,OFFICE OF THE MINORITY WHIP,2010Q3,PERSONNEL COMPENSATION,,"LONG,MICHAEL P",8/1/10,9/30/10,STAFF ASSISTANT,"4,500.00",FISCAL YEAR 2010,,,,DO
,OFFICE OF THE MINORITY WHIP,2010Q3,PERSONNEL COMPENSATION,,"MIN, JAMES B",7/1/10,7/9/10,SHARED EMPLOYEE,"1,750.00",FISCAL YEAR 2010,,,,"MIN, JAMES B"
,OFFICE OF THE MINORITY WHIP,2010Q3,PERSONNEL COMPENSATION,,"NEVINS, KYLE W",7/1/10,9/30/10,SHARED EMPLOYEE,948.75,FISCAL YEAR 2010,,,,"NEVINS, KYLE W"
,OFFICE OF THE MINORITY WHIP,2010Q3,PERSONNEL COMPENSATION,,"NOURMOHAMMADI,NIKA P",8/1/10,9/30/10,INTERN,"1,000.00",FISCAL YEAR 2010,,,,"NOURMOHAMMADI,NIKA P"
,OFFICE OF THE MINORITY WHIP,2010Q3,PERSONNEL COMPENSATION,,"O'CONNOR, KATHLEEN",7/1/10,9/30/10,DEPUTY SCHEDULER,"12,999.99",FISCAL YEAR 2010,,,,"O'CONNOR, KATHLEEN"
,OFFICE OF THE MINORITY WHIP,2010Q3,PERSONNEL COMPENSATION,,"PATRICK,BRIAN C",7/1/10,9/30/10,STRATEGIC COMMUNICATIONS,"16,500.00",FISCAL YEAR 2010,,,,"PATRICK,BRIAN C"
,OFFICE OF THE MINORITY WHIP,2010Q3,PERSONNEL COMPENSATION,,"ROBINSON,SARAH",7/1/10,7/31/10,DEPUTY DIRECTOR OF COALITIONS,"2,666.67",FISCAL YEAR 2010,,,,"ROBINSON,SARAH"
,OFFICE OF THE MINORITY WHIP,2010Q3,PERSONNEL COMPENSATION,,"SILVERMAN,DAVID J",7/1/10,9/30/10,SPEECHWRITER,"14,000.01",FISCAL YEAR 2010,,,,"SILVERMAN,DAVID J"
,OFFICE OF THE MINORITY WHIP,2010Q3,PERSONNEL COMPENSATION,,"STEIN, SHIMON",7/1/10,9/30/10,POLICY ADVISOR,"27,500.01",FISCAL YEAR 2010,,,,"STEIN, SHIMON"
,OFFICE OF THE MINORITY WHIP,2010Q3,PERSONNEL COMPENSATION,,"STEVENS,AMANDA D",7/1/10,9/30/10,DEPUTY SCHEDULER,"8,250.00",FISCAL YEAR 2010,,,,"STEVENS,AMANDA D"
,OFFICE OF THE MINORITY WHIP,2010Q3,PERSONNEL COMPENSATION,,"STIPICEVIC, JOHN A",7/1/10,9/30/10,FLOOR ASSISTANT,"14,000.01",FISCAL YEAR 2010,,,,"STIPICEVIC, JOHN A"
,OFFICE OF THE MINORITY WHIP,2010Q3,PERSONNEL COMPENSATION,,"TUELL,JAMES A",7/1/10,9/30/10,SPECIAL ASSISTANT,"9,000.00",FISCAL YEAR 2010,,,,"TUELL,JAMES A"
,OFFICE OF THE MINORITY WHIP,2010Q3,PERSONNEL COMPENSATION,,"VIESON, CHRISTOPHER W",7/1/10,9/30/10,FLOOR ASSISTANT,"16,500.00",FISCAL YEAR 2010,,,,"VIESON, CHRISTOPHER W"
,OFFICE OF THE MINORITY WHIP,2010Q3,PERSONNEL COMPENSATION,,"WILLIAMS, KELLY K",7/1/10,9/30/10,FINANCIAL ADMINISTRATOR,"3,500.01",FISCAL YEAR 2010,,,,"WILLIAMS, KELLY K"
,OFFICE OF THE MINORITY WHIP,2010Q3,TRAVEL,,"07_06      P1 10NW0100298      HELM,KATHERINE D",6/16/10,6/16/10,"TAXI, PARKING, TOLLS",6,FISCAL YEAR 2010,,,,"07_06      P1 10NW0100298      HELM,KATHERINE D"
,OFFICE OF THE MINORITY WHIP,2010Q3,TRAVEL,,07_06      P1 10NW0100301      MICHAEL P LONG,6/24/10,6/24/10,"TAXI, PARKING, TOLLS",19.75,FISCAL YEAR 2010,,,,07_06      P1 10NW0100301      MICHAEL P LONG
,OFFICE OF THE MINORITY WHIP,2010Q3,TRAVEL,,"07_06      P1 10NW0100296      TUELL,JAMES A",6/16/10,6/16/10,"TAXI, PARKING, TOLLS",15,FISCAL YEAR 2010,,,,"07_06      P1 10NW0100296      TUELL,JAMES A"
,OFFICE OF THE MINORITY WHIP,2010Q3,TRAVEL,,"07_26      P1 10NW0100307      FERENCE, MICHAEL J",6/28/10,6/29/10,TRAVEL REIMBURSEMENT,418,FISCAL YEAR 2010,,,,"07_26      P1 10NW0100307      FERENCE, MICHAEL J"
,OFFICE OF THE MINORITY WHIP,2010Q3,TRAVEL,,"07_26      P1 10NW0100312      JOHNSTON,STEVEN",7/12/10,7/12/10,LODGING,103.96,FISCAL YEAR 2010,,,,"07_26      P1 10NW0100312      JOHNSTON,STEVEN"
,OFFICE OF THE MINORITY WHIP,2010Q3,TRAVEL,,"07_28      P1 10NW0100308      DAYSPRING, BRADFORD",7/9/10,7/13/10,TRAVEL REIMBURSEMENT,940.3,FISCAL YEAR 2010,,,,"07_28      P1 10NW0100308      DAYSPRING, BRADFORD"
,OFFICE OF THE MINORITY WHIP,2010Q3,TRAVEL,,"07_28      P1 10NW0100315      STEVENS,AMANDA D",7/12/10,7/13/10,PRIVATE OWNED VEHICLE MILEAGE,113,FISCAL YEAR 2010,,,,"07_28      P1 10NW0100315      STEVENS,AMANDA D"
,OFFICE OF THE MINORITY WHIP,2010Q3,TRAVEL,,"07_28      P1 10NW0100317      TUELL,JAMES A",6/1/10,6/30/10,PRIVATE OWNED VEHICLE MILEAGE,25.58,FISCAL YEAR 2010,,,,"07_28      P1 10NW0100317      TUELL,JAMES A"
,OFFICE OF THE MINORITY WHIP,2010Q3,TRAVEL,,"08_02      P1 10NW0100329      FERENCE, MICHAEL J",7/19/10,7/19/10,TRAVEL REIMBURSEMENT,330.18,FISCAL YEAR 2010,,,,"08_02      P1 10NW0100329      FERENCE, MICHAEL J"
,OFFICE OF THE MINORITY WHIP,2010Q3,TRAVEL,,"08_06      P1 10NW0100331      TUELL,JAMES A",7/20/10,7/21/10,"TAXI, PARKING, TOLLS",24,FISCAL YEAR 2010,,,,"08_06      P1 10NW0100331      TUELL,JAMES A"
,OFFICE OF THE MINORITY WHIP,2010Q3,TRAVEL,,"09_20      P1 10NW0100341      GUSTAFSON,NICOLE M",7/28/10,9/1/10,"TAXI, PARKING, TOLLS",74,FISCAL YEAR 2010,,,,"09_20      P1 10NW0100341      GUSTAFSON,NICOLE M"
,OFFICE OF THE MINORITY WHIP,2010Q3,TRAVEL,,"09_20      P1 10NW0100342      STEIN, SHIMON",7/28/10,7/29/10,"TAXI, PARKING, TOLLS",15,FISCAL YEAR 2010,,,,"09_20      P1 10NW0100342      STEIN, SHIMON"
,OFFICE OF THE MINORITY WHIP,2010Q3,TRAVEL,,"09_20      P1 10NW0100349      TUELL,JAMES A",9/8/10,9/9/10,PRIVATE OWNED VEHICLE MILEAGE,16.16,FISCAL YEAR 2010,,,,"09_20      P1 10NW0100349      TUELL,JAMES A"
,OFFICE OF THE MINORITY WHIP,2010Q3,TRAVEL,,"09_25      P1 10NW0100356      STOMBRES, STEVEN C",9/21/10,9/21/10,COMMERCIAL TRANSPORTATION,164,FISCAL YEAR 2010,,,,"09_25      P1 10NW0100356      STOMBRES, STEVEN C"
,OFFICE OF THE MINORITY WHIP,2010Q3,TRAVEL,,09_25      P1 10NW0100357           DO,9/21/10,9/21/10,COMMERCIAL TRANSPORTATION,220,FISCAL YEAR 2010,,,,09_25      P1 10NW0100357           DO
,OFFICE OF THE MINORITY WHIP,2010Q3,TRAVEL,,"09_25      P1 10NW0100358      TUELL,JAMES A",9/15/10,9/15/10,"TAXI, PARKING, TOLLS",8.25,FISCAL YEAR 2010,,,,"09_25      P1 10NW0100358      TUELL,JAMES A"
,OFFICE OF THE MINORITY WHIP,2010Q3,TRAVEL,,09_25      P1 10NW0100359           DO,9/15/10,9/15/10,"TAXI, PARKING, TOLLS",5,FISCAL YEAR 2010,,,,09_25      P1 10NW0100359           DO
,OFFICE OF THE MINORITY WHIP,2010Q3,"RENT, COMMUNICATION, UTILITIES",,08_06      CB FXF100805a      FEDERAL EXPRESS CORP,7/19/10,7/19/10,POSTAGE/COURIER/BOX RENTAL,7.61,FISCAL YEAR 2010,,,,08_06      CB FXF100805a      FEDERAL EXPRESS CORP
,OFFICE OF THE MINORITY WHIP,2010Q3,PRINTING AND REPRODUCTION,,07_28      P1 10NW0100318      ACCURATE WORD LLC,7/12/10,7/12/10,PRINTING AND REPRODUCTION,69.85,FISCAL YEAR 2010,,,,07_28      P1 10NW0100318      ACCURATE WORD LLC
,OFFICE OF THE MINORITY WHIP,2010Q3,SUPPLIES AND MATERIALS,,07_06      P1    10NW0100302      CITIBANK GOV CARD SERVICE,4/28/10,5/28/10,FOOD & BEVERAGE,"6,993.00",FISCAL YEAR 2010,,,,07_06      P1    10NW0100302      CITIBANK GOV CARD SERVICE
,OFFICE OF THE MINORITY WHIP,2010Q3,SUPPLIES AND MATERIALS,,07_06      P1    10NW0100304           DO,4/28/10,4/28/10,PUBLICATION REF MATERIAL,602.17,FISCAL YEAR 2010,,,,07_06      P1    10NW0100304           DO
,OFFICE OF THE MINORITY WHIP,2010Q3,SUPPLIES AND MATERIALS,,07_06      P1    10NW0100300      HIGHLAND ESTATES COFFEE,6/16/10,6/16/10,FOOD & BEVERAGE,266.99,FISCAL YEAR 2010,,,,07_06      P1    10NW0100300      HIGHLAND ESTATES COFFEE
,OFFICE OF THE MINORITY WHIP,2010Q3,SUPPLIES AND MATERIALS,,07_06      P1    10NW0100287      LEXIS-NEXIS,5/1/10,5/31/10,PUBLICATION REF MATERIAL,606,FISCAL YEAR 2010,,,,07_06      P1    10NW0100287      LEXIS-NEXIS
,OFFICE OF THE MINORITY WHIP,2010Q3,SUPPLIES AND MATERIALS,,07_06      P1    10NW0100288           DO,4/1/10,4/30/10,PUBLICATION REF MATERIAL,606,FISCAL YEAR 2010,,,,07_06      P1    10NW0100288           DO
,OFFICE OF THE MINORITY WHIP,2010Q3,SUPPLIES AND MATERIALS,,07_06      P1    10NW0100289           DO,3/1/10,3/31/10,PUBLICATION REF MATERIAL,606,FISCAL YEAR 2010,,,,07_06      P1    10NW0100289           DO
,OFFICE OF THE MINORITY WHIP,2010Q3,SUPPLIES AND MATERIALS,,07_06      P1    10NW0100290           DO,2/1/10,2/28/10,PUBLICATION REF MATERIAL,606,FISCAL YEAR 2010,,,,07_06      P1    10NW0100290           DO
,OFFICE OF THE MINORITY WHIP,2010Q3,SUPPLIES AND MATERIALS,,07_06      P1    10NW0100292           DO,12/1/09,12/31/09,PUBLICATION REF MATERIAL,572.08,FISCAL YEAR 2010,,,,07_06      P1    10NW0100292           DO
,OFFICE OF THE MINORITY WHIP,2010Q3,SUPPLIES AND MATERIALS,,07_06      P1    10NW0100293           DO,10/1/09,10/31/09,PUBLICATION REF MATERIAL,572.08,FISCAL YEAR 2010,,,,07_06      P1    10NW0100293           DO
,OFFICE OF THE MINORITY WHIP,2010Q3,SUPPLIES AND MATERIALS,,07_06      P1    10NW0100297           DO,1/1/10,1/31/10,PUBLICATION REF MATERIAL,606,FISCAL YEAR 2010,,,,07_06      P1    10NW0100297           DO
,OFFICE OF THE MINORITY WHIP,2010Q3,SUPPLIES AND MATERIALS,,"07_06      P1    10NW0100299      MURRAY,JOHN A",6/11/10,6/11/10,FOOD & BEVERAGE,75,FISCAL YEAR 2010,,,,"07_06      P1    10NW0100299      MURRAY,JOHN A"
,OFFICE OF THE MINORITY WHIP,2010Q3,SUPPLIES AND MATERIALS,,"07_06       P1    10NW0100294               STEVENS,AMANDA D",6/17/10,6/17/10,FOOD & BEVERAGE,36.3,FISCAL YEAR 2010,,,,"07_06       P1    10NW0100294               STEVENS,AMANDA D"
,OFFICE OF THE MINORITY WHIP,2010Q3,SUPPLIES AND MATERIALS,,07_06       P1    10NW0100295                    DO,6/24/10,6/24/10,FOOD & BEVERAGE,23.07,FISCAL YEAR 2010,,,,07_06       P1    10NW0100295                    DO
,OFFICE OF THE MINORITY WHIP,2010Q3,SUPPLIES AND MATERIALS,,"07_26       P1    10NW0100311               HELM,KATHERINE D",6/30/10,6/30/10,FOOD & BEVERAGE,39.55,FISCAL YEAR 2010,,,,"07_26       P1    10NW0100311               HELM,KATHERINE D"
,OFFICE OF THE MINORITY WHIP,2010Q3,SUPPLIES AND MATERIALS,,07_26       P1    10NW0100309               HIGHLAND ESTATES COFFEE,7/1/10,7/1/10,FOOD & BEVERAGE,55.52,FISCAL YEAR 2010,,,,07_26       P1    10NW0100309               HIGHLAND ESTATES COFFEE
,OFFICE OF THE MINORITY WHIP,2010Q3,SUPPLIES AND MATERIALS,,07_26       P1    10NW0100310                    DO,7/8/10,7/8/10,FOOD & BEVERAGE,300.38,FISCAL YEAR 2010,,,,07_26       P1    10NW0100310                    DO
,OFFICE OF THE MINORITY WHIP,2010Q3,SUPPLIES AND MATERIALS,,07_26       P1    10NW0100306               LLESIANT,8/1/10,8/31/10,PUBLICATION REF MATERIAL,500,FISCAL YEAR 2010,,,,07_26       P1    10NW0100306               LLESIANT
,OFFICE OF THE MINORITY WHIP,2010Q3,SUPPLIES AND MATERIALS,,07_28       P1    10NW0100319               LEXIS-NEXIS,6/1/10,6/30/10,PUBLICATION REF MATERIAL,606,FISCAL YEAR 2010,,,,07_28       P1    10NW0100319               LEXIS-NEXIS
,OFFICE OF THE MINORITY WHIP,2010Q3,SUPPLIES AND MATERIALS,,07_28       P1    10NW0100324               MICHAEL P LONG,7/15/10,7/15/10,FOOD & BEVERAGE,25,FISCAL YEAR 2010,,,,07_28       P1    10NW0100324               MICHAEL P LONG
,OFFICE OF THE MINORITY WHIP,2010Q3,SUPPLIES AND MATERIALS,,"07_28       P1    10NW0100316               STEVENS,AMANDA D",7/1/10,7/15/10,FOOD & BEVERAGE,53.38,FISCAL YEAR 2010,,,,"07_28       P1    10NW0100316               STEVENS,AMANDA D"
,OFFICE OF THE MINORITY WHIP,2010Q3,SUPPLIES AND MATERIALS,,07_29       P1    10NW0100325               CITIBANK GOV CARD SERVICE,5/31/10,6/28/10,FOOD & BEVERAGE,"3,808.09",FISCAL YEAR 2010,,,,07_29       P1    10NW0100325               CITIBANK GOV CARD SERVICE
,OFFICE OF THE MINORITY WHIP,2010Q3,SUPPLIES AND MATERIALS,,07_29       P1    10NW0100326                    DO,5/31/10,6/28/10,PUBLICATION REF MATERIAL,674.1,FISCAL YEAR 2010,,,,07_29       P1    10NW0100326                    DO
,OFFICE OF THE MINORITY WHIP,2010Q3,SUPPLIES AND MATERIALS,,08_06       P1    10NW0100334                    DO,6/29/10,7/28/10,FOOD & BEVERAGE,"11,264.67",FISCAL YEAR 2010,,,,08_06       P1    10NW0100334                    DO
,OFFICE OF THE MINORITY WHIP,2010Q3,SUPPLIES AND MATERIALS,,08_06       P1    10NW0100335                    DO,6/29/10,7/28/10,PUBLICATION REF MATERIAL,"1,044.51",FISCAL YEAR 2010,,,,08_06       P1    10NW0100335                    DO
,OFFICE OF THE MINORITY WHIP,2010Q3,SUPPLIES AND MATERIALS,,08_06       P1    10NW0100330               HIGHLAND ESTATES COFFEE,7/19/10,7/19/10,FOOD & BEVERAGE,88.91,FISCAL YEAR 2010,,,,08_06       P1    10NW0100330               HIGHLAND ESTATES COFFEE
,OFFICE OF THE MINORITY WHIP,2010Q3,SUPPLIES AND MATERIALS,,"08_06       P1    10NW0100332               STEVENS,AMANDA D",5/27/10,5/27/10,FOOD & BEVERAGE,23.07,FISCAL YEAR 2010,,,,"08_06       P1    10NW0100332               STEVENS,AMANDA D"
,OFFICE OF THE MINORITY WHIP,2010Q3,SUPPLIES AND MATERIALS,,"08_09       P1    10NW0100338               SHADOW TV, INC",6/1/10,6/30/10,PUBLICATION REF MATERIAL,"1,000.00",FISCAL YEAR 2010,,,,"08_09       P1    10NW0100338               SHADOW TV, INC"
,OFFICE OF THE MINORITY WHIP,2010Q3,SUPPLIES AND MATERIALS,,09_20       P1    10NW0100351               CITIBANK GOV CARD SERVICE,7/29/10,8/25/10,BOTTLED WATER,496.58,FISCAL YEAR 2010,,,,09_20       P1    10NW0100351               CITIBANK GOV CARD SERVICE
,OFFICE OF THE MINORITY WHIP,2010Q3,SUPPLIES AND MATERIALS,,09_20       P1    10NW0100352                    DO,7/29/10,8/25/10,FOOD & BEVERAGE,"5,542.39",FISCAL YEAR 2010,,,,09_20       P1    10NW0100352                    DO
,OFFICE OF THE MINORITY WHIP,2010Q3,SUPPLIES AND MATERIALS,,09_20       P1    10NW0100354                    DO,7/29/10,8/25/10,PUBLICATION REF MATERIAL,"1,008.71",FISCAL YEAR 2010,,,,09_20       P1    10NW0100354                    DO
,OFFICE OF THE MINORITY WHIP,2010Q3,SUPPLIES AND MATERIALS,,09_20       P1    10NW0100345               HIGHLAND ESTATES COFFEE,8/2/10,8/2/10,FOOD & BEVERAGE,333.77,FISCAL YEAR 2010,,,,09_20       P1    10NW0100345               HIGHLAND ESTATES COFFEE
,OFFICE OF THE MINORITY WHIP,2010Q3,SUPPLIES AND MATERIALS,,09_20       P1    10NW0100346                    DO,9/1/10,9/1/10,FOOD & BEVERAGE,323.64,FISCAL YEAR 2010,,,,09_20       P1    10NW0100346                    DO
,OFFICE OF THE MINORITY WHIP,2010Q3,SUPPLIES AND MATERIALS,,09_20       P1    10NW0100347                    DO,9/7/10,9/7/10,FOOD & BEVERAGE,67.65,FISCAL YEAR 2010,,,,09_20       P1    10NW0100347                    DO
,OFFICE OF THE MINORITY WHIP,2010Q3,SUPPLIES AND MATERIALS,,09_20       P1    10NW0100343               LEXIS-NEXIS,7/1/10,7/31/10,PUBLICATION REF MATERIAL,606,FISCAL YEAR 2010,,,,09_20       P1    10NW0100343               LEXIS-NEXIS
,OFFICE OF THE MINORITY WHIP,2010Q3,SUPPLIES AND MATERIALS,,09_20       P1    10NW0100350                    DO,8/1/10,8/31/10,PUBLICATION REF MATERIAL,606,FISCAL YEAR 2010,,,,09_20       P1    10NW0100350                    DO
,OFFICE OF THE MINORITY WHIP,2010Q3,SUPPLIES AND MATERIALS,,"09_20       P1    10NW0100348               LIRA,MATHEW L",8/16/10,8/16/10,FOOD & BEVERAGE,99.3,FISCAL YEAR 2010,,,,"09_20       P1    10NW0100348               LIRA,MATHEW L"
,OFFICE OF THE MINORITY WHIP,2010Q3,SUPPLIES AND MATERIALS,,09_20       P1    10NW0100344               LLESIANT,9/1/10,9/30/10,PUBLICATION REF MATERIAL,500,FISCAL YEAR 2010,,,,09_20       P1    10NW0100344               LLESIANT
,OFFICE OF THE MINORITY WHIP,2010Q3,SUPPLIES AND MATERIALS,,09_25       P1    10NW0100360               HIGHLAND ESTATES COFFEE,9/17/10,9/17/10,FOOD & BEVERAGE,78.78,FISCAL YEAR 2010,,,,09_25       P1    10NW0100360               HIGHLAND ESTATES COFFEE
,OFFICE OF THE MINORITY WHIP,2010Q3,SUPPLIES AND MATERIALS,,07_06 P1 10NW0100286          LEXIS-NEXIS,9/1/09,9/30/09,PUBLICATION REF MATERIAL,572.08,FISCAL YEAR 2009,,,,07_06 P1 10NW0100286          LEXIS-NEXIS
,DEMOCRATIC STEERING AND POLICY,2010Q3,PERSONNEL COMPENSATION,,"PARKER, WYNDEE R",7/1/10,9/30/10,SENIOR POLICY ADVISOR,"43,125.00",FISCAL YEAR 2010,,,,"PARKER, WYNDEE R"
,DEMOCRATIC STEERING AND POLICY,2010Q3,PERSONNEL COMPENSATION,,"PRIMUS, WENDELL E",7/1/10,9/30/10,SENIOR POLICY ADVISOR,"43,125.00",FISCAL YEAR 2010,,,,"PRIMUS, WENDELL E"
,DEMOCRATIC STEERING AND POLICY,2010Q3,PERSONNEL COMPENSATION,,"ROLLAND,STACEY L",7/1/10,9/30/10,POLICY ADVISOR - TAX,"30,000.00",FISCAL YEAR 2010,,,,"ROLLAND,STACEY L"
,DEMOCRATIC STEERING AND POLICY,2010Q3,PERSONNEL COMPENSATION,,"BLOOM, MICHAEL T",7/1/10,8/31/10,POLICY ASSISTANT,"12,893.84",FISCAL YEAR 2010,,,,"BLOOM, MICHAEL T"
,DEMOCRATIC STEERING AND POLICY,2010Q3,PERSONNEL COMPENSATION,,"BOULE, SCOTT",7/1/10,9/30/10,POLICY ADVISOR,"16,665.00",FISCAL YEAR 2010,,,,"BOULE, SCOTT"
,DEMOCRATIC STEERING AND POLICY,2010Q3,PERSONNEL COMPENSATION,,"CANNON, ANNE C",6/1/10,7/31/10,POLICY ADVISOR,"2,217.48",FISCAL YEAR 2010,,,,"CANNON, ANNE C"
,DEMOCRATIC STEERING AND POLICY,2010Q3,PERSONNEL COMPENSATION,,"CANNON, ANNE C",7/1/10,7/31/10,POLICY ADVISOR (OTHER COMPENSATION),"7,333.33",FISCAL YEAR 2010,,,,DO
,DEMOCRATIC STEERING AND POLICY,2010Q3,PERSONNEL COMPENSATION,,"CAPRON, MARGARET W",7/1/10,9/30/10,POLICY ADVISOR,"31,924.26",FISCAL YEAR 2010,,,,"CAPRON, MARGARET W"
,DEMOCRATIC STEERING AND POLICY,2010Q3,PERSONNEL COMPENSATION,,"FULWOOD,KATHERINE A",7/1/10,9/30/10,STAFF ASSISTANT - CORRES,"7,169.49",FISCAL YEAR 2010,,,,"FULWOOD,KATHERINE A"
,DEMOCRATIC STEERING AND POLICY,2010Q3,PERSONNEL COMPENSATION,,"FULWOOD,KATHERINE A",7/1/10,8/31/10,STAFF ASSISTANT - CORRES. (OVERTIME),103.4,FISCAL YEAR 2010,,,,DO
,DEMOCRATIC STEERING AND POLICY,2010Q3,PERSONNEL COMPENSATION,,"JUDGE, KRISTINE A",7/1/10,9/30/10,POLICY ADVISOR,"31,924.26",FISCAL YEAR 2010,,,,"JUDGE, KRISTINE A"
,DEMOCRATIC STEERING AND POLICY,2010Q3,PERSONNEL COMPENSATION,,"LIZARRAGA, JAIME E",9/1/10,9/30/10,CONGRESSIONAL ASSISTANT - SPEC,"13,301.83",FISCAL YEAR 2010,,,,"LIZARRAGA, JAIME E"
,DEMOCRATIC STEERING AND POLICY,2010Q3,PERSONNEL COMPENSATION,,"LIZARRAGA, JAIME E",7/1/10,8/31/10,DIR.MEM.SERV/SR. ADV,"26,603.66",FISCAL YEAR 2010,,,,DO
,DEMOCRATIC STEERING AND POLICY,2010Q3,PERSONNEL COMPENSATION,,"MANATOS, ANASTASIOS",7/1/10,9/30/10,DEP.DIR-MEM.SRV/OUTREACH,"23,943.24",FISCAL YEAR 2010,,,,"MANATOS, ANASTASIOS"
,DEMOCRATIC STEERING AND POLICY,2010Q3,PERSONNEL COMPENSATION,,"PEPPER, LORI J",8/16/10,9/30/10,POLICY ADVISOR,"15,625.00",FISCAL YEAR 2010,,,,"PEPPER, LORI J"
,DEMOCRATIC STEERING AND POLICY,2010Q3,PERSONNEL COMPENSATION,,"PRICE, REVA B",7/1/10,9/30/10,POLICY ADVISOR,"31,924.26",FISCAL YEAR 2010,,,,"PRICE, REVA B"
,DEMOCRATIC STEERING AND POLICY,2010Q3,PERSONNEL COMPENSATION,,"QUALLS,ELLEN S",9/1/10,9/30/10,CONTRACT ADMINISTRATOR,"13,700.83",FISCAL YEAR 2010,,,,"QUALLS,ELLEN S"
,DEMOCRATIC STEERING AND POLICY,2010Q3,PERSONNEL COMPENSATION,,"QUALLS,ELLEN S",7/1/10,8/31/10,SR ADV FOR STRATEGIC PLANNING,"27,401.66",FISCAL YEAR 2010,,,,DO
,DEMOCRATIC STEERING AND POLICY,2010Q3,PERSONNEL COMPENSATION,,"TECKLENBURG, MICHAEL H",7/1/10,9/30/10,POLICY ADVISOR,"30,062.01",FISCAL YEAR 2010,,,,"TECKLENBURG, MICHAEL H"
,DEMOCRATIC STEERING AND POLICY,2010Q3,PERSONNEL COMPENSATION,,"WAYLAND,KAREN G",7/1/10,8/31/10,POLICY ADVISOR,"23,044.50",FISCAL YEAR 2010,,,,"WAYLAND,KAREN G"
,DEMOCRATIC STEERING AND POLICY,2010Q3,PERSONNEL COMPENSATION,,"WAYLAND,KAREN G",9/1/10,9/30/10,SENIOR POLICY ADVISOR,"11,522.25",FISCAL YEAR 2010,,,,DO
,DEMOCRATIC CAUCUS,2010Q3,PERSONNEL COMPENSATION,,"SHEVLIN IV, GEORGE F",7/1/10,9/30/10,EXECUTIVE DIRECTOR,"43,125.00",FISCAL YEAR 2010,,,,"SHEVLIN IV, GEORGE F"
,DEMOCRATIC CAUCUS,2010Q3,PERSONNEL COMPENSATION,,"TRAN,CATHERINE LE",7/1/10,9/30/10,POLICY DIRECTOR,"31,250.01",FISCAL YEAR 2010,,,,"TRAN,CATHERINE LE"
,DEMOCRATIC CAUCUS,2010Q3,PERSONNEL COMPENSATION,,"BANJAC,SRDAN",7/1/10,9/30/10,ASSISTANT TO THE CHAIRMAN,"13,500.00",FISCAL YEAR 2010,,,,"BANJAC,SRDAN"
,DEMOCRATIC CAUCUS,2010Q3,PERSONNEL COMPENSATION,,"BARNES,CHRISTOPHER E",7/1/10,9/30/10,ADVISOR TO THE CHAIRMAN,"22,000.00",FISCAL YEAR 2010,,,,"BARNES,CHRISTOPHER E"
,DEMOCRATIC CAUCUS,2010Q3,PERSONNEL COMPENSATION,,"BAROCAS,EMILY",7/1/10,9/30/10,PRESS SECRETARY,"17,499.99",FISCAL YEAR 2010,,,,"BAROCAS,EMILY"
,DEMOCRATIC CAUCUS,2010Q3,PERSONNEL COMPENSATION,,"BUI, TONIA",7/1/10,9/30/10,MEMBER OUTREACH ASST-VICE CHR,"9,500.01",FISCAL YEAR 2010,,,,"BUI, TONIA"
,DEMOCRATIC CAUCUS,2010Q3,PERSONNEL COMPENSATION,,"CHU,ANNA L",6/1/10,9/30/10,POLICY ADVISOR,"14,375.00",FISCAL YEAR 2010,,,,"CHU,ANNA L"
,DEMOCRATIC CAUCUS,2010Q3,PERSONNEL COMPENSATION,,"DAGADAKIS,STAMATIOS",6/1/10,9/30/10,TECHNOLOGY & RESEARCH ASSISTAN,"13,166.68",FISCAL YEAR 2010,,,,"DAGADAKIS,STAMATIOS"
,DEMOCRATIC CAUCUS,2010Q3,PERSONNEL COMPENSATION,,"DELANEY, ERIC L",7/1/10,9/30/10,MEMBER OUTREACH ASST-VICE CHR,"10,514.01",FISCAL YEAR 2010,,,,"DELANEY, ERIC L"
,DEMOCRATIC CAUCUS,2010Q3,PERSONNEL COMPENSATION,,"FRANK,REBECCA L",6/1/10,8/27/10,STAFF ASSISTANT,"8,458.34",FISCAL YEAR 2010,,,,"FRANK,REBECCA L"
,DEMOCRATIC CAUCUS,2010Q3,PERSONNEL COMPENSATION,,"FRANK,REBECCA L",8/1/10,8/27/10,STAFF ASSISTANT (OTHER COMPENSATION),194.44,FISCAL YEAR 2010,,,,DO
,DEMOCRATIC CAUCUS,2010Q3,PERSONNEL COMPENSATION,,"GLEESON,JAMES M",7/1/10,9/30/10,PRESS SEC FOR THE VICE CHAIR,"11,000.01",FISCAL YEAR 2010,,,,"GLEESON,JAMES M"
,DEMOCRATIC CAUCUS,2010Q3,PERSONNEL COMPENSATION,,"GONZALES, MELONDY S",7/1/10,9/30/10,DIR OF MBR OUTREACH-VICE CHAIR,"16,324.01",FISCAL YEAR 2010,,,,"GONZALES, MELONDY S"
,DEMOCRATIC CAUCUS,2010Q3,PERSONNEL COMPENSATION,,"JAWORSKI, KIMBERLY H",7/1/10,9/30/10,EVENTS AND PROJECTS COORDINATO,"12,999.99",FISCAL YEAR 2010,,,,"JAWORSKI, KIMBERLY H"
,DEMOCRATIC CAUCUS,2010Q3,PERSONNEL COMPENSATION,,"MALERBA,LIZ",7/1/10,9/30/10,OUTREACH ASSISTANT,"9,999.99",FISCAL YEAR 2010,,,,"MALERBA,LIZ"
,DEMOCRATIC CAUCUS,2010Q3,PERSONNEL COMPENSATION,,"MCCLUSKIE,SEAN E",7/1/10,9/30/10,STAFF DIR FOR THE VICE CHAIR,"16,955.99",FISCAL YEAR 2010,,,,"MCCLUSKIE,SEAN E"
,DEMOCRATIC CAUCUS,2010Q3,PERSONNEL COMPENSATION,,"MERZ, JULIE E",7/1/10,8/31/10,SHARED EMPLOYEE,"2,723.01",FISCAL YEAR 2010,,,,"MERZ, JULIE E"
,DEMOCRATIC CAUCUS,2010Q3,PERSONNEL COMPENSATION,,"MORA,JASMINE",7/1/10,9/30/10,ASST TO THE PRESS SECRETARY,"8,750.01",FISCAL YEAR 2010,,,,"MORA,JASMINE"
,DEMOCRATIC CAUCUS,2010Q3,PERSONNEL COMPENSATION,,"PEREZ-GOMEZ,SALVADOR E",7/1/10,7/31/10,OUTREACH & RESEARCH ASSISTANT,"3,333.33",FISCAL YEAR 2010,,,,"PEREZ-GOMEZ,SALVADOR E"
,DEMOCRATIC CAUCUS,2010Q3,PERSONNEL COMPENSATION,,"PEREZ-GOMEZ,SALVADOR E",7/1/10,7/31/10,OUTREACH & RESEARCH ASSISTANT (OTHER COMPENSATION),888.89,FISCAL YEAR 2010,,,,DO
,DEMOCRATIC CAUCUS,2010Q3,PERSONNEL COMPENSATION,,"PERONACE,ANTONIO",7/1/10,9/30/10,DIR OF MULTIMEDIA COMM AND TEC,"14,250.00",FISCAL YEAR 2010,,,,"PERONACE,ANTONIO"
,DEMOCRATIC CAUCUS,2010Q3,PERSONNEL COMPENSATION,,"PIERSON, ROBERT M",7/1/10,9/30/10,DIRECTOR OF NEW MEDIA,"16,250.01",FISCAL YEAR 2010,,,,"PIERSON, ROBERT M"
,DEMOCRATIC CAUCUS,2010Q3,PERSONNEL COMPENSATION,,"RESENDENZ,MARVENE R",7/1/10,9/30/10,EXECUTIVE ASSISTANT/SCHEDULER,"7,500.00",FISCAL YEAR 2010,,,,"RESENDENZ,MARVENE R"
,DEMOCRATIC CAUCUS,2010Q3,PERSONNEL COMPENSATION,,"ROBB, KAREN A",7/1/10,9/30/10,SHARED EMPLOYEE,"21,666.67",FISCAL YEAR 2010,,,,"ROBB, KAREN A"
,DEMOCRATIC CAUCUS,2010Q3,PERSONNEL COMPENSATION,,"RODRIGUEZ-OLVERA,LORENZO A",7/1/10,9/30/10,MEMBER OUTREACH ASST-VICE CHR,"9,405.99",FISCAL YEAR 2010,,,,"RODRIGUEZ-OLVERA,LORENZO A"
,DEMOCRATIC CAUCUS,2010Q3,PERSONNEL COMPENSATION,,"RUBINO,SHELLEY M",7/1/10,9/30/10,ADVISOR TO THE CHAIRMAN,"33,750.00",FISCAL YEAR 2010,,,,"RUBINO,SHELLEY M"
,DEMOCRATIC CAUCUS,2010Q3,PERSONNEL COMPENSATION,,"STEIN,JOSHUA R",9/1/10,9/30/10,STAFF ASSISTANT,"2,916.67",FISCAL YEAR 2010,,,,"STEIN,JOSHUA R"
,DEMOCRATIC CAUCUS,2010Q3,TRAVEL,,"07_09   P1 10DA0100273      SHEVLIN IV, GEORGE F",7/1/10,7/1/10,"TAXI, PARKING, TOLLS",11,FISCAL YEAR 2010,,,,"07_09   P1 10DA0100273      SHEVLIN IV, GEORGE F"
,DEMOCRATIC CAUCUS,2010Q3,TRAVEL,,07_26   P1 10DA0100279           DO,7/13/10,7/13/10,"TAXI, PARKING, TOLLS",11,FISCAL YEAR 2010,,,,07_26   P1 10DA0100279           DO
,DEMOCRATIC CAUCUS,2010Q3,TRAVEL,,"08_09   P1 10DA0100287      BARNES,CHRISTOPHER E",7/29/10,7/29/10,"TAXI, PARKING, TOLLS",14.5,FISCAL YEAR 2010,,,,"08_09   P1 10DA0100287      BARNES,CHRISTOPHER E"
,DEMOCRATIC CAUCUS,2010Q3,PRINTING AND REPRODUCTION,,07_26   S3 10207000046,7/1/10,7/31/10,PHOTOGRAPHIC (TRANSFER),26.2,FISCAL YEAR 2010,,,,07_26   S3 10207000046
,DEMOCRATIC CAUCUS,2010Q3,PRINTING AND REPRODUCTION,,08_11   P1 10DA0100299      KENNETH SOMODEVILLE,8/3/10,8/3/10,PRINTING AND REPRODUCTION,159.59,FISCAL YEAR 2010,,,,08_11   P1 10DA0100299      KENNETH SOMODEVILLE
,DEMOCRATIC CAUCUS,2010Q3,PRINTING AND REPRODUCTION,,08_26   S3 10238000050,8/1/10,8/31/10,PHOTOGRAPHIC (TRANSFER),54.6,FISCAL YEAR 2010,,,,08_26   S3 10238000050
,DEMOCRATIC CAUCUS,2010Q3,PRINTING AND REPRODUCTION,,"09_13 P1 10DA0100301        SHEVLIN IV, GEORGE F",8/2/10,8/2/10,PRINTING AND REPRODUCTION,196.99,FISCAL YEAR 2010,,,,"09_13 P1 10DA0100301        SHEVLIN IV, GEORGE F"
,DEMOCRATIC CAUCUS,2010Q3,PRINTING AND REPRODUCTION,,"09_23 P1 10DA0100310        PIERSON, ROBERT M",9/15/10,9/15/10,PRINTING AND REPRODUCTION,18.25,FISCAL YEAR 2010,,,,"09_23 P1 10DA0100310        PIERSON, ROBERT M"
,DEMOCRATIC CAUCUS,2010Q3,OTHER SERVICES,,"07_09      P1   10DA0100268                BANJAC,SRDAN",6/28/10,6/28/10,LAUNDRY SERVICE,127.32,FISCAL YEAR 2010,,,,"07_09      P1   10DA0100268                BANJAC,SRDAN"
,DEMOCRATIC CAUCUS,2010Q3,OTHER SERVICES,,08_02      P1   10DA0100285                     DO,7/20/10,7/20/10,LAUNDRY SERVICE,95.49,FISCAL YEAR 2010,,,,08_02      P1   10DA0100285                     DO
,DEMOCRATIC CAUCUS,2010Q3,OTHER SERVICES,,08_11      P1   10DA0100298                     DO,8/6/10,8/6/10,LAUNDRY SERVICE,137.93,FISCAL YEAR 2010,,,,08_11      P1   10DA0100298                     DO
,DEMOCRATIC CAUCUS,2010Q3,OTHER SERVICES,,09_27      HV   10A90301109                     DO,9/8/10,9/8/10,LAUNDRY SERVICE,53.05,FISCAL YEAR 2010,,,,09_27      HV   10A90301109                     DO
,DEMOCRATIC CAUCUS,2010Q3,SUPPLIES AND MATERIALS,,"07_09      P1   10DA0100272      MALERBA,LIZ",6/14/10,6/14/10,FOOD & BEVERAGE,175.63,FISCAL YEAR 2010,,,,"07_09      P1   10DA0100272      MALERBA,LIZ"
,DEMOCRATIC CAUCUS,2010Q3,SUPPLIES AND MATERIALS,,07_09      P1   10DA0100275           DO,7/1/10,7/1/10,FOOD & BEVERAGE,54.66,FISCAL YEAR 2010,,,,07_09      P1   10DA0100275           DO
,DEMOCRATIC CAUCUS,2010Q3,SUPPLIES AND MATERIALS,,"07_09      P1   10DA0100269      PERONACE,ANTONIO",6/28/10,6/28/10,FOOD & BEVERAGE,80.58,FISCAL YEAR 2010,,,,"07_09      P1   10DA0100269      PERONACE,ANTONIO"
,DEMOCRATIC CAUCUS,2010Q3,SUPPLIES AND MATERIALS,,07_09      P1   10DA0100271           DO,6/28/10,6/28/10,FOOD & BEVERAGE,20.07,FISCAL YEAR 2010,,,,07_09      P1   10DA0100271           DO
,DEMOCRATIC CAUCUS,2010Q3,SUPPLIES AND MATERIALS,,"07_09      P1   10DA0100270      RUBINO,SHELLEY M",6/29/10,6/29/10,FOOD & BEVERAGE,10.96,FISCAL YEAR 2010,,,,"07_09      P1   10DA0100270      RUBINO,SHELLEY M"
,DEMOCRATIC CAUCUS,2010Q3,SUPPLIES AND MATERIALS,,07_09      P1   10DA0100274           DO,7/1/10,7/1/10,FOOD & BEVERAGE,409.5,FISCAL YEAR 2010,,,,07_09      P1   10DA0100274           DO
,DEMOCRATIC CAUCUS,2010Q3,SUPPLIES AND MATERIALS,,"07_09      P1   10DA0100276      SHEVLIN IV, GEORGE F",7/1/10,7/1/10,FOOD & BEVERAGE,654,FISCAL YEAR 2010,,,,"07_09      P1   10DA0100276      SHEVLIN IV, GEORGE F"
,DEMOCRATIC CAUCUS,2010Q3,SUPPLIES AND MATERIALS,,"07_26      P1   10DA0100277      MALERBA,LIZ",7/13/10,7/13/10,FOOD & BEVERAGE,34.64,FISCAL YEAR 2010,,,,"07_26      P1   10DA0100277      MALERBA,LIZ"
,DEMOCRATIC CAUCUS,2010Q3,SUPPLIES AND MATERIALS,,"07_26      P1   10DA0100278      SHEVLIN IV, GEORGE F",7/12/10,7/12/10,FOOD & BEVERAGE,112.39,FISCAL YEAR 2010,,,,"07_26      P1   10DA0100278      SHEVLIN IV, GEORGE F"
,DEMOCRATIC CAUCUS,2010Q3,SUPPLIES AND MATERIALS,,"08_02      P1   10DA0100284      BANJAC,SRDAN",7/20/10,7/20/10,FOOD & BEVERAGE,23.76,FISCAL YEAR 2010,,,,"08_02      P1   10DA0100284      BANJAC,SRDAN"
,DEMOCRATIC CAUCUS,2010Q3,SUPPLIES AND MATERIALS,,"08_02      P1   10DA0100282      SHEVLIN IV, GEORGE F",7/26/10,7/26/10,FOOD & BEVERAGE,525.41,FISCAL YEAR 2010,,,,"08_02      P1   10DA0100282      SHEVLIN IV, GEORGE F"
,DEMOCRATIC CAUCUS,2010Q3,SUPPLIES AND MATERIALS,,08_02      P1   10DA0100283           DO,7/26/10,7/26/10,FOOD & BEVERAGE,211.05,FISCAL YEAR 2010,,,,08_02      P1   10DA0100283           DO
,DEMOCRATIC CAUCUS,2010Q3,SUPPLIES AND MATERIALS,,08_05      C1   NW201021501      DEER PARK,6/30/10,6/30/10,BOTTLED WATER,16,FISCAL YEAR 2010,,,,08_05      C1   NW201021501      DEER PARK
,DEMOCRATIC CAUCUS,2010Q3,SUPPLIES AND MATERIALS,,08_05      C1   NW201021501           DO,6/30/10,6/30/10,BOTTLED WATER,40,FISCAL YEAR 2010,,,,08_05      C1   NW201021501           DO
,DEMOCRATIC CAUCUS,2010Q3,SUPPLIES AND MATERIALS,,08_05      C1   NW201021501           DO,6/1/10,6/1/10,BOTTLED WATER,78.97,FISCAL YEAR 2010,,,,08_05      C1   NW201021501           DO
,DEMOCRATIC CAUCUS,2010Q3,SUPPLIES AND MATERIALS,,08_05      C1   NW201021501           DO,6/10/10,6/10/10,BOTTLED WATER,35.98,FISCAL YEAR 2010,,,,08_05      C1   NW201021501           DO
,DEMOCRATIC CAUCUS,2010Q3,SUPPLIES AND MATERIALS,,08_05      C1   NW201021501           DO,6/24/10,6/24/10,BOTTLED WATER,124.86,FISCAL YEAR 2010,,,,08_05      C1   NW201021501           DO
,DEMOCRATIC CAUCUS,2010Q3,SUPPLIES AND MATERIALS,,08_05      C1   NW201021501           DO,6/30/10,6/30/10,BOTTLED WATER,87.89,FISCAL YEAR 2010,,,,08_05      C1   NW201021501           DO
,DEMOCRATIC CAUCUS,2010Q3,SUPPLIES AND MATERIALS,,08_05      C1   NW201021501           DO,6/30/10,6/30/10,BOTTLED WATER,2,FISCAL YEAR 2010,,,,08_05      C1   NW201021501           DO
,DEMOCRATIC CAUCUS,2010Q3,SUPPLIES AND MATERIALS,,08_05      C1   NW201021501           DO,6/30/10,6/30/10,BOTTLED WATER,2,FISCAL YEAR 2010,,,,08_05      C1   NW201021501           DO
,DEMOCRATIC CAUCUS,2010Q3,SUPPLIES AND MATERIALS,,"08_09      P1   10DA0100286      MALERBA,LIZ",7/26/10,7/26/10,FOOD & BEVERAGE,85.82,FISCAL YEAR 2010,,,,"08_09      P1   10DA0100286      MALERBA,LIZ"
,DEMOCRATIC CAUCUS,2010Q3,SUPPLIES AND MATERIALS,,08_09      P1   10DA0100288           DO,7/29/10,7/29/10,FOOD & BEVERAGE,89.5,FISCAL YEAR 2010,,,,08_09      P1   10DA0100288           DO
,DEMOCRATIC CAUCUS,2010Q3,SUPPLIES AND MATERIALS,,"08_09      P1   10DA0100291      RUBINO,SHELLEY M",7/13/10,7/13/10,FOOD & BEVERAGE,"1,100.75",FISCAL YEAR 2010,,,,"08_09      P1   10DA0100291      RUBINO,SHELLEY M"
,DEMOCRATIC CAUCUS,2010Q3,SUPPLIES AND MATERIALS,,08_09      P1   10DA0100292           DO,7/20/10,7/20/10,FOOD & BEVERAGE,975,FISCAL YEAR 2010,,,,08_09      P1   10DA0100292           DO
,DEMOCRATIC CAUCUS,2010Q3,SUPPLIES AND MATERIALS,,08_09      P1   10DA0100293           DO,7/28/10,7/28/10,FOOD & BEVERAGE,354.2,FISCAL YEAR 2010,,,,08_09      P1   10DA0100293           DO
,DEMOCRATIC CAUCUS,2010Q3,SUPPLIES AND MATERIALS,,08_09      P1   10DA0100294           DO,7/28/10,7/28/10,FOOD & BEVERAGE,929.5,FISCAL YEAR 2010,,,,08_09      P1   10DA0100294           DO
,DEMOCRATIC CAUCUS,2010Q3,SUPPLIES AND MATERIALS,,"08_09      P1   10DA0100295      SHEVLIN IV, GEORGE F",7/29/10,7/29/10,FOOD & BEVERAGE,11,FISCAL YEAR 2010,,,,"08_09      P1   10DA0100295      SHEVLIN IV, GEORGE F"
,DEMOCRATIC CAUCUS,2010Q3,SUPPLIES AND MATERIALS,,08_11      P1   10DA0100300      CQ PRESS,8/3/10,8/3/10,PUBLICATION REF MATERIAL,450,FISCAL YEAR 2010,,,,08_11      P1   10DA0100300      CQ PRESS
,DEMOCRATIC CAUCUS,2010Q3,SUPPLIES AND MATERIALS,,08_23      C1   NW201023101      DEER PARK,7/31/10,7/31/10,BOTTLED WATER,16,FISCAL YEAR 2010,,,,08_23      C1   NW201023101      DEER PARK
,DEMOCRATIC CAUCUS,2010Q3,SUPPLIES AND MATERIALS,,08_23      C1   NW201023101           DO,7/31/10,7/31/10,BOTTLED WATER,40,FISCAL YEAR 2010,,,,08_23      C1   NW201023101           DO
,DEMOCRATIC CAUCUS,2010Q3,SUPPLIES AND MATERIALS,,08_23      C1   NW201023101           DO,7/9/10,7/9/10,BOTTLED WATER,115.87,FISCAL YEAR 2010,,,,08_23      C1   NW201023101           DO
,DEMOCRATIC CAUCUS,2010Q3,SUPPLIES AND MATERIALS,,08_23      C1   NW201023101           DO,7/26/10,7/26/10,BOTTLED WATER,119.86,FISCAL YEAR 2010,,,,08_23      C1   NW201023101           DO
,DEMOCRATIC CAUCUS,2010Q3,SUPPLIES AND MATERIALS,,08_23      C1   NW201023101           DO,7/30/10,7/30/10,BOTTLED WATER,70.93,FISCAL YEAR 2010,,,,08_23      C1   NW201023101           DO
,DEMOCRATIC CAUCUS,2010Q3,SUPPLIES AND MATERIALS,,08_23   C1   NW201023101             DO,7/28/10,7/28/10,BOTTLED WATER,25,FISCAL YEAR 2010,,,,08_23   C1   NW201023101             DO
,DEMOCRATIC CAUCUS,2010Q3,SUPPLIES AND MATERIALS,,08_23   C1   NW201023101             DO,7/31/10,7/31/10,BOTTLED WATER,2,FISCAL YEAR 2010,,,,08_23   C1   NW201023101             DO
,DEMOCRATIC CAUCUS,2010Q3,SUPPLIES AND MATERIALS,,08_23   C1   NW201023101             DO,7/31/10,7/31/10,BOTTLED WATER,2,FISCAL YEAR 2010,,,,08_23   C1   NW201023101             DO
,DEMOCRATIC CAUCUS,2010Q3,SUPPLIES AND MATERIALS,,"09_13   P1   10DA0100303    BANJAC,SRDAN",8/9/10,8/9/10,FOOD & BEVERAGE,60.44,FISCAL YEAR 2010,,,,"09_13   P1   10DA0100303    BANJAC,SRDAN"
,DEMOCRATIC CAUCUS,2010Q3,SUPPLIES AND MATERIALS,,"09_13   P1   10DA0100304    SHEVLIN IV, GEORGE F",8/9/10,8/9/10,FOOD & BEVERAGE,221.35,FISCAL YEAR 2010,,,,"09_13   P1   10DA0100304    SHEVLIN IV, GEORGE F"
,DEMOCRATIC CAUCUS,2010Q3,SUPPLIES AND MATERIALS,,09_13   P1   10DA0100305    THE WALL STREET JOURNAL,4/30/11,4/10/12,PUBLICATION REF MATERIAL,263.94,FISCAL YEAR 2010,,,,09_13   P1   10DA0100305    THE WALL STREET JOURNAL
,DEMOCRATIC CAUCUS,2010Q3,SUPPLIES AND MATERIALS,,09_20   C1   NW201025901    DEER PARK,8/31/10,8/31/10,BOTTLED WATER,16,FISCAL YEAR 2010,,,,09_20   C1   NW201025901    DEER PARK
,DEMOCRATIC CAUCUS,2010Q3,SUPPLIES AND MATERIALS,,09_20   C1   NW201025901             DO,8/31/10,8/31/10,BOTTLED WATER,40,FISCAL YEAR 2010,,,,09_20   C1   NW201025901             DO
,DEMOCRATIC CAUCUS,2010Q3,SUPPLIES AND MATERIALS,,09_20   C1   NW201025901             DO,8/9/10,8/9/10,BOTTLED WATER,109.86,FISCAL YEAR 2010,,,,09_20   C1   NW201025901             DO
,DEMOCRATIC CAUCUS,2010Q3,SUPPLIES AND MATERIALS,,09_20   C1   NW201025901             DO,8/24/10,8/24/10,BOTTLED WATER,5,FISCAL YEAR 2010,,,,09_20   C1   NW201025901             DO
,DEMOCRATIC CAUCUS,2010Q3,SUPPLIES AND MATERIALS,,09_20   C1   NW201025901             DO,8/30/10,8/30/10,BOTTLED WATER,70.93,FISCAL YEAR 2010,,,,09_20   C1   NW201025901             DO
,DEMOCRATIC CAUCUS,2010Q3,SUPPLIES AND MATERIALS,,09_20   C1   NW201025901             DO,8/31/10,8/31/10,BOTTLED WATER,2,FISCAL YEAR 2010,,,,09_20   C1   NW201025901             DO
,DEMOCRATIC CAUCUS,2010Q3,SUPPLIES AND MATERIALS,,09_20   C1   NW201025901             DO,8/31/10,8/31/10,BOTTLED WATER,2,FISCAL YEAR 2010,,,,09_20   C1   NW201025901             DO
,DEMOCRATIC CAUCUS,2010Q3,SUPPLIES AND MATERIALS,,"09_23   P1   10DA0100309    PIERSON, ROBERT M",8/29/10,8/29/10,PUBLICATION REF MATERIAL,37.92,FISCAL YEAR 2010,,,,"09_23   P1   10DA0100309    PIERSON, ROBERT M"
,DEMOCRATIC CAUCUS,2010Q3,SUPPLIES AND MATERIALS,,09_23   P1   10DA0100313             DO,8/31/10,8/31/10,PUBLICATION REF MATERIAL,125,FISCAL YEAR 2010,,,,09_23   P1   10DA0100313             DO
,DEMOCRATIC CAUCUS,2010Q3,SUPPLIES AND MATERIALS,,09_23   P1   10DA0100318             DO,9/14/10,9/14/10,PUBLICATION REF MATERIAL,15.9,FISCAL YEAR 2010,,,,09_23   P1   10DA0100318             DO
,DEMOCRATIC CAUCUS,2010Q3,SUPPLIES AND MATERIALS,,"09_23   P1   10DA0100314    RUBINO,SHELLEY M",9/15/10,9/15/10,FOOD & BEVERAGE,44.28,FISCAL YEAR 2010,,,,"09_23   P1   10DA0100314    RUBINO,SHELLEY M"
,DEMOCRATIC CAUCUS,2010Q3,SUPPLIES AND MATERIALS,,"09_23   P1   10DA0100316    SHEVLIN IV, GEORGE F",9/13/10,9/13/10,FOOD & BEVERAGE,337.98,FISCAL YEAR 2010,,,,"09_23   P1   10DA0100316    SHEVLIN IV, GEORGE F"
,DEMOCRATIC CAUCUS,2010Q3,SUPPLIES AND MATERIALS,,09_23   P1   10DA0100317             DO,9/14/10,9/14/10,FOOD & BEVERAGE,16,FISCAL YEAR 2010,,,,09_23   P1   10DA0100317             DO
,DEMOCRATIC CAUCUS,2010Q3,SUPPLIES AND MATERIALS,,"09_25   P1   10DA0100325    RUBINO,SHELLEY M",8/10/10,8/10/10,FOOD & BEVERAGE,810.5,FISCAL YEAR 2010,,,,"09_25   P1   10DA0100325    RUBINO,SHELLEY M"
,DEMOCRATIC CAUCUS,2010Q3,SUPPLIES AND MATERIALS,,09_25   P1   10DA0100326             DO,9/13/10,9/13/10,FOOD & BEVERAGE,255.21,FISCAL YEAR 2010,,,,09_25   P1   10DA0100326             DO
,DEMOCRATIC CAUCUS,2010Q3,SUPPLIES AND MATERIALS,,09_25   P1   10DA0100320    TV EYES INC,1/1/11,12/31/11,PUBLICATION REF MATERIAL,"1,200.00",FISCAL YEAR 2010,,,,09_25   P1   10DA0100320    TV EYES INC
,DEMOCRATIC CAUCUS,2010Q3,SUPPLIES AND MATERIALS,,09_27   P1   10DA0100328    CQ PRESS,4/16/11,4/15/12,PUBLICATION REF MATERIAL,"20,850.00",FISCAL YEAR 2010,,,,09_27   P1   10DA0100328    CQ PRESS
,DEMOCRATIC CAUCUS,2010Q3,SUPPLIES AND MATERIALS,,"09_27   P1   10DA0100311    LEADERSHIP DIRECTORIES, INC",1/1/11,6/30/12,PUBLICATION REF MATERIAL,"7,100.00",FISCAL YEAR 2010,,,,"09_27   P1   10DA0100311    LEADERSHIP DIRECTORIES, INC"
,DEMOCRATIC CAUCUS,2010Q3,SUPPLIES AND MATERIALS,,"09_27   P1   10DA0100315    RUBINO,SHELLEY M",9/14/10,9/14/10,FOOD & BEVERAGE,"1,217.41",FISCAL YEAR 2010,,,,"09_27   P1   10DA0100315    RUBINO,SHELLEY M"
,DEMOCRATIC CAUCUS,2010Q3,SUPPLIES AND MATERIALS,,09_27   HV   10A90301111    THE WASHINGTON POST,9/22/10,9/21/11,PUBLICATION REF MATERIAL,280.28,FISCAL YEAR 2010,,,,09_27   HV   10A90301111    THE WASHINGTON POST
,DEMOCRATIC CAUCUS,2010Q3,SUPPLIES AND MATERIALS,,09_30   HV   10A90100265,9/2/10,9/2/10,FRAMING (TRANSFER),486,FISCAL YEAR 2010,,,,09_30   HV   10A90100265
,REPUBLICAN CONFERENCE,2010Q3,PERSONNEL COMPENSATION,,"PITCOCK, JOSH",8/1/10,9/30/10,DEP CHIEF OF STAFF/GEN COUNSEL,"25,833.34",FISCAL YEAR 2010,,,,"PITCOCK, JOSH"
,REPUBLICAN CONFERENCE,2010Q3,PERSONNEL COMPENSATION,,"PITCOCK, JOSH",7/1/10,7/31/10,DEPUTY CHIEF OF STAFF-STATUTOR,"13,585.00",FISCAL YEAR 2010,,,,DO
,REPUBLICAN CONFERENCE,2010Q3,PERSONNEL COMPENSATION,,"SHORT,MARC T",7/1/10,9/30/10,CHIEF OF STAFF (STATUTORY),"43,125.00",FISCAL YEAR 2010,,,,"SHORT,MARC T"
,REPUBLICAN CONFERENCE,2010Q3,PERSONNEL COMPENSATION,,"CASTILLO, ANDELIZ N",7/1/10,9/30/10,DIR OUTRCH COMMS/DEP PRESS SEC,"15,249.99",FISCAL YEAR 2010,,,,"CASTILLO, ANDELIZ N"
,REPUBLICAN CONFERENCE,2010Q3,PERSONNEL COMPENSATION,,"DEUTSCH,JEREMY",7/1/10,9/30/10,SHARED EMPLOYEE,"15,743.76",FISCAL YEAR 2010,,,,"DEUTSCH,JEREMY"
,REPUBLICAN CONFERENCE,2010Q3,PERSONNEL COMPENSATION,,"GRAY,JOHN W",7/1/10,9/30/10,POLICY ADVISOR,"12,500.01",FISCAL YEAR 2010,,,,"GRAY,JOHN W"
,REPUBLICAN CONFERENCE,2010Q3,PERSONNEL COMPENSATION,,"HEPBURN, ADAM J",7/1/10,9/30/10,POLICY ADVISOR,"12,000.00",FISCAL YEAR 2010,,,,"HEPBURN, ADAM J"
,REPUBLICAN CONFERENCE,2010Q3,PERSONNEL COMPENSATION,,"HILER,JONATHAN D",9/1/10,9/30/10,POLICY ADVISOR,"4,000.00",FISCAL YEAR 2010,,,,"HILER,JONATHAN D"
,REPUBLICAN CONFERENCE,2010Q3,PERSONNEL COMPENSATION,,"HILER,JONATHAN D",7/6/10,8/31/10,POLICY INTERN,"3,299.85",FISCAL YEAR 2010,,,,DO
,REPUBLICAN CONFERENCE,2010Q3,PERSONNEL COMPENSATION,,"HOWARD,BENJAMIN R",7/1/10,9/30/10,STAFF ASSISTANT,"7,749.99",FISCAL YEAR 2010,,,,"HOWARD,BENJAMIN R"
,REPUBLICAN CONFERENCE,2010Q3,PERSONNEL COMPENSATION,,"KOENIG,ANDREW D",7/1/10,9/30/10,POLICY ADVISOR,"13,749.99",FISCAL YEAR 2010,,,,"KOENIG,ANDREW D"
,REPUBLICAN CONFERENCE,2010Q3,PERSONNEL COMPENSATION,,"KOLB,COURTNEY L",7/12/10,9/30/10,DEPUTY PRESS SECRETARY,"9,655.56",FISCAL YEAR 2010,,,,"KOLB,COURTNEY L"
,REPUBLICAN CONFERENCE,2010Q3,PERSONNEL COMPENSATION,,"KOLB,COURTNEY L",7/1/10,7/11/10,MEDIA COORDINATOR,"1,344.45",FISCAL YEAR 2010,,,,DO
,REPUBLICAN CONFERENCE,2010Q3,PERSONNEL COMPENSATION,,"MACLEAN, MARY G",7/1/10,9/30/10,DEPUTY COMMUNICATIONS DIRECTOR,"18,833.34",FISCAL YEAR 2010,,,,"MACLEAN, MARY G"
,REPUBLICAN CONFERENCE,2010Q3,PERSONNEL COMPENSATION,,"MAKIN, SARAH E",7/1/10,9/30/10,POLICY ADV & COALITIONS LIAISO,"14,250.00",FISCAL YEAR 2010,,,,"MAKIN, SARAH E"
,REPUBLICAN CONFERENCE,2010Q3,PERSONNEL COMPENSATION,,"MCMANUS,BRIAN F",7/1/10,9/30/10,POLICY ADV & COALITIONS LIAISO,"18,750.00",FISCAL YEAR 2010,,,,"MCMANUS,BRIAN F"
,REPUBLICAN CONFERENCE,2010Q3,PERSONNEL COMPENSATION,,"MEEKS,DARIS",7/1/10,7/31/10,POLICY ADVISOR & LEGIS. COUNS,"11,833.33",FISCAL YEAR 2010,,,,"MEEKS,DARIS"
,REPUBLICAN CONFERENCE,2010Q3,PERSONNEL COMPENSATION,,"PICKETT,EMILY H",7/6/10,9/30/10,PRESS ASSISTANT,"6,847.23",FISCAL YEAR 2010,,,,"PICKETT,EMILY H"
,REPUBLICAN CONFERENCE,2010Q3,PERSONNEL COMPENSATION,,"SACHTLEBEN,DOUGLAS R",7/1/10,9/30/10,WRITER,"13,125.00",FISCAL YEAR 2010,,,,"SACHTLEBEN,DOUGLAS R"
,REPUBLICAN CONFERENCE,2010Q3,PERSONNEL COMPENSATION,,"SEIDEL, EMILY R",7/1/10,9/30/10,OPS DIR & ASST TO CHF OF STAFF,"23,499.99",FISCAL YEAR 2010,,,,"SEIDEL, EMILY R"
,REPUBLICAN CONFERENCE,2010Q3,PERSONNEL COMPENSATION,,"SEMMEL,RACHEL K",7/1/10,9/30/10,TV/RADIO/BOOKER,"9,999.99",FISCAL YEAR 2010,,,,"SEMMEL,RACHEL K"
,REPUBLICAN CONFERENCE,2010Q3,PERSONNEL COMPENSATION,,"SMITH JR, WILLIAM A",7/1/10,9/30/10,SHARED EMPLOYEE,"5,000.01",FISCAL YEAR 2010,,,,"SMITH JR, WILLIAM A"
,REPUBLICAN CONFERENCE,2010Q3,PERSONNEL COMPENSATION,,"SMITH,JA'RON K",7/1/10,9/30/10,STAFF ASSISTANT,"7,749.99",FISCAL YEAR 2010,,,,"SMITH,JA'RON K"
,REPUBLICAN CONFERENCE,2010Q3,PERSONNEL COMPENSATION,,"STICK,KAITLYNN M",7/6/10,9/30/10,PRESS ASSISTANT,"6,847.23",FISCAL YEAR 2010,,,,"STICK,KAITLYNN M"
,REPUBLICAN CONFERENCE,2010Q3,PERSONNEL COMPENSATION,,"STONE, JOHN E",7/1/10,9/30/10,SHARED EMPLOYEE,"13,749.99",FISCAL YEAR 2010,,,,"STONE, JOHN E"
,REPUBLICAN CONFERENCE,2010Q3,PERSONNEL COMPENSATION,,"STRAND, KATHRYN M",7/1/10,9/30/10,DIR OF MEMBER SERVICES,"22,500.00",FISCAL YEAR 2010,,,,"STRAND, KATHRYN M"
,REPUBLICAN CONFERENCE,2010Q3,PERSONNEL COMPENSATION,,"THOMPSON,WHITNEY",7/1/10,9/30/10,SHARED EMPLOYEE,"9,999.99",FISCAL YEAR 2010,,,,"THOMPSON,WHITNEY"
,REPUBLICAN CONFERENCE,2010Q3,PERSONNEL COMPENSATION,,"ZIELSKE,RYAN O",9/14/10,9/30/10,INTERN,566.67,FISCAL YEAR 2010,,,,"ZIELSKE,RYAN O"
,REPUBLICAN CONFERENCE,2010Q3,TRAVEL,,"07_14       P1 10RC0100280      MAKIN, SARAH E",6/23/10,6/30/10,"TAXI, PARKING, TOLLS",16,FISCAL YEAR 2010,,,,"07_14       P1 10RC0100280      MAKIN, SARAH E"
,REPUBLICAN CONFERENCE,2010Q3,TRAVEL,,"07_14       P1 10RC0100281      MCMANUS,BRIAN F",6/30/10,6/30/10,"TAXI, PARKING, TOLLS",16,FISCAL YEAR 2010,,,,"07_14       P1 10RC0100281      MCMANUS,BRIAN F"
,REPUBLICAN CONFERENCE,2010Q3,TRAVEL,,07_19       P1 10RC0100282           DO,7/7/10,7/7/10,"TAXI, PARKING, TOLLS",16,FISCAL YEAR 2010,,,,07_19       P1 10RC0100282           DO
,REPUBLICAN CONFERENCE,2010Q3,TRAVEL,,"07_19       P1 10RC0100283      SHORT,MARC T",6/29/10,6/29/10,"TAXI, PARKING, TOLLS",19,FISCAL YEAR 2010,,,,"07_19       P1 10RC0100283      SHORT,MARC T"
,REPUBLICAN CONFERENCE,2010Q3,TRAVEL,,"07_21       P1 10RC0100292      GRAY,JOHN W",7/12/10,7/12/10,MEALS,16.91,FISCAL YEAR 2010,,,,"07_21       P1 10RC0100292      GRAY,JOHN W"
,REPUBLICAN CONFERENCE,2010Q3,TRAVEL,,"07_21   P1    10RC0100293                 PITCOCK, JOSH",7/11/10,7/12/10,MEALS,62.6,FISCAL YEAR 2010,,,,"07_21   P1    10RC0100293                 PITCOCK, JOSH"
,REPUBLICAN CONFERENCE,2010Q3,TRAVEL,,07_21   P1    10RC0100294                      DO,7/12/10,7/12/10,"TAXI, PARKING, TOLLS",55,FISCAL YEAR 2010,,,,07_21   P1    10RC0100294                      DO
,REPUBLICAN CONFERENCE,2010Q3,TRAVEL,,"07_21   P1    10RC0100295                 VOUGHT, RUSSELL",7/11/10,7/12/10,"TAXI, PARKING, TOLLS",50,FISCAL YEAR 2010,,,,"07_21   P1    10RC0100295                 VOUGHT, RUSSELL"
,REPUBLICAN CONFERENCE,2010Q3,TRAVEL,,07_21   P1    10RC0100296                      DO,7/11/10,7/12/10,MEALS,63.61,FISCAL YEAR 2010,,,,07_21   P1    10RC0100296                      DO
,REPUBLICAN CONFERENCE,2010Q3,TRAVEL,,"07_26   P1    10RC0100297                 MAKIN, SARAH E",7/14/10,7/14/10,"TAXI, PARKING, TOLLS",13,FISCAL YEAR 2010,,,,"07_26   P1    10RC0100297                 MAKIN, SARAH E"
,REPUBLICAN CONFERENCE,2010Q3,TRAVEL,,"08_03   P1    10RC0100306                 MCMANUS,BRIAN F",7/21/10,7/21/10,"TAXI, PARKING, TOLLS",16,FISCAL YEAR 2010,,,,"08_03   P1    10RC0100306                 MCMANUS,BRIAN F"
,REPUBLICAN CONFERENCE,2010Q3,TRAVEL,,"08_09   P1    10RC0100312                 MAKIN, SARAH E",7/28/10,7/28/10,"TAXI, PARKING, TOLLS",6,FISCAL YEAR 2010,,,,"08_09   P1    10RC0100312                 MAKIN, SARAH E"
,REPUBLICAN CONFERENCE,2010Q3,TRAVEL,,"08_09   P1    10RC0100313                 MCMANUS,BRIAN F",7/27/10,7/28/10,"TAXI, PARKING, TOLLS",24,FISCAL YEAR 2010,,,,"08_09   P1    10RC0100313                 MCMANUS,BRIAN F"
,REPUBLICAN CONFERENCE,2010Q3,TRAVEL,,08_10   P1    10RC0100316                      DO,8/4/10,8/4/10,"TAXI, PARKING, TOLLS",16,FISCAL YEAR 2010,,,,08_10   P1    10RC0100316                      DO
,REPUBLICAN CONFERENCE,2010Q3,TRAVEL,,"08_10   P1    10RC0100315                 SHORT,MARC T",8/3/10,8/3/10,"TAXI, PARKING, TOLLS",8,FISCAL YEAR 2010,,,,"08_10   P1    10RC0100315                 SHORT,MARC T"
,REPUBLICAN CONFERENCE,2010Q3,TRAVEL,,"08_11   P1    10RC0100324                 HEPBURN, ADAM J",8/3/10,8/3/10,MEALS,30.48,FISCAL YEAR 2010,,,,"08_11   P1    10RC0100324                 HEPBURN, ADAM J"
,REPUBLICAN CONFERENCE,2010Q3,TRAVEL,,"08_11   P1    10RC0100318                 MACLEAN, MARY G",8/2/10,8/3/10,TRAVEL REIMBURSEMENT,27.69,FISCAL YEAR 2010,,,,"08_11   P1    10RC0100318                 MACLEAN, MARY G"
,REPUBLICAN CONFERENCE,2010Q3,TRAVEL,,08_11   P1    10RC0100319                      DO,8/2/10,8/2/10,"TAXI, PARKING, TOLLS",25,FISCAL YEAR 2010,,,,08_11   P1    10RC0100319                      DO
,REPUBLICAN CONFERENCE,2010Q3,TRAVEL,,"08_11   P1    10RC0100317                 MAKIN, SARAH E",8/3/10,8/3/10,"TAXI, PARKING, TOLLS",13,FISCAL YEAR 2010,,,,"08_11   P1    10RC0100317                 MAKIN, SARAH E"
,REPUBLICAN CONFERENCE,2010Q3,TRAVEL,,"08_11   P1    10RC0100323                 PITCOCK, JOSH",8/2/10,8/3/10,"TAXI, PARKING, TOLLS",209,FISCAL YEAR 2010,,,,"08_11   P1    10RC0100323                 PITCOCK, JOSH"
,REPUBLICAN CONFERENCE,2010Q3,TRAVEL,,08_20   P1    10RC0100337                 CITIBANK GOV CARD SERVICE,7/11/10,7/12/10,COMMERCIAL TRANSPORTATION,964.2,FISCAL YEAR 2010,,,,08_20   P1    10RC0100337                 CITIBANK GOV CARD SERVICE
,REPUBLICAN CONFERENCE,2010Q3,TRAVEL,,08_20   P1    10RC0100338                      DO,7/11/10,7/12/10,LODGING,418.95,FISCAL YEAR 2010,,,,08_20   P1    10RC0100338                      DO
,REPUBLICAN CONFERENCE,2010Q3,TRAVEL,,"08_20   P1    10RC0100329                 SEMMEL,RACHEL K",8/13/10,8/13/10,"TAXI, PARKING, TOLLS",12,FISCAL YEAR 2010,,,,"08_20   P1    10RC0100329                 SEMMEL,RACHEL K"
,REPUBLICAN CONFERENCE,2010Q3,TRAVEL,,"08_27   P1    10RC0100341                 MCMANUS,BRIAN F",8/11/10,8/18/10,"TAXI, PARKING, TOLLS",32,FISCAL YEAR 2010,,,,"08_27   P1    10RC0100341                 MCMANUS,BRIAN F"
,REPUBLICAN CONFERENCE,2010Q3,TRAVEL,,"09_01   P1    10RC0100343                 MAKIN, SARAH E",8/25/10,8/25/10,"TAXI, PARKING, TOLLS",30,FISCAL YEAR 2010,,,,"09_01   P1    10RC0100343                 MAKIN, SARAH E"
,REPUBLICAN CONFERENCE,2010Q3,TRAVEL,,09_13   P1    10RC0100352                 CITIBANK GOV CARD SERVICE,7/29/10,7/30/10,COMMERCIAL TRANSPORTATION,"2,411.60",FISCAL YEAR 2010,,,,09_13   P1    10RC0100352                 CITIBANK GOV CARD SERVICE
,REPUBLICAN CONFERENCE,2010Q3,TRAVEL,,09_13   P1    10RC0100353                      DO,7/29/10,7/30/10,LODGING,681.48,FISCAL YEAR 2010,,,,09_13   P1    10RC0100353                      DO
,REPUBLICAN CONFERENCE,2010Q3,TRAVEL,,"09_20   P1    10RC0100357                 MAKIN, SARAH E",9/15/10,9/15/10,"TAXI, PARKING, TOLLS",24,FISCAL YEAR 2010,,,,"09_20   P1    10RC0100357                 MAKIN, SARAH E"
,REPUBLICAN CONFERENCE,2010Q3,TRAVEL,,"09_20   P1    10RC0100355                 MCMANUS,BRIAN F",9/8/10,9/15/10,"TAXI, PARKING, TOLLS",63,FISCAL YEAR 2010,,,,"09_20   P1    10RC0100355                 MCMANUS,BRIAN F"
,REPUBLICAN CONFERENCE,2010Q3,TRAVEL,,"09_25   P1    10RC0100360                 MAKIN, SARAH E",9/17/10,9/17/10,"TAXI, PARKING, TOLLS",28,FISCAL YEAR 2010,,,,"09_25   P1    10RC0100360                 MAKIN, SARAH E"
,REPUBLICAN CONFERENCE,2010Q3,TRAVEL,,"09_28   P1    10RC0100364                 KOLB,COURTNEY L",9/22/10,9/23/10,LODGING,148.5,FISCAL YEAR 2010,,,,"09_28   P1    10RC0100364                 KOLB,COURTNEY L"
,REPUBLICAN CONFERENCE,2010Q3,TRAVEL,,09_28   P1    10RC0100365                      DO,9/22/10,9/22/10,MEALS,24.16,FISCAL YEAR 2010,,,,09_28   P1    10RC0100365                      DO
,REPUBLICAN CONFERENCE,2010Q3,TRAVEL,,"09_28   P1    10RC0100363                 LLOYD, MATTHEW H",9/22/10,9/23/10,LODGING,148.5,FISCAL YEAR 2010,,,,"09_28   P1    10RC0100363                 LLOYD, MATTHEW H"
,REPUBLICAN CONFERENCE,2010Q3,TRAVEL,,"09_28   P1    10RC0100368                 MCMANUS,BRIAN F",9/22/10,9/22/10,"TAXI, PARKING, TOLLS",17,FISCAL YEAR 2010,,,,"09_28   P1    10RC0100368                 MCMANUS,BRIAN F"
,REPUBLICAN CONFERENCE,2010Q3,TRAVEL,,"09_28   P1    10RC0100367                 PITCOCK, JOSH",9/23/10,9/23/10,MEALS,14.33,FISCAL YEAR 2010,,,,"09_28   P1    10RC0100367                 PITCOCK, JOSH"
,REPUBLICAN CONFERENCE,2010Q3,TRAVEL,,"09_28   P1    10RC0100369                 SEMMEL,RACHEL K",9/15/10,9/15/10,"TAXI, PARKING, TOLLS",10,FISCAL YEAR 2010,,,,"09_28   P1    10RC0100369                 SEMMEL,RACHEL K"
,REPUBLICAN CONFERENCE,2010Q3,"RENT, COMMUNICATION, UTILITIES",,08_20   P1    10RC0100333     CITIBANK GOV CARD SERVICE,6/30/10,6/30/10,POSTAGE/COURIER/BOX RENTAL,17.6,FISCAL YEAR 2010,,,,08_20   P1    10RC0100333     CITIBANK GOV CARD SERVICE
,REPUBLICAN CONFERENCE,2010Q3,"RENT, COMMUNICATION, UTILITIES",,08_27   P1    10RC0100342     WINDOW TO THE WORLD COMM,8/8/10,8/8/10,RECORDING (OUTSIDE),950,FISCAL YEAR 2010,,,,08_27   P1    10RC0100342     WINDOW TO THE WORLD COMM
,REPUBLICAN CONFERENCE,2010Q3,"RENT, COMMUNICATION, UTILITIES",,09_13   P1    10RC0100349     CITIBANK GOV CARD SERVICE,8/5/10,8/5/10,POSTAGE/COURIER/BOX RENTAL,17.6,FISCAL YEAR 2010,,,,09_13   P1    10RC0100349     CITIBANK GOV CARD SERVICE
,REPUBLICAN CONFERENCE,2010Q3,"RENT, COMMUNICATION, UTILITIES",,09_13   P1    10RC0100350           DO,8/4/10,8/4/10,TEMPORARY SPACE RENTAL,741.5,FISCAL YEAR 2010,,,,09_13   P1    10RC0100350           DO
,REPUBLICAN CONFERENCE,2010Q3,"RENT, COMMUNICATION, UTILITIES",,09_25   P1    10RC0100362     KGMB TV,8/19/10,8/19/10,RECORDING (OUTSIDE),"1,570.68",FISCAL YEAR 2010,,,,09_25   P1    10RC0100362     KGMB TV
,REPUBLICAN CONFERENCE,2010Q3,PRINTING AND REPRODUCTION,,08_03   P1 10RC0100305      ACCURATE WORD LLC,7/9/10,7/9/10,PRINTING AND REPRODUCTION,41.9,FISCAL YEAR 2010,,,,08_03   P1 10RC0100305      ACCURATE WORD LLC
,REPUBLICAN CONFERENCE,2010Q3,PRINTING AND REPRODUCTION,,08_26   S3 10238000184,8/1/10,8/31/10,PHOTOGRAPHIC (TRANSFER),6.4,FISCAL YEAR 2010,,,,08_26   S3 10238000184
,REPUBLICAN CONFERENCE,2010Q3,OTHER SERVICES,,"07_19   P1 10RC0100287                    KEYNOTES, INC",6/24/10,6/24/10,TRANSLATION & INTERPRETATION,103.62,FISCAL YEAR 2010,,,,"07_19   P1 10RC0100287                    KEYNOTES, INC"
,REPUBLICAN CONFERENCE,2010Q3,OTHER SERVICES,,08_04   P1 10RC0100308                        DO,7/26/10,7/26/10,TRANSLATION & INTERPRETATION,136.05,FISCAL YEAR 2010,,,,08_04   P1 10RC0100308                        DO
,REPUBLICAN CONFERENCE,2010Q3,OTHER SERVICES,,09_25   P1 10RC0100361                        DO,9/14/10,9/15/10,TRANSLATION & INTERPRETATION,167.52,FISCAL YEAR 2010,,,,09_25   P1 10RC0100361                        DO
,REPUBLICAN CONFERENCE,2010Q3,SUPPLIES AND MATERIALS,,"07_02   P1 10RC0100276      SHADOW TV, INC",7/1/10,9/30/10,PUBLICATION REF MATERIAL,"1,500.00",FISCAL YEAR 2010,,,,"07_02   P1 10RC0100276      SHADOW TV, INC"
,REPUBLICAN CONFERENCE,2010Q3,SUPPLIES AND MATERIALS,,07_02 P1 10RC0100275         WHITNEY THOMPSON,5/19/10,6/24/10,FOOD & BEVERAGE,344.43,FISCAL YEAR 2010,,,,07_02 P1 10RC0100275         WHITNEY THOMPSON
,REPUBLICAN CONFERENCE,2010Q3,SUPPLIES AND MATERIALS,,07_14 P1 10RC0100278         CAPITOLHOST,6/9/10,6/9/10,FOOD & BEVERAGE,210,FISCAL YEAR 2010,,,,07_14 P1 10RC0100278         CAPITOLHOST
,REPUBLICAN CONFERENCE,2010Q3,SUPPLIES AND MATERIALS,,07_14 P1 10RC0100279              DO,6/10/10,6/10/10,FOOD & BEVERAGE,360,FISCAL YEAR 2010,,,,07_14 P1 10RC0100279              DO
,REPUBLICAN CONFERENCE,2010Q3,SUPPLIES AND MATERIALS,,07_19 P1 10RC0100284              DO,6/14/10,6/14/10,FOOD & BEVERAGE,"3,813.00",FISCAL YEAR 2010,,,,07_19 P1 10RC0100284              DO
,REPUBLICAN CONFERENCE,2010Q3,SUPPLIES AND MATERIALS,,07_19 P1 10RC0100285              DO,6/15/10,6/15/10,FOOD & BEVERAGE,210,FISCAL YEAR 2010,,,,07_19 P1 10RC0100285              DO
,REPUBLICAN CONFERENCE,2010Q3,SUPPLIES AND MATERIALS,,07_19 P1 10RC0100288         CHANTILLY DONUTS,5/26/10,5/26/10,FOOD & BEVERAGE,34,FISCAL YEAR 2010,,,,07_19 P1 10RC0100288         CHANTILLY DONUTS
,REPUBLICAN CONFERENCE,2010Q3,SUPPLIES AND MATERIALS,,07_19 P1 10RC0100286         WALKER COMMUNICATIONS,7/1/10,7/31/10,PUBLICATION REF MATERIAL,150,FISCAL YEAR 2010,,,,07_19 P1 10RC0100286         WALKER COMMUNICATIONS
,REPUBLICAN CONFERENCE,2010Q3,SUPPLIES AND MATERIALS,,07_20 P1 10RC0100289         CITIBANK GOV CARD SERVICE,5/27/10,6/28/10,FOOD & BEVERAGE,"5,663.41",FISCAL YEAR 2010,,,,07_20 P1 10RC0100289         CITIBANK GOV CARD SERVICE
,REPUBLICAN CONFERENCE,2010Q3,SUPPLIES AND MATERIALS,,07_20 P1 10RC0100291              DO,6/1/10,6/30/10,PUBLICATION REF MATERIAL,5.95,FISCAL YEAR 2010,,,,07_20 P1 10RC0100291              DO
,REPUBLICAN CONFERENCE,2010Q3,SUPPLIES AND MATERIALS,,07_26 P1 10RC0100299         CAPITOLHOST,6/29/10,6/29/10,FOOD & BEVERAGE,94.5,FISCAL YEAR 2010,,,,07_26 P1 10RC0100299         CAPITOLHOST
,REPUBLICAN CONFERENCE,2010Q3,SUPPLIES AND MATERIALS,,07_26 P1 10RC0100298         TIME,12/9/10,12/9/11,PUBLICATION REF MATERIAL,30.24,FISCAL YEAR 2010,,,,07_26 P1 10RC0100298         TIME
,REPUBLICAN CONFERENCE,2010Q3,SUPPLIES AND MATERIALS,,08_04 P1 10RC0100309         CHANTILLY DONUTS,7/22/10,7/22/10,FOOD & BEVERAGE,72,FISCAL YEAR 2010,,,,08_04 P1 10RC0100309         CHANTILLY DONUTS
,REPUBLICAN CONFERENCE,2010Q3,SUPPLIES AND MATERIALS,,"08_04 P1 10RC0100310         KOLB,COURTNEY L",7/7/10,7/16/10,FOOD & BEVERAGE,89.91,FISCAL YEAR 2010,,,,"08_04 P1 10RC0100310         KOLB,COURTNEY L"
,REPUBLICAN CONFERENCE,2010Q3,SUPPLIES AND MATERIALS,,08_05 C1 NW201021504         DEER PARK,6/10/10,6/10/10,BOTTLED WATER,88.93,FISCAL YEAR 2010,,,,08_05 C1 NW201021504         DEER PARK
,REPUBLICAN CONFERENCE,2010Q3,SUPPLIES AND MATERIALS,,08_05 C1 NW201021504              DO,6/25/10,6/25/10,BOTTLED WATER,123.89,FISCAL YEAR 2010,,,,08_05 C1 NW201021504              DO
,REPUBLICAN CONFERENCE,2010Q3,SUPPLIES AND MATERIALS,,08_05 C1 NW201021504              DO,6/30/10,6/30/10,BOTTLED WATER,2,FISCAL YEAR 2010,,,,08_05 C1 NW201021504              DO
,REPUBLICAN CONFERENCE,2010Q3,SUPPLIES AND MATERIALS,,"08_09 P1 10RC0100311         KOLB,COURTNEY L",7/23/10,7/23/10,FOOD & BEVERAGE,52.01,FISCAL YEAR 2010,,,,"08_09 P1 10RC0100311         KOLB,COURTNEY L"
,REPUBLICAN CONFERENCE,2010Q3,SUPPLIES AND MATERIALS,,"08_10 P1 10RC0100314         THOMPSON,WHITNEY",7/1/10,7/29/10,FOOD & BEVERAGE,284.06,FISCAL YEAR 2010,,,,"08_10 P1 10RC0100314         THOMPSON,WHITNEY"
,REPUBLICAN CONFERENCE,2010Q3,SUPPLIES AND MATERIALS,,08_10 P1 10RC0100321         WALKER COMMUNICATIONS,8/1/10,8/31/10,PUBLICATION REF MATERIAL,150,FISCAL YEAR 2010,,,,08_10 P1 10RC0100321         WALKER COMMUNICATIONS
,REPUBLICAN CONFERENCE,2010Q3,SUPPLIES AND MATERIALS,,"08_11 P1 10RC0100322         PITCOCK, JOSH",8/3/10,8/3/10,FOOD & BEVERAGE,243.61,FISCAL YEAR 2010,,,,"08_11 P1 10RC0100322         PITCOCK, JOSH"
,REPUBLICAN CONFERENCE,2010Q3,SUPPLIES AND MATERIALS,,"08_11 P1 10RC0100320         SEIDEL, EMILY R",8/5/10,8/5/10,OFFICE SUPPLIES OUTSIDE,26.82,FISCAL YEAR 2010,,,,"08_11 P1 10RC0100320         SEIDEL, EMILY R"
,REPUBLICAN CONFERENCE,2010Q3,SUPPLIES AND MATERIALS,,08_20 P1 10RC0100327         CAPITOLHOST,7/22/10,7/22/10,FOOD & BEVERAGE,210,FISCAL YEAR 2010,,,,08_20 P1 10RC0100327         CAPITOLHOST
,REPUBLICAN CONFERENCE,2010Q3,SUPPLIES AND MATERIALS,,08_20 P1 10RC0100330         CITIBANK GOV CARD SERVICE,6/28/10,7/28/10,FOOD & BEVERAGE,"5,408.97",FISCAL YEAR 2010,,,,08_20 P1 10RC0100330         CITIBANK GOV CARD SERVICE
,REPUBLICAN CONFERENCE,2010Q3,SUPPLIES AND MATERIALS,,08_20 P1 10RC0100336              DO,7/1/10,7/31/10,PUBLICATION REF MATERIAL,5.95,FISCAL YEAR 2010,,,,08_20 P1 10RC0100336              DO
,REPUBLICAN CONFERENCE,2010Q3,SUPPLIES AND MATERIALS,,"08_20 P1 10RC0100328         MAKIN, SARAH E",8/13/10,8/13/10,FOOD & BEVERAGE,53.48,FISCAL YEAR 2010,,,,"08_20 P1 10RC0100328         MAKIN, SARAH E"
,REPUBLICAN CONFERENCE,2010Q3,SUPPLIES AND MATERIALS,,08_23 C1 NW201023104         DEER PARK,7/12/10,7/12/10,BOTTLED WATER,120.87,FISCAL YEAR 2010,,,,08_23 C1 NW201023104         DEER PARK
,REPUBLICAN CONFERENCE,2010Q3,SUPPLIES AND MATERIALS,,08_23 C1 NW201023104              DO,7/27/10,7/27/10,BOTTLED WATER,147.84,FISCAL YEAR 2010,,,,08_23 C1 NW201023104              DO
,REPUBLICAN CONFERENCE,2010Q3,SUPPLIES AND MATERIALS,,08_23 C1 NW201023104              DO,7/31/10,7/31/10,BOTTLED WATER,2,FISCAL YEAR 2010,,,,08_23 C1 NW201023104              DO
,REPUBLICAN CONFERENCE,2010Q3,SUPPLIES AND MATERIALS,,"08_27 P1 10RC0100340         BELL,PATRICK",8/16/10,8/16/10,FOOD & BEVERAGE,33.93,FISCAL YEAR 2010,,,,"08_27 P1 10RC0100340         BELL,PATRICK"
,REPUBLICAN CONFERENCE,2010Q3,SUPPLIES AND MATERIALS,,08_27 P1 10RC0100339         CAPITOLHOST,8/10/10,8/10/10,FOOD & BEVERAGE,"2,170.90",FISCAL YEAR 2010,,,,08_27 P1 10RC0100339         CAPITOLHOST
,REPUBLICAN CONFERENCE,2010Q3,SUPPLIES AND MATERIALS,,"09_01 P1 10RC0100344         SEIDEL, EMILY R",8/25/10,8/25/10,FOOD & BEVERAGE,810.29,FISCAL YEAR 2010,,,,"09_01 P1 10RC0100344         SEIDEL, EMILY R"
,REPUBLICAN CONFERENCE,2010Q3,SUPPLIES AND MATERIALS,,"09_08 P1 10RC0100346         PITCOCK, JOSH",8/31/10,8/31/10,FOOD & BEVERAGE,17,FISCAL YEAR 2010,,,,"09_08 P1 10RC0100346         PITCOCK, JOSH"
,REPUBLICAN CONFERENCE,2010Q3,SUPPLIES AND MATERIALS,,09_08 P1 10RC0100345         WALKER COMMUNICATIONS,9/1/10,9/30/10,PUBLICATION REF MATERIAL,150,FISCAL YEAR 2010,,,,09_08 P1 10RC0100345         WALKER COMMUNICATIONS
,REPUBLICAN CONFERENCE,2010Q3,SUPPLIES AND MATERIALS,,09_13 P1 10RC0100347         CITIBANK GOV CARD SERVICE,7/27/10,8/23/10,FOOD & BEVERAGE,"1,754.71",FISCAL YEAR 2010,,,,09_13 P1 10RC0100347         CITIBANK GOV CARD SERVICE
,REPUBLICAN CONFERENCE,2010Q3,SUPPLIES AND MATERIALS,,09_13 P1 10RC0100351              DO,8/11/10,8/14/10,PUBLICATION REF MATERIAL,89.69,FISCAL YEAR 2010,,,,09_13 P1 10RC0100351              DO
,REPUBLICAN CONFERENCE,2010Q3,SUPPLIES AND MATERIALS,,09_20 P1 10RC0100356         ACCURATE WORD LLC,9/13/10,9/13/10,PUBLICATION REF MATERIAL,61.85,FISCAL YEAR 2010,,,,09_20 P1 10RC0100356         ACCURATE WORD LLC
,REPUBLICAN CONFERENCE,2010Q3,SUPPLIES AND MATERIALS,,09_20 C1 NW201025904         DEER PARK,8/10/10,8/10/10,BOTTLED WATER,108.89,FISCAL YEAR 2010,,,,09_20 C1 NW201025904         DEER PARK
,REPUBLICAN CONFERENCE,2010Q3,SUPPLIES AND MATERIALS,,09_20 C1 NW201025904              DO,8/25/10,8/25/10,BOTTLED WATER,80.93,FISCAL YEAR 2010,,,,09_20 C1 NW201025904              DO
,REPUBLICAN CONFERENCE,2010Q3,SUPPLIES AND MATERIALS,,09_20 C1 NW201025904              DO,8/31/10,8/31/10,BOTTLED WATER,2,FISCAL YEAR 2010,,,,09_20 C1 NW201025904              DO
,REPUBLICAN CONFERENCE,2010Q3,SUPPLIES AND MATERIALS,,"09_20 P1 10RC0100358         SHADOW TV, INC",10/1/10,12/31/10,PUBLICATION REF MATERIAL,"1,500.00",FISCAL YEAR 2010,,,,"09_20 P1 10RC0100358         SHADOW TV, INC"
,REPUBLICAN CONFERENCE,2010Q3,SUPPLIES AND MATERIALS,,"09_28 P1 10RC0100366         STRAND, KATHRYN M",9/23/10,9/23/10,FOOD & BEVERAGE,25.16,FISCAL YEAR 2010,,,,"09_28 P1 10RC0100366         STRAND, KATHRYN M"
,REPUBLICAN CONFERENCE,2010Q3,EQUIPMENT,,09_13       P1 10RC0100354                   CITIBANK GOV CARD SERVICE,8/27/10,8/27/10,COMP SOFTWARE PURCH _ $10000,59.95,FISCAL YEAR 2010,,,,09_13       P1 10RC0100354                   CITIBANK GOV CARD SERVICE
,REPUBLICAN POLICY COMMITTEE,2010Q3,PERSONNEL COMPENSATION,,"ANUZIS,ANDRIUS A",7/1/10,9/30/10,SHARED EMPLOYEE,300,FISCAL YEAR 2010,,,,"ANUZIS,ANDRIUS A"
,REPUBLICAN POLICY COMMITTEE,2010Q3,PERSONNEL COMPENSATION,,"BLANKENSHIP, APRIL L",7/1/10,9/30/10,FINANCIAL ADMINISTRATOR,300,FISCAL YEAR 2010,,,,"BLANKENSHIP, APRIL L"
,REPUBLICAN POLICY COMMITTEE,2010Q3,PERSONNEL COMPENSATION,,"FOSDICK,SAMUEL R",7/27/10,8/6/10,INTERN,500,FISCAL YEAR 2010,,,,"FOSDICK,SAMUEL R"
,REPUBLICAN POLICY COMMITTEE,2010Q3,PERSONNEL COMPENSATION,,"JANOWSKI,DANIELLE",7/1/10,7/1/10,STAFF ASSISTANT,77.78,FISCAL YEAR 2010,,,,"JANOWSKI,DANIELLE"
,REPUBLICAN POLICY COMMITTEE,2010Q3,PERSONNEL COMPENSATION,,"LADEW,MATTHEW E",6/17/10,6/30/10,INTERN,500.03,FISCAL YEAR 2010,,,,"LADEW,MATTHEW E"
,REPUBLICAN POLICY COMMITTEE,2010Q3,PERSONNEL COMPENSATION,,"QUARKER,KRISTAL C",7/1/10,9/30/10,DIRECTOR OF OUTREACH,"8,375.01",FISCAL YEAR 2010,,,,"QUARKER,KRISTAL C"
,REPUBLICAN POLICY COMMITTEE,2010Q3,PERSONNEL COMPENSATION,,"ROTHWELL,PATRICK J",7/1/10,9/30/10,SR POLICY ADVISOR,300,FISCAL YEAR 2010,,,,"ROTHWELL,PATRICK J"
,REPUBLICAN POLICY COMMITTEE,2010Q3,PERSONNEL COMPENSATION,,"SCOTT,BRETT M",7/8/10,7/31/10,INTERN,500,FISCAL YEAR 2010,,,,"SCOTT,BRETT M"
,REPUBLICAN POLICY COMMITTEE,2010Q3,PERSONNEL COMPENSATION,,"SEKULICH,ANNA M",6/17/10,6/30/10,INTERN,500.03,FISCAL YEAR 2010,,,,"SEKULICH,ANNA M"
,REPUBLICAN POLICY COMMITTEE,2010Q3,PERSONNEL COMPENSATION,,"THOMPSON,RANDALL H",7/1/10,9/30/10,CHIEF OF STAFF,300,FISCAL YEAR 2010,,,,"THOMPSON,RANDALL H"
,REPUBLICAN POLICY COMMITTEE,2010Q3,PERSONNEL COMPENSATION,,"ZAMZOW,AMBERLEY D",6/29/10,7/31/10,INTERN,500,FISCAL YEAR 2010,,,,"ZAMZOW,AMBERLEY D"
,REPUBLICAN POLICY COMMITTEE,2010Q3,PRINTING AND REPRODUCTION,,07_16   P1 10RC0200062       ACCURATE WORD LLC,7/1/10,7/1/10,PRINTING AND REPRODUCTION,31.9,FISCAL YEAR 2010,,,,07_16   P1 10RC0200062       ACCURATE WORD LLC
,REPUBLICAN POLICY COMMITTEE,2010Q3,OTHER SERVICES,,07_23   P1 10RC0200063                  COAST TO COAST STRATEGIES LLC,6/15/10,7/15/10,"WEB DEV,HOSTNG,EMAIL & REL SVC","5,000.00",FISCAL YEAR 2010,,,,07_23   P1 10RC0200063                  COAST TO COAST STRATEGIES LLC
,REPUBLICAN POLICY COMMITTEE,2010Q3,OTHER SERVICES,,08_19   P1 10RC0200070                      DO,7/15/10,8/15/10,"WEB DEV,HOSTNG,EMAIL & REL SVC","5,000.00",FISCAL YEAR 2010,,,,08_19   P1 10RC0200070                      DO
,REPUBLICAN POLICY COMMITTEE,2010Q3,OTHER SERVICES,,"08_19   P1 10RC0200069                  ROTHWELL,PATRICK J",8/1/10,8/31/10,"WEB DEV,HOSTNG,EMAIL & REL SVC",47,FISCAL YEAR 2010,,,,"08_19   P1 10RC0200069                  ROTHWELL,PATRICK J"
,REPUBLICAN POLICY COMMITTEE,2010Q3,SUPPLIES AND MATERIALS,,"07_23   P1    10RC0200064      ROTHWELL,PATRICK J",7/1/10,7/31/10,PUBLICATION REF MATERIAL,47,FISCAL YEAR 2010,,,,"07_23   P1    10RC0200064      ROTHWELL,PATRICK J"
,REPUBLICAN POLICY COMMITTEE,2010Q3,SUPPLIES AND MATERIALS,,08_09   P1    10RC0200065      DEER PARK WATER,6/4/10,6/30/10,BOTTLED WATER,55.77,FISCAL YEAR 2010,,,,08_09   P1    10RC0200065      DEER PARK WATER
,REPUBLICAN POLICY COMMITTEE,2010Q3,SUPPLIES AND MATERIALS,,08_09   P1    10RC0200066           DO,4/22/10,4/30/10,BOTTLED WATER,38.3,FISCAL YEAR 2010,,,,08_09   P1    10RC0200066           DO
,REPUBLICAN POLICY COMMITTEE,2010Q3,SUPPLIES AND MATERIALS,,08_09   P1    10RC0200067           DO,5/5/10,5/31/10,BOTTLED WATER,64.7,FISCAL YEAR 2010,,,,08_09   P1    10RC0200067           DO
,REPUBLICAN POLICY COMMITTEE,2010Q3,SUPPLIES AND MATERIALS,,08_19   P1    10RC0200068           DO,7/6/10,7/31/10,BOTTLED WATER,113.72,FISCAL YEAR 2010,,,,08_19   P1    10RC0200068           DO
,REPUBLICAN POLICY COMMITTEE,2010Q3,SUPPLIES AND MATERIALS,,09_19   P1    10RC0200071           DO,8/1/10,8/31/10,BOTTLED WATER,37.74,FISCAL YEAR 2010,,,,09_19   P1    10RC0200071           DO
,REPUBLICAN POLICY COMMITTEE,2010Q3,SUPPLIES AND MATERIALS,,"09_28   P1    10RC0200075      ROTHWELL,PATRICK J",9/22/10,9/22/10,PUBLICATION REF MATERIAL,14.87,FISCAL YEAR 2010,,,,"09_28   P1    10RC0200075      ROTHWELL,PATRICK J"
,REPUBLICAN STEERING COMMITTEE,2010Q3,PERSONNEL COMPENSATION,,"BOYD,KATHRYN E",7/1/10,9/30/10,ASST COMMUNICATIONS DIRECTOR,"20,000.01",FISCAL YEAR 2010,,,,"BOYD,KATHRYN E"
,REPUBLICAN STEERING COMMITTEE,2010Q3,PERSONNEL COMPENSATION,,"BURTON, JEFF",7/1/10,9/30/10,DIRECTOR OF COALITIONS,"40,948.74",FISCAL YEAR 2010,,,,"BURTON, JEFF"
,REPUBLICAN STEERING COMMITTEE,2010Q3,PERSONNEL COMPENSATION,,"DOLBOW, WILLIAM R",7/1/10,9/30/10,SENIOR ADVISOR,"40,948.74",FISCAL YEAR 2010,,,,"DOLBOW, WILLIAM R"
,REPUBLICAN STEERING COMMITTEE,2010Q3,PERSONNEL COMPENSATION,,"ROGERS, GEORGE R",7/1/10,9/30/10,POLICY ADVISOR/COUNSEL-STATUTO,"37,500.00",FISCAL YEAR 2010,,,,"ROGERS, GEORGE R"
,REPUBLICAN STEERING COMMITTEE,2010Q3,PERSONNEL COMPENSATION,,"STEEL, MICHAEL",7/1/10,9/30/10,POLICY ADVISOR/COUNSEL-STATUTO,"33,125.01",FISCAL YEAR 2010,,,,"STEEL, MICHAEL"
,MINORITY EMPLOYEES,2010Q3,PERSONNEL COMPENSATION,,"BOLAND,KEVIN P",7/1/10,9/30/10,ASSISTANT PRESS SECRETARY,"8,124.99",FISCAL YEAR 2010,,,,"BOLAND,KEVIN P"
,MINORITY EMPLOYEES,2010Q3,PERSONNEL COMPENSATION,,"BRADLEY, NEIL L",7/1/10,9/30/10,LEGISLATIVE DIRECTOR,"41,949.99",FISCAL YEAR 2010,,,,"BRADLEY, NEIL L"
,MINORITY EMPLOYEES,2010Q3,PERSONNEL COMPENSATION,,"DIFFELL, BRIAN",7/1/10,9/30/10,LEGISLATIVE DIRECTOR,"26,250.00",FISCAL YEAR 2010,,,,"DIFFELL, BRIAN"
,MINORITY EMPLOYEES,2010Q3,PERSONNEL COMPENSATION,,"LLOYD, MATTHEW H",7/1/10,9/30/10,COMMUNICATIONS DIRECTOR,"30,000.00",FISCAL YEAR 2010,,,,"LLOYD, MATTHEW H"
,MINORITY EMPLOYEES,2010Q3,PERSONNEL COMPENSATION,,"MAURER,DANIELLE M",7/1/10,9/30/10,DIR OF MEMBER SERVICES,"36,924.99",FISCAL YEAR 2010,,,,"MAURER,DANIELLE M"
,MINORITY EMPLOYEES,2010Q3,PERSONNEL COMPENSATION,,"MEEKS,DARIS",8/1/10,9/30/10,POLICY ADVISOR & LEGIS. COUNS,"16,666.66",FISCAL YEAR 2010,,,,"MEEKS,DARIS"
,MINORITY EMPLOYEES,2010Q3,PERSONNEL COMPENSATION,,"NELSON, VALERIE S",7/1/10,9/30/10,MEMBER SERVICE/STATUTORY,"27,500.01",FISCAL YEAR 2010,,,,"NELSON, VALERIE S"
,MINORITY EMPLOYEES,2010Q3,PERSONNEL COMPENSATION,,"SCHAPER, NICHOLAS",7/1/10,9/30/10,DIRECTOR OF NEW MEDIA,"21,837.51",FISCAL YEAR 2010,,,,"SCHAPER, NICHOLAS"
,MINORITY EMPLOYEES,2010Q3,PERSONNEL COMPENSATION,,"VOUGHT, RUSSELL",7/1/10,7/31/10,POLICY DIRECTOR,"11,250.00",FISCAL YEAR 2010,,,,"VOUGHT, RUSSELL"
,MINORITY EMPLOYEES,2010Q3,PERSONNEL COMPENSATION,,"WILD,BRIAN FRANKLIN",7/1/10,9/30/10,SR ADVISOR FOR LEG INITIATIVES,"42,500.01",FISCAL YEAR 2010,,,,"WILD,BRIAN FRANKLIN"
,LEGISLATIVE FLOOR ACTIVITIES,2010Q3,PERSONNEL COMPENSATION,,"KUNDANIS, GEORGE",7/1/10,9/30/10,DEPUTY CHIEF OF STAFF,"43,125.00",FISCAL YEAR 2010,,,,"KUNDANIS, GEORGE"
,LEGISLATIVE FLOOR ACTIVITIES,2010Q3,PERSONNEL COMPENSATION,,"LAWRENCE, JOHN A",7/1/10,9/30/10,CHIEF OF STAFF,"43,125.00",FISCAL YEAR 2010,,,,"LAWRENCE, JOHN A"
,LEGISLATIVE FLOOR ACTIVITIES,2010Q3,PERSONNEL COMPENSATION,,"MELTZER,RICHARD",9/1/10,9/30/10,POLICY ADVISOR,"14,375.00",FISCAL YEAR 2010,,,,"MELTZER,RICHARD"
,LEGISLATIVE FLOOR ACTIVITIES,2010Q3,PERSONNEL COMPENSATION,,"MELTZER,RICHARD",7/1/10,8/31/10,POLICY DIRECTOR,"27,708.33",FISCAL YEAR 2010,,,,DO
,RC-TRAINING & PROGRAM DEVEL.,2010Q3,PERSONNEL COMPENSATION,,"FINNEGAN,PATRICK",6/1/10,9/30/10,STAFF ASSISTANT,"8,300.00",FISCAL YEAR 2010,,,,"FINNEGAN,PATRICK"
,RC-TRAINING & PROGRAM DEVEL.,2010Q3,PERSONNEL COMPENSATION,,"FINNEGAN,PATRICK",6/1/10,7/30/10,STAFF ASSISTANT (OVERTIME),946.29,FISCAL YEAR 2010,,,,DO
,RC-TRAINING & PROGRAM DEVEL.,2010Q3,PERSONNEL COMPENSATION,,"KATZ BLUMENTHAL,JESSE W",7/1/10,8/6/10,INTERN,"2,800.00",FISCAL YEAR 2010,,,,"KATZ BLUMENTHAL,JESSE W"
,RC-TRAINING & PROGRAM DEVEL.,2010Q3,PERSONNEL COMPENSATION,,"KATZ BLUMENTHAL,JESSE W",7/1/10,7/30/10,INTERN (OVERTIME),277.64,FISCAL YEAR 2010,,,,DO
,RC-TRAINING & PROGRAM DEVEL.,2010Q3,PERSONNEL COMPENSATION,,"KOLEGO, TREVOR W",6/1/10,9/30/10,MEMBER SERVICES MANAGER,"33,999.99",FISCAL YEAR 2010,,,,"KOLEGO, TREVOR W"
,DS-TRAINING & PROGRAM DEVEL.,2010Q3,PERSONNEL COMPENSATION,,"BRENNAN,JOHN K",7/1/10,9/24/10,SPECIAL ASSISTANT,"29,292.67",FISCAL YEAR 2010,,,,"BRENNAN,JOHN K"
,DS-TRAINING & PROGRAM DEVEL.,2010Q3,PERSONNEL COMPENSATION,,"GREENER, APRIL L",7/1/10,9/30/10,RESEARCHER,"17,505.00",FISCAL YEAR 2010,,,,"GREENER, APRIL L"
,DS-TRAINING & PROGRAM DEVEL.,2010Q3,PERSONNEL COMPENSATION,,"KEITA,KAMILAH Z",7/1/10,8/31/10,DEPUTY INFOMATION TECH. DIRECT,"14,188.66",FISCAL YEAR 2010,,,,"KEITA,KAMILAH Z"
,DS-TRAINING & PROGRAM DEVEL.,2010Q3,PERSONNEL COMPENSATION,,"SURGEON,BINA G",7/1/10,8/31/10,DEPUTY DIRECTOR OF PROTOCOL,"9,388.50",FISCAL YEAR 2010,,,,"SURGEON,BINA G"
,CLOAKROOM PERSONNEL - MAJ,2010Q3,PERSONNEL COMPENSATION,,"FISCHER JR, ROBERT V",7/1/10,9/30/10,ASST FLOOR CHIEF,"38,289.84",FISCAL YEAR 2010,,,,"FISCHER JR, ROBERT V"
,CLOAKROOM PERSONNEL - MAJ,2010Q3,PERSONNEL COMPENSATION,,"IVESTER, WREN",7/1/10,9/30/10,ASST FLOOR CHIEF,"34,974.84",FISCAL YEAR 2010,,,,"IVESTER, WREN"
,CLOAKROOM PERSONNEL - MAJ,2010Q3,PERSONNEL COMPENSATION,,"SHANKS, HERBERT A",6/1/10,6/4/10,CLOAKROOM ATTENDANT (OTHER COMPENSATION),"4,991.92",FISCAL YEAR 2010,,,,"SHANKS, HERBERT A"
,CLOAKROOM PERSONNEL - MAJ,2010Q3,PERSONNEL COMPENSATION,,"SULLIVAN, BARRY K",7/1/10,9/30/10,CHIEF FLOOR SERVICE (MAJ),"43,125.00",FISCAL YEAR 2010,,,,"SULLIVAN, BARRY K"
,CLOAKROOM PERSONNEL - MIN,2010Q3,PERSONNEL COMPENSATION,,"CALIO,LYDIA E",7/1/10,9/30/10,FLOOR ASSISTANT,"10,500.00",FISCAL YEAR 2010,,,,"CALIO,LYDIA E"
,CLOAKROOM PERSONNEL - MIN,2010Q3,PERSONNEL COMPENSATION,,"EICHHORN, JARED D",7/1/10,9/30/10,FLOOR ASSISTANT,"12,000.00",FISCAL YEAR 2010,,,,"EICHHORN, JARED D"
,CLOAKROOM PERSONNEL - MIN,2010Q3,PERSONNEL COMPENSATION,,"HARROUN, TIMOTHY J",7/1/10,9/30/10,"MGR,REPUB FLOOR INFO SERVICE","33,287.49",FISCAL YEAR 2010,,,,"HARROUN, TIMOTHY J"
,CLOAKROOM PERSONNEL - MIN,2010Q3,PERSONNEL COMPENSATION,,"NEVINS, KYLE W",7/1/10,9/30/10,DIRECTOR OF FLOOR OPS,"39,999.99",FISCAL YEAR 2010,,,,"NEVINS, KYLE W"
,PORTFOLIO REVIEW BOARD,2010Q3,OTHER SERVICES,,07_02 P2 OPR0900713K         CHESAPEAKE NETCRAFTSMEN,5/1/10,5/31/10,TECHNOLOGY SERVICE CONTRACTS,"3,653.75",FISCAL YEAR 2009,,,,07_02 P2 OPR0900713K         CHESAPEAKE NETCRAFTSMEN
,PORTFOLIO REVIEW BOARD,2010Q3,OTHER SERVICES,,09_28   P2 OPR0900713L                DO,6/1/10,6/30/10,TECHNOLOGY SERVICE CONTRACTS,790,FISCAL YEAR 2009,,,,09_28   P2 OPR0900713L                DO
,PORTFOLIO REVIEW BOARD,2010Q3,OTHER SERVICES,,09_20   P2 OFP0900772A        CDW GOVERNMENT INC,8/31/10,8/31/10,NON-TECHNOLOGY SERVICE CONTRCT,"47,571.80",FISCAL YEAR 2009,,,,09_20   P2 OFP0900772A        CDW GOVERNMENT INC
,PORTFOLIO REVIEW BOARD,2010Q3,OTHER SERVICES,,09_20   P2 OFP0900772A            DO,8/31/10,8/31/10,TRAINING EXPENSES,"8,045.10",FISCAL YEAR 2009,,,,09_20   P2 OFP0900772A            DO
,CHIEF ADMINISTRATIVE OFFICER,2010Q3,TRAVEL,,07_09   P1 10A00100350                   CITIBANK GOV CARD SERVICE,4/20/10,4/21/10,COMMERCIAL TRANSPORTATION,18,FISCAL YEAR 2010,,,,07_09   P1 10A00100350                   CITIBANK GOV CARD SERVICE
,CHIEF ADMINISTRATIVE OFFICER,2010Q3,TRAVEL,,"07_15   P1 10A00100352                   WELSH-SIMPSON, KRISTIN N",3/26/10,3/28/10,TRAVEL REIMBURSEMENT,135,FISCAL YEAR 2010,,,,"07_15   P1 10A00100352                   WELSH-SIMPSON, KRISTIN N"
,CHIEF ADMINISTRATIVE OFFICER,2010Q3,TRAVEL,,07_26   P1 10A00100364                   CITIBANK GOV CARD SERVICE,6/7/10,6/11/10,COMMERCIAL TRANSPORTATION,293.4,FISCAL YEAR 2010,,,,07_26   P1 10A00100364                   CITIBANK GOV CARD SERVICE
,CHIEF ADMINISTRATIVE OFFICER,2010Q3,TRAVEL,,07_26   P1 10A00100365                        DO,6/14/10,6/18/10,COMMERCIAL TRANSPORTATION,293.4,FISCAL YEAR 2010,,,,07_26   P1 10A00100365                        DO
,CHIEF ADMINISTRATIVE OFFICER,2010Q3,TRAVEL,,07_26   P1 10A00100366                        DO,6/22/10,6/22/10,COMMERCIAL TRANSPORTATION,146.7,FISCAL YEAR 2010,,,,07_26   P1 10A00100366                        DO
,CHIEF ADMINISTRATIVE OFFICER,2010Q3,TRAVEL,,07_26   P1 10A00100367                        DO,6/24/10,6/24/10,COMMERCIAL TRANSPORTATION,145.7,FISCAL YEAR 2010,,,,07_26   P1 10A00100367                        DO
,CHIEF ADMINISTRATIVE OFFICER,2010Q3,TRAVEL,,"07_28   P1 10A00100368                   GREEN, MITCHELL",7/6/10,7/6/10,TRAVEL REIMBURSEMENT,868.25,FISCAL YEAR 2010,,,,"07_28   P1 10A00100368                   GREEN, MITCHELL"
,CHIEF ADMINISTRATIVE OFFICER,2010Q3,TRAVEL,,08_05   P1 10A00100382                   CITIBANK GOV CARD SERVICE,7/2/10,7/2/10,COMMERCIAL TRANSPORTATION,145.7,FISCAL YEAR 2010,,,,08_05   P1 10A00100382                   CITIBANK GOV CARD SERVICE
,CHIEF ADMINISTRATIVE OFFICER,2010Q3,TRAVEL,,08_05   P1 10A00100383                        DO,6/28/10,6/28/10,COMMERCIAL TRANSPORTATION,146.7,FISCAL YEAR 2010,,,,08_05   P1 10A00100383                        DO
,CHIEF ADMINISTRATIVE OFFICER,2010Q3,TRAVEL,,08_06   P1 10A00100387                        DO,7/12/10,7/12/10,COMMERCIAL TRANSPORTATION,146.7,FISCAL YEAR 2010,,,,08_06   P1 10A00100387                        DO
,CHIEF ADMINISTRATIVE OFFICER,2010Q3,TRAVEL,,08_06   P1 10A00100388                        DO,7/23/10,7/23/10,COMMERCIAL TRANSPORTATION,146.7,FISCAL YEAR 2010,,,,08_06   P1 10A00100388                        DO
,CHIEF ADMINISTRATIVE OFFICER,2010Q3,TRAVEL,,"08_09   P1 10A00100396                   PLUMART,PERRY R",7/6/10,7/6/10,TRAVEL REIMBURSEMENT,66.25,FISCAL YEAR 2010,,,,"08_09   P1 10A00100396                   PLUMART,PERRY R"
,CHIEF ADMINISTRATIVE OFFICER,2010Q3,TRAVEL,,08_16   P1 10A01000393                   CITIBANK GOV CARD SERVICE,7/25/10,7/30/10,COMMERCIAL TRANSPORTATION,293.4,FISCAL YEAR 2010,,,,08_16   P1 10A01000393                   CITIBANK GOV CARD SERVICE
,CHIEF ADMINISTRATIVE OFFICER,2010Q3,TRAVEL,,"08_18   HV 10A90301027                   DUPUIS,TIMOTHY D",4/15/10,4/15/10,COMMERCIAL TRANSPORTATION,50,FISCAL YEAR 2010,,,,"08_18   HV 10A90301027                   DUPUIS,TIMOTHY D"
,CHIEF ADMINISTRATIVE OFFICER,2010Q3,TRAVEL,,"08_30   P1 10A00100415                   PLUMART,PERRY R",8/19/10,8/19/10,"TAXI, PARKING, TOLLS",23,FISCAL YEAR 2010,,,,"08_30   P1 10A00100415                   PLUMART,PERRY R"
,CHIEF ADMINISTRATIVE OFFICER,2010Q3,TRAVEL,,"08_31   P1 10A00100418                   LEIBACH,WILLIAM",8/9/10,8/13/10,TRAVEL REIMBURSEMENT,"1,945.20",FISCAL YEAR 2010,,,,"08_31   P1 10A00100418                   LEIBACH,WILLIAM"
,CHIEF ADMINISTRATIVE OFFICER,2010Q3,TRAVEL,,"09_08   P1 10A00100425                   BLACK,CAROL",8/19/10,8/20/10,TRAVEL REIMBURSEMENT,9,FISCAL YEAR 2010,,,,"09_08   P1 10A00100425                   BLACK,CAROL"
,CHIEF ADMINISTRATIVE OFFICER,2010Q3,TRAVEL,,09_14   P1 10A00100426                   CITIBANK GOV CARD SERVICE,8/9/10,8/9/10,COMMERCIAL TRANSPORTATION,293.4,FISCAL YEAR 2010,,,,09_14   P1 10A00100426                   CITIBANK GOV CARD SERVICE
,CHIEF ADMINISTRATIVE OFFICER,2010Q3,TRAVEL,,09_25   P1 10A00100438                        DO,9/15/10,9/16/10,COMMERCIAL TRANSPORTATION,293.4,FISCAL YEAR 2010,,,,09_25   P1 10A00100438                        DO
,CHIEF ADMINISTRATIVE OFFICER,2010Q3,"RENT, COMMUNICATION, UTILITIES",,07_01   CB   FXF100630a      FEDERAL EXPRESS CORP,6/16/10,6/16/10,POSTAGE/COURIER/BOX RENTAL,12.66,FISCAL YEAR 2010,,,,07_01   CB   FXF100630a      FEDERAL EXPRESS CORP
,CHIEF ADMINISTRATIVE OFFICER,2010Q3,"RENT, COMMUNICATION, UTILITIES",,07_13   CB   FXP100712A               DO,6/23/10,6/23/10,POSTAGE/COURIER/BOX RENTAL,8.44,FISCAL YEAR 2010,,,,07_13   CB   FXP100712A               DO
,CHIEF ADMINISTRATIVE OFFICER,2010Q3,"RENT, COMMUNICATION, UTILITIES",,07_16   CB   FXF100715a               DO,6/29/10,6/29/10,POSTAGE/COURIER/BOX RENTAL,10.97,FISCAL YEAR 2010,,,,07_16   CB   FXF100715a               DO
,CHIEF ADMINISTRATIVE OFFICER,2010Q3,"RENT, COMMUNICATION, UTILITIES",,07_20   P2   HCV1002116      VERIZON WIRELESS,6/18/10,6/18/10,"TELECOM SVC, EQUIP & TOLLS",69.99,FISCAL YEAR 2010,,,,07_20   P2   HCV1002116      VERIZON WIRELESS
,CHIEF ADMINISTRATIVE OFFICER,2010Q3,"RENT, COMMUNICATION, UTILITIES",,07_20   P2   HCV1002116               DO,6/18/10,6/18/10,"TELECOM SVC, EQUIP & TOLLS",22.49,FISCAL YEAR 2010,,,,07_20   P2   HCV1002116               DO
,CHIEF ADMINISTRATIVE OFFICER,2010Q3,"RENT, COMMUNICATION, UTILITIES",,07_20   P2   HCV1002116               DO,6/18/10,6/18/10,"TELECOM SVC, EQUIP & TOLLS",22.49,FISCAL YEAR 2010,,,,07_20   P2   HCV1002116               DO
,CHIEF ADMINISTRATIVE OFFICER,2010Q3,"RENT, COMMUNICATION, UTILITIES",,07_23   CB   FXf100722a      FEDERAL EXPRESS CORP,7/8/10,7/8/10,POSTAGE/COURIER/BOX RENTAL,13.27,FISCAL YEAR 2010,,,,07_23   CB   FXf100722a      FEDERAL EXPRESS CORP
,CHIEF ADMINISTRATIVE OFFICER,2010Q3,"RENT, COMMUNICATION, UTILITIES",,07_29   S5   DY100600011,6/1/10,6/30/10,DC TEL EQUIP (TRANSFER),228,FISCAL YEAR 2010,,,,07_29   S5   DY100600011
,CHIEF ADMINISTRATIVE OFFICER,2010Q3,"RENT, COMMUNICATION, UTILITIES",,07_29   S5   DY100600019,6/1/10,6/30/10,DC TEL EQUIP (TRANSFER),84,FISCAL YEAR 2010,,,,07_29   S5   DY100600019
,CHIEF ADMINISTRATIVE OFFICER,2010Q3,"RENT, COMMUNICATION, UTILITIES",,07_29   S5   DY100600704,6/1/10,6/30/10,DC TEL SERVICE (TRANSFER),637.5,FISCAL YEAR 2010,,,,07_29   S5   DY100600704
,CHIEF ADMINISTRATIVE OFFICER,2010Q3,"RENT, COMMUNICATION, UTILITIES",,07_29   S5   DY100600710,6/1/10,6/30/10,DC TEL SERVICE (TRANSFER),230,FISCAL YEAR 2010,,,,07_29   S5   DY100600710
,CHIEF ADMINISTRATIVE OFFICER,2010Q3,"RENT, COMMUNICATION, UTILITIES",,07_29   S5   DY100601341,6/1/10,6/30/10,DC TEL TOLLS (TRANSFER),"3,961.64",FISCAL YEAR 2010,,,,07_29   S5   DY100601341
,CHIEF ADMINISTRATIVE OFFICER,2010Q3,"RENT, COMMUNICATION, UTILITIES",,07_29   S5   DY100601399,6/1/10,6/30/10,DC TEL TOLLS (TRANSFER),"1,262.62",FISCAL YEAR 2010,,,,07_29   S5   DY100601399
,CHIEF ADMINISTRATIVE OFFICER,2010Q3,"RENT, COMMUNICATION, UTILITIES",,08_05   P1   10A00100380     VERIZON BUSINESS,6/1/10,6/30/10,"TELECOM SVC, EQUIP & TOLLS",16.6,FISCAL YEAR 2010,,,,08_05   P1   10A00100380     VERIZON BUSINESS
,CHIEF ADMINISTRATIVE OFFICER,2010Q3,"RENT, COMMUNICATION, UTILITIES",,08_06   CB   FXF100805a      FEDERAL EXPRESS CORP,7/19/10,7/19/10,POSTAGE/COURIER/BOX RENTAL,4.16,FISCAL YEAR 2010,,,,08_06   CB   FXF100805a      FEDERAL EXPRESS CORP
,CHIEF ADMINISTRATIVE OFFICER,2010Q3,"RENT, COMMUNICATION, UTILITIES",,08_24   CB   FXF100823a               DO,8/3/10,8/3/10,POSTAGE/COURIER/BOX RENTAL,4.56,FISCAL YEAR 2010,,,,08_24   CB   FXF100823a               DO
,CHIEF ADMINISTRATIVE OFFICER,2010Q3,"RENT, COMMUNICATION, UTILITIES",,08_26   CB   FXF100825a               DO,8/3/10,8/3/10,POSTAGE/COURIER/BOX RENTAL,8.42,FISCAL YEAR 2010,,,,08_26   CB   FXF100825a               DO
,CHIEF ADMINISTRATIVE OFFICER,2010Q3,"RENT, COMMUNICATION, UTILITIES",,08_26   CB   FXF100825a               DO,8/12/10,8/12/10,POSTAGE/COURIER/BOX RENTAL,15.86,FISCAL YEAR 2010,,,,08_26   CB   FXF100825a               DO
,CHIEF ADMINISTRATIVE OFFICER,2010Q3,"RENT, COMMUNICATION, UTILITIES",,08_30   P2   HCV1002296      AT&T MOBILITY,8/4/10,8/4/10,"TELECOM SVC, EQUIP & TOLLS",25,FISCAL YEAR 2010,,,,08_30   P2   HCV1002296      AT&T MOBILITY
,CHIEF ADMINISTRATIVE OFFICER,2010Q3,"RENT, COMMUNICATION, UTILITIES",,08_30   P1   10A00100412                  VERIZON BUSINESS,7/1/10,7/31/10,"TELECOM SVC, EQUIP & TOLLS",20.41,FISCAL YEAR 2010,,,,08_30   P1   10A00100412                  VERIZON BUSINESS
,CHIEF ADMINISTRATIVE OFFICER,2010Q3,"RENT, COMMUNICATION, UTILITIES",,08_31   S5   DY100700010,7/1/10,7/31/10,DC TEL EQUIP (TRANSFER),601,FISCAL YEAR 2010,,,,08_31   S5   DY100700010
,CHIEF ADMINISTRATIVE OFFICER,2010Q3,"RENT, COMMUNICATION, UTILITIES",,08_31   S5   DY100700019,7/1/10,7/31/10,DC TEL EQUIP (TRANSFER),76,FISCAL YEAR 2010,,,,08_31   S5   DY100700019
,CHIEF ADMINISTRATIVE OFFICER,2010Q3,"RENT, COMMUNICATION, UTILITIES",,08_31   S5   DY100700693,7/1/10,7/31/10,DC TEL SERVICE (TRANSFER),660,FISCAL YEAR 2010,,,,08_31   S5   DY100700693
,CHIEF ADMINISTRATIVE OFFICER,2010Q3,"RENT, COMMUNICATION, UTILITIES",,08_31   S5   DY100700699,7/1/10,7/31/10,DC TEL SERVICE (TRANSFER),207.5,FISCAL YEAR 2010,,,,08_31   S5   DY100700699
,CHIEF ADMINISTRATIVE OFFICER,2010Q3,"RENT, COMMUNICATION, UTILITIES",,08_31   S5   DY100701328,7/1/10,7/31/10,DC TEL TOLLS (TRANSFER),"4,542.81",FISCAL YEAR 2010,,,,08_31   S5   DY100701328
,CHIEF ADMINISTRATIVE OFFICER,2010Q3,"RENT, COMMUNICATION, UTILITIES",,08_31   S5   DY100701384,7/1/10,7/31/10,DC TEL TOLLS (TRANSFER),"1,192.41",FISCAL YEAR 2010,,,,08_31   S5   DY100701384
,CHIEF ADMINISTRATIVE OFFICER,2010Q3,"RENT, COMMUNICATION, UTILITIES",,09_21   S5   DY100800010,8/1/10,8/31/10,DC TEL EQUIP (TRANSFER),498,FISCAL YEAR 2010,,,,09_21   S5   DY100800010
,CHIEF ADMINISTRATIVE OFFICER,2010Q3,"RENT, COMMUNICATION, UTILITIES",,09_21   S5   DY100800020,8/1/10,8/31/10,DC TEL EQUIP (TRANSFER),248,FISCAL YEAR 2010,,,,09_21   S5   DY100800020
,CHIEF ADMINISTRATIVE OFFICER,2010Q3,"RENT, COMMUNICATION, UTILITIES",,09_21   S5   DY100800682,8/1/10,8/31/10,DC TEL SERVICE (TRANSFER),667.5,FISCAL YEAR 2010,,,,09_21   S5   DY100800682
,CHIEF ADMINISTRATIVE OFFICER,2010Q3,"RENT, COMMUNICATION, UTILITIES",,09_21   S5   DY100800688,8/1/10,8/31/10,DC TEL SERVICE (TRANSFER),207.5,FISCAL YEAR 2010,,,,09_21   S5   DY100800688
,CHIEF ADMINISTRATIVE OFFICER,2010Q3,"RENT, COMMUNICATION, UTILITIES",,09_21   S5   DY100801320,8/1/10,8/31/10,DC TEL TOLLS (TRANSFER),"4,765.80",FISCAL YEAR 2010,,,,09_21   S5   DY100801320
,CHIEF ADMINISTRATIVE OFFICER,2010Q3,"RENT, COMMUNICATION, UTILITIES",,09_21   S5   DY100801377,8/1/10,8/31/10,DC TEL TOLLS (TRANSFER),"1,166.29",FISCAL YEAR 2010,,,,09_21   S5   DY100801377
,CHIEF ADMINISTRATIVE OFFICER,2010Q3,"RENT, COMMUNICATION, UTILITIES",,09_28   CB   FXF100927a                   FEDERAL EXPRESS CORP,9/10/10,9/10/10,POSTAGE/COURIER/BOX RENTAL,130.6,FISCAL YEAR 2010,,,,09_28   CB   FXF100927a                   FEDERAL EXPRESS CORP
,CHIEF ADMINISTRATIVE OFFICER,2010Q3,PRINTING AND REPRODUCTION,,07_26   S3   10207000006,7/1/10,7/31/10,PHOTOGRAPHIC (TRANSFER),100.7,FISCAL YEAR 2010,,,,07_26   S3   10207000006
,CHIEF ADMINISTRATIVE OFFICER,2010Q3,PRINTING AND REPRODUCTION,,"08_04   P1   10A00100386      DAVID L. ANDRUKITUS, INC",7/21/10,7/21/10,PRINTING AND REPRODUCTION,87.5,FISCAL YEAR 2010,,,,"08_04   P1   10A00100386      DAVID L. ANDRUKITUS, INC"
,CHIEF ADMINISTRATIVE OFFICER,2010Q3,PRINTING AND REPRODUCTION,,08_09   P1   10A00100392               DO,4/13/10,4/13/10,PRINTING AND REPRODUCTION,67,FISCAL YEAR 2010,,,,08_09   P1   10A00100392               DO
,CHIEF ADMINISTRATIVE OFFICER,2010Q3,PRINTING AND REPRODUCTION,,08_10   P1   10A00100402               DO,7/30/10,7/30/10,PRINTING AND REPRODUCTION,197.5,FISCAL YEAR 2010,,,,08_10   P1   10A00100402               DO
,CHIEF ADMINISTRATIVE OFFICER,2010Q3,PRINTING AND REPRODUCTION,,08_20   P1   10A00100409               DO,7/27/10,7/27/10,PRINTING AND REPRODUCTION,40,FISCAL YEAR 2010,,,,08_20   P1   10A00100409               DO
,CHIEF ADMINISTRATIVE OFFICER,2010Q3,PRINTING AND REPRODUCTION,,08_26   S3   10238000005,8/1/10,8/31/10,PHOTOGRAPHIC (TRANSFER),75,FISCAL YEAR 2010,,,,08_26   S3   10238000005
,CHIEF ADMINISTRATIVE OFFICER,2010Q3,PRINTING AND REPRODUCTION,,"09_03   P1   10A00800033      DAVID L. ANDRUKITUS, INC",8/24/10,8/24/10,PRINTING AND REPRODUCTION,62.5,FISCAL YEAR 2010,,,,"09_03   P1   10A00800033      DAVID L. ANDRUKITUS, INC"
,CHIEF ADMINISTRATIVE OFFICER,2010Q3,PRINTING AND REPRODUCTION,,09_22   P1   10A00100434               DO,9/9/10,9/9/10,PRINTING AND REPRODUCTION,"2,187.05",FISCAL YEAR 2010,,,,09_22   P1   10A00100434               DO
,CHIEF ADMINISTRATIVE OFFICER,2010Q3,PRINTING AND REPRODUCTION,,09_27   S3   10273000002,9/1/10,9/30/10,PHOTOGRAPHIC (TRANSFER),21.5,FISCAL YEAR 2010,,,,09_27   S3   10273000002
,CHIEF ADMINISTRATIVE OFFICER,2010Q3,PRINTING AND REPRODUCTION,,"09_28   P1   10A00100456      DAVID L. ANDRUKITUS, INC",3/10/10,3/10/10,PRINTING AND REPRODUCTION,127.5,FISCAL YEAR 2010,,,,"09_28   P1   10A00100456      DAVID L. ANDRUKITUS, INC"
,CHIEF ADMINISTRATIVE OFFICER,2010Q3,PRINTING AND REPRODUCTION,,09_28   P1   10A00100457               DO,5/27/10,5/27/10,PRINTING AND REPRODUCTION,33.5,FISCAL YEAR 2010,,,,09_28   P1   10A00100457               DO
,CHIEF ADMINISTRATIVE OFFICER,2010Q3,OTHER SERVICES,,07_02   P2   OFP0900326M                  ICF INTERNATIONAL,5/1/10,5/31/10,NON-TECHNOLOGY SERVICE CONTRCT,"1,200.00",FISCAL YEAR 2010,,,,07_02   P2   OFP0900326M                  ICF INTERNATIONAL
,CHIEF ADMINISTRATIVE OFFICER,2010Q3,OTHER SERVICES,,"07_06   P1   10A00100346                  PAUL,HASTINGS,JANOFSKY&WALKER",4/1/10,4/30/10,CONSULTANT CONTRACT SERVICE,"8,760.00",FISCAL YEAR 2010,,,,"07_06   P1   10A00100346                  PAUL,HASTINGS,JANOFSKY&WALKER"
,CHIEF ADMINISTRATIVE OFFICER,2010Q3,OTHER SERVICES,,07_14   P2   OFP0900827L                  SUSTAINABLE OPERATIONS SOL LLC,5/31/10,6/25/10,NON-TECHNOLOGY SERVICE CONTRCT,"7,500.00",FISCAL YEAR 2010,,,,07_14   P2   OFP0900827L                  SUSTAINABLE OPERATIONS SOL LLC
,CHIEF ADMINISTRATIVE OFFICER,2010Q3,OTHER SERVICES,,"07_21   P1   10A00100353                  PAUL,HASTINGS,JANOFSKY&WALKER",6/23/10,6/23/10,NON-TECHNOLOGY SERVICE CONTRCT,"2,805.00",FISCAL YEAR 2010,,,,"07_21   P1   10A00100353                  PAUL,HASTINGS,JANOFSKY&WALKER"
,CHIEF ADMINISTRATIVE OFFICER,2010Q3,OTHER SERVICES,,"07_29   P2   OPR1000005G                  WOODSIDE TEMPORARIES, INC",5/30/10,6/2/10,NON-TECHNOLOGY SERVICE CONTRCT,"5,995.69",FISCAL YEAR 2010,,,,"07_29   P2   OPR1000005G                  WOODSIDE TEMPORARIES, INC"
,CHIEF ADMINISTRATIVE OFFICER,2010Q3,OTHER SERVICES,,07_30   P1   10A00100372                  CITIBANK GOV CARD SERVICE,6/24/10,6/24/10,TRAINING EXPENSES,"1,240.00",FISCAL YEAR 2010,,,,07_30   P1   10A00100372                  CITIBANK GOV CARD SERVICE
,CHIEF ADMINISTRATIVE OFFICER,2010Q3,OTHER SERVICES,,07_30   P1   10A00100373                        DO,6/24/10,6/24/10,TRAINING EXPENSES,"1,440.00",FISCAL YEAR 2010,,,,07_30   P1   10A00100373                        DO
,CHIEF ADMINISTRATIVE OFFICER,2010Q3,OTHER SERVICES,,07_30   P1   10A00100375                        DO,6/15/10,6/15/10,TRAINING EXPENSES,"1,795.00",FISCAL YEAR 2010,,,,07_30   P1   10A00100375                        DO
,CHIEF ADMINISTRATIVE OFFICER,2010Q3,OTHER SERVICES,,07_30   P1   10A00100376                        DO,4/19/10,4/23/10,TRAINING EXPENSES,"1,500.00",FISCAL YEAR 2010,,,,07_30   P1   10A00100376                        DO
,CHIEF ADMINISTRATIVE OFFICER,2010Q3,OTHER SERVICES,,07_30   P1   10A00100378                        DO,6/24/10,6/24/10,TRAINING EXPENSES,745,FISCAL YEAR 2010,,,,07_30   P1   10A00100378                        DO
,CHIEF ADMINISTRATIVE OFFICER,2010Q3,OTHER SERVICES,,07_30   P1   10A00100370                  VIRIGINA DEPT OF SOCIAL SVC,7/20/10,7/20/10,MISCELLANEOUS SERVICE,7,FISCAL YEAR 2010,,,,07_30   P1   10A00100370                  VIRIGINA DEPT OF SOCIAL SVC
,CHIEF ADMINISTRATIVE OFFICER,2010Q3,OTHER SERVICES,,"08_05   P1   10A00100379                  PAUL,HASTINGS,JANOFSKY&WALKER",5/14/10,5/14/10,CONSULTANT CONTRACT SERVICE,223.75,FISCAL YEAR 2010,,,,"08_05   P1   10A00100379                  PAUL,HASTINGS,JANOFSKY&WALKER"
,CHIEF ADMINISTRATIVE OFFICER,2010Q3,OTHER SERVICES,,08_09   P1   10A00100390                  RESTAURANT ASSOCIATES,7/7/10,7/7/10,TRAINING EXPENSES,50,FISCAL YEAR 2010,,,,08_09   P1   10A00100390                  RESTAURANT ASSOCIATES
,CHIEF ADMINISTRATIVE OFFICER,2010Q3,OTHER SERVICES,,08_09   P1   10A00100391                        DO,7/7/10,7/7/10,TRAINING EXPENSES,50,FISCAL YEAR 2010,,,,08_09   P1   10A00100391                        DO
,CHIEF ADMINISTRATIVE OFFICER,2010Q3,OTHER SERVICES,,08_13   P1   10A00100408                  DEPT OF PUBLIC WELFARE,3/13/10,3/13/10,MISCELLANEOUS SERVICE,10,FISCAL YEAR 2010,,,,08_13   P1   10A00100408                  DEPT OF PUBLIC WELFARE
,CHIEF ADMINISTRATIVE OFFICER,2010Q3,OTHER SERVICES,,"08_13   P1   10A00100407                  PAUL,HASTINGS,JANOFSKY&WALKER",7/23/10,7/23/10,CONSULTANT CONTRACT SERVICE,"14,333.75",FISCAL YEAR 2010,,,,"08_13   P1   10A00100407                  PAUL,HASTINGS,JANOFSKY&WALKER"
,CHIEF ADMINISTRATIVE OFFICER,2010Q3,OTHER SERVICES,,08_17   P2   OFP0900827M                  SUSTAINABLE OPERATIONS SOL LLC,6/28/10,7/30/10,NON-TECHNOLOGY SERVICE CONTRCT,"5,700.00",FISCAL YEAR 2010,,,,08_17   P2   OFP0900827M                  SUSTAINABLE OPERATIONS SOL LLC
,CHIEF ADMINISTRATIVE OFFICER,2010Q3,OTHER SERVICES,,08_20   P2   OFP1000454                   FUTURE MEDIA CONCEPTS,5/28/10,5/28/10,TRAINING EXPENSES,"1,012.50",FISCAL YEAR 2010,,,,08_20   P2   OFP1000454                   FUTURE MEDIA CONCEPTS
,CHIEF ADMINISTRATIVE OFFICER,2010Q3,OTHER SERVICES,,08_30   P1   10A00100413                  CITIBANK GOV CARD SERVICE,7/23/10,7/23/10,TRAINING EXPENSES,"1,240.00",FISCAL YEAR 2010,,,,08_30   P1   10A00100413                  CITIBANK GOV CARD SERVICE
,CHIEF ADMINISTRATIVE OFFICER,2010Q3,OTHER SERVICES,,08_30 P1 10A00100414                DO,7/26/10,7/26/10,TRAINING EXPENSES,795,FISCAL YEAR 2010,,,,08_30 P1 10A00100414                DO
,CHIEF ADMINISTRATIVE OFFICER,2010Q3,OTHER SERVICES,,"09_15 P1 10A00100432          PAUL,HASTINGS,JANOFSKY&WALKER",8/19/10,8/19/10,CONSULTANT CONTRACT SERVICE,"4,642.50",FISCAL YEAR 2010,,,,"09_15 P1 10A00100432          PAUL,HASTINGS,JANOFSKY&WALKER"
,CHIEF ADMINISTRATIVE OFFICER,2010Q3,OTHER SERVICES,,09_15 P2 OFP0900827N          SUSTAINABLE OPERATIONS SOL LLC,8/2/10,8/27/10,NON-TECHNOLOGY SERVICE CONTRCT,"7,100.00",FISCAL YEAR 2010,,,,09_15 P2 OFP0900827N          SUSTAINABLE OPERATIONS SOL LLC
,CHIEF ADMINISTRATIVE OFFICER,2010Q3,OTHER SERVICES,,09_16 P2 OFP0900326N          ICF INTERNATIONAL,8/12/10,8/12/10,NON-TECHNOLOGY SERVICE CONTRCT,"1,200.00",FISCAL YEAR 2010,,,,09_16 P2 OFP0900326N          ICF INTERNATIONAL
,CHIEF ADMINISTRATIVE OFFICER,2010Q3,OTHER SERVICES,,09_16 P2 OFP0900326O                DO,5/29/10,6/30/10,NON-TECHNOLOGY SERVICE CONTRCT,"1,200.00",FISCAL YEAR 2010,,,,09_16 P2 OFP0900326O                DO
,CHIEF ADMINISTRATIVE OFFICER,2010Q3,OTHER SERVICES,,"09_17 P2 OFP1000151C          ADT SECURITY SERVICES, INC",8/1/10,8/31/10,NON-TECHNOLOGY SERVICE CONTRCT,286.47,FISCAL YEAR 2010,,,,"09_17 P2 OFP1000151C          ADT SECURITY SERVICES, INC"
,CHIEF ADMINISTRATIVE OFFICER,2010Q3,OTHER SERVICES,,09_17 P2 OPR10000103          MIDTOWN PERSONNEL INC,8/30/10,9/3/10,NON-TECHNOLOGY SERVICE CONTRCT,"1,955.07",FISCAL YEAR 2010,,,,09_17 P2 OPR10000103          MIDTOWN PERSONNEL INC
,CHIEF ADMINISTRATIVE OFFICER,2010Q3,OTHER SERVICES,,09_17 P2 OPR1000103A                DO,8/19/10,8/20/10,NON-TECHNOLOGY SERVICE CONTRCT,802.08,FISCAL YEAR 2010,,,,09_17 P2 OPR1000103A                DO
,CHIEF ADMINISTRATIVE OFFICER,2010Q3,OTHER SERVICES,,09_17 P2 OPR1000103B                DO,8/23/10,8/27/10,NON-TECHNOLOGY SERVICE CONTRCT,"1,817.21",FISCAL YEAR 2010,,,,09_17 P2 OPR1000103B                DO
,CHIEF ADMINISTRATIVE OFFICER,2010Q3,OTHER SERVICES,,"09_21 P2 OFP1000151D          ADT SECURITY SERVICES, INC",7/1/10,7/31/10,NON-TECHNOLOGY SERVICE CONTRCT,286.47,FISCAL YEAR 2010,,,,"09_21 P2 OFP1000151D          ADT SECURITY SERVICES, INC"
,CHIEF ADMINISTRATIVE OFFICER,2010Q3,OTHER SERVICES,,"09_22 P1 10A00100433          LEIBACH,WILLIAM",9/8/10,9/8/10,TRAINING EXPENSES,325,FISCAL YEAR 2010,,,,"09_22 P1 10A00100433          LEIBACH,WILLIAM"
,CHIEF ADMINISTRATIVE OFFICER,2010Q3,OTHER SERVICES,,"09_25 P1 10A00100436          DAN KAIN TROPHIES, INC",9/17/10,9/17/10,MISCELLANEOUS SERVICE,130,FISCAL YEAR 2010,,,,"09_25 P1 10A00100436          DAN KAIN TROPHIES, INC"
,CHIEF ADMINISTRATIVE OFFICER,2010Q3,OTHER SERVICES,,09_28 P2 OFP0900827O          SUSTAINABLE OPERATIONS SOL LLC,8/30/10,9/23/10,NON-TECHNOLOGY SERVICE CONTRCT,"7,500.00",FISCAL YEAR 2010,,,,09_28 P2 OFP0900827O          SUSTAINABLE OPERATIONS SOL LLC
,CHIEF ADMINISTRATIVE OFFICER,2010Q3,SUPPLIES AND MATERIALS,,07_01      P1    10A00800029      CITIBANK GOV CARD SERVICE,5/24/10,5/24/10,OFFICE SUPPLIES OUTSIDE,178.43,FISCAL YEAR 2010,,,,07_01      P1    10A00800029      CITIBANK GOV CARD SERVICE
,CHIEF ADMINISTRATIVE OFFICER,2010Q3,SUPPLIES AND MATERIALS,,07_01      P1    10A00800030               DO,5/1/10,5/28/10,OFFICE SUPPLIES OUTSIDE,167.27,FISCAL YEAR 2010,,,,07_01      P1    10A00800030               DO
,CHIEF ADMINISTRATIVE OFFICER,2010Q3,SUPPLIES AND MATERIALS,,07_02      C2    NW201018300      BOISE CASCADE,5/28/10,5/28/10,OFFICE SUPPLIES OUTSIDE,82.35,FISCAL YEAR 2010,,,,07_02      C2    NW201018300      BOISE CASCADE
,CHIEF ADMINISTRATIVE OFFICER,2010Q3,SUPPLIES AND MATERIALS,,07_22      P1    10A00100354      CAPITOLHOST,7/1/10,7/1/10,FOOD & BEVERAGE,824.7,FISCAL YEAR 2010,,,,07_22      P1    10A00100354      CAPITOLHOST
,CHIEF ADMINISTRATIVE OFFICER,2010Q3,SUPPLIES AND MATERIALS,,07_22      P1    10A00800032      CITIBANK GOV CARD SERVICE,6/1/10,6/28/10,PUBLICATION REF MATERIAL,995,FISCAL YEAR 2010,,,,07_22      P1    10A00800032      CITIBANK GOV CARD SERVICE
,CHIEF ADMINISTRATIVE OFFICER,2010Q3,SUPPLIES AND MATERIALS,,07_26      P1    10A00100355      MCDONOUGH BUSINESS SOLUTIONS,6/15/10,6/15/10,OFFICE SUPPLIES OUTSIDE,388.65,FISCAL YEAR 2010,,,,07_26      P1    10A00100355      MCDONOUGH BUSINESS SOLUTIONS
,CHIEF ADMINISTRATIVE OFFICER,2010Q3,SUPPLIES AND MATERIALS,,07_30      P1    10A00100371      CITIBANK GOV CARD SERVICE,6/24/10,6/24/10,OFFICE SUPPLIES OUTSIDE,32.4,FISCAL YEAR 2010,,,,07_30      P1    10A00100371      CITIBANK GOV CARD SERVICE
,CHIEF ADMINISTRATIVE OFFICER,2010Q3,SUPPLIES AND MATERIALS,,07_30      P1    10A00100374               DO,6/11/10,6/11/10,OFFICE SUPPLIES OUTSIDE,29.61,FISCAL YEAR 2010,,,,07_30      P1    10A00100374               DO
,CHIEF ADMINISTRATIVE OFFICER,2010Q3,SUPPLIES AND MATERIALS,,07_30      P1    10A00100377               DO,6/15/10,6/15/10,OFFICE SUPPLIES OUTSIDE,121.56,FISCAL YEAR 2010,,,,07_30      P1    10A00100377               DO
,CHIEF ADMINISTRATIVE OFFICER,2010Q3,SUPPLIES AND MATERIALS,,07_31      S1    DY100700052,7/1/10,7/31/10,OFFICE SUPPLY (TRANSFER),178.7,FISCAL YEAR 2010,,,,07_31      S1    DY100700052
,CHIEF ADMINISTRATIVE OFFICER,2010Q3,SUPPLIES AND MATERIALS,,07_31      S1    DY100700054,7/1/10,7/31/10,OFFICE SUPPLY (TRANSFER),19.9,FISCAL YEAR 2010,,,,07_31      S1    DY100700054
,CHIEF ADMINISTRATIVE OFFICER,2010Q3,SUPPLIES AND MATERIALS,,07_31      S1    DY100700102,7/1/10,7/31/10,OFFICE SUPPLY (TRANSFER),646.62,FISCAL YEAR 2010,,,,07_31      S1    DY100700102
,CHIEF ADMINISTRATIVE OFFICER,2010Q3,SUPPLIES AND MATERIALS,,07_31      S1    DY100700103,7/1/10,7/31/10,OFFICE SUPPLY (TRANSFER),159.3,FISCAL YEAR 2010,,,,07_31      S1    DY100700103
,CHIEF ADMINISTRATIVE OFFICER,2010Q3,SUPPLIES AND MATERIALS,,08_05      C1    NW201021500      DEER PARK,6/30/10,6/30/10,BOTTLED WATER,16,FISCAL YEAR 2010,,,,08_05      C1    NW201021500      DEER PARK
,CHIEF ADMINISTRATIVE OFFICER,2010Q3,SUPPLIES AND MATERIALS,,08_05      C1    NW201021500               DO,6/30/10,6/30/10,BOTTLED WATER,21.99,FISCAL YEAR 2010,,,,08_05      C1    NW201021500               DO
,CHIEF ADMINISTRATIVE OFFICER,2010Q3,SUPPLIES AND MATERIALS,,08_05      C1    NW201021500               DO,6/1/10,6/1/10,BOTTLED WATER,61.94,FISCAL YEAR 2010,,,,08_05      C1    NW201021500               DO
,CHIEF ADMINISTRATIVE OFFICER,2010Q3,SUPPLIES AND MATERIALS,,08_05      C1    NW201021500               DO,6/16/10,6/16/10,BOTTLED WATER,31.98,FISCAL YEAR 2010,,,,08_05      C1    NW201021500               DO
,CHIEF ADMINISTRATIVE OFFICER,2010Q3,SUPPLIES AND MATERIALS,,08_05      C1    NW201021500               DO,6/25/10,6/25/10,BOTTLED WATER,25,FISCAL YEAR 2010,,,,08_05      C1    NW201021500               DO
,CHIEF ADMINISTRATIVE OFFICER,2010Q3,SUPPLIES AND MATERIALS,,08_05      C1    NW201021500               DO,6/30/10,6/30/10,BOTTLED WATER,71.94,FISCAL YEAR 2010,,,,08_05      C1    NW201021500               DO
,CHIEF ADMINISTRATIVE OFFICER,2010Q3,SUPPLIES AND MATERIALS,,08_05      C1    NW201021500               DO,6/30/10,6/30/10,BOTTLED WATER,2,FISCAL YEAR 2010,,,,08_05      C1    NW201021500               DO
,CHIEF ADMINISTRATIVE OFFICER,2010Q3,SUPPLIES AND MATERIALS,,08_09      C2    NW201022100      BOISE CASCADE,6/9/10,6/9/10,OFFICE SUPPLIES OUTSIDE,278.18,FISCAL YEAR 2010,,,,08_09      C2    NW201022100      BOISE CASCADE
,CHIEF ADMINISTRATIVE OFFICER,2010Q3,SUPPLIES AND MATERIALS,,08_09      C2    NW201022100               DO,6/9/10,6/9/10,OFFICE SUPPLIES OUTSIDE,458.35,FISCAL YEAR 2010,,,,08_09      C2    NW201022100               DO
,CHIEF ADMINISTRATIVE OFFICER,2010Q3,SUPPLIES AND MATERIALS,,"08_09      P1    10A00100394      JORDAN,ROBERT M",7/20/10,7/20/10,PUBLICATION REF MATERIAL,20,FISCAL YEAR 2010,,,,"08_09      P1    10A00100394      JORDAN,ROBERT M"
,CHIEF ADMINISTRATIVE OFFICER,2010Q3,SUPPLIES AND MATERIALS,,08_09      P1    10A00100393      QUENCH USA LLC,6/1/10,6/30/10,BOTTLED WATER,19.97,FISCAL YEAR 2010,,,,08_09      P1    10A00100393      QUENCH USA LLC
,CHIEF ADMINISTRATIVE OFFICER,2010Q3,SUPPLIES AND MATERIALS,,08_11      P1    10A00100406      RESTAURANT NEWS,8/23/10,8/22/11,PUBLICATION REF MATERIAL,49.95,FISCAL YEAR 2010,,,,08_11      P1    10A00100406      RESTAURANT NEWS
,CHIEF ADMINISTRATIVE OFFICER,2010Q3,SUPPLIES AND MATERIALS,,08_13      C2    NW201022500      BOISE CASCADE,6/15/10,6/15/10,OFFICE SUPPLIES OUTSIDE,59.97,FISCAL YEAR 2010,,,,08_13      C2    NW201022500      BOISE CASCADE
,CHIEF ADMINISTRATIVE OFFICER,2010Q3,SUPPLIES AND MATERIALS,,08_13      C2    NW201022500               DO,6/28/10,6/28/10,OFFICE SUPPLIES OUTSIDE,"1,025.68",FISCAL YEAR 2010,,,,08_13      C2    NW201022500               DO
,CHIEF ADMINISTRATIVE OFFICER,2010Q3,SUPPLIES AND MATERIALS,,08_13      C2    NW201022500               DO,6/23/10,6/23/10,OFFICE SUPPLIES OUTSIDE,124.33,FISCAL YEAR 2010,,,,08_13      C2    NW201022500               DO
,CHIEF ADMINISTRATIVE OFFICER,2010Q3,SUPPLIES AND MATERIALS,,08_13   C2   NW201022500            DO,6/25/10,6/25/10,OFFICE SUPPLIES OUTSIDE,28.98,FISCAL YEAR 2010,,,,08_13   C2   NW201022500            DO
,CHIEF ADMINISTRATIVE OFFICER,2010Q3,SUPPLIES AND MATERIALS,,08_23   C2   NW201023500            DO,6/30/10,6/30/10,OFFICE SUPPLIES OUTSIDE,92.32,FISCAL YEAR 2010,,,,08_23   C2   NW201023500            DO
,CHIEF ADMINISTRATIVE OFFICER,2010Q3,SUPPLIES AND MATERIALS,,08_23   C2   NW201023500            DO,7/1/10,7/1/10,OFFICE SUPPLIES OUTSIDE,19.39,FISCAL YEAR 2010,,,,08_23   C2   NW201023500            DO
